Workbook

Sheet 1. Information Sheet
AA1: =IF(OR(F16="", F16="(if applicable)"), F14, F14 & " - " & F16) -> Whitby Hydro Electric Corporation - Town of Whitby
M12: Version | N12: 2.3
E14: Utility Name | F14: Whitby Hydro Electric Corporation
E16: Service Territory | F16: Town of Whitby
E18: Assigned EB Number | F18: EB-2013-0181
E20: Name of Contact and Title | F20: Susan Reffle
E22: Phone Number | F22: 905 444-1983
E24: Email Address | F24: sreffle@whitbyhydro.on.ca
E26: We are applying for rates effective | F26: 2014-01-01
E28: Rate-Setting Method | F28: IRM 4
A30: Please indicate in which Rate Year the Group 1 accounts were last cleared1 | F30: 2012
B32: Notes
C34: Pale green cells represent input cells.
C36: Pale blue cells represent drop-down lists. The applicant should select the appropriate item from the drop-down list.
C38: White cells contain fixed values, automatically generated values or formulae.
A41: Note: 1. Rate year of application

Sheet 2. Table of Contents
D14: 1. Information Sheet | H14: 8. Calculation of Def-Var RR
D15: 2. Table of Contents | H15: 9. Rev2Cost_GDPIPI
D16: 3. Rate Class Selection | H16: 10. Other Charges & LF
D17: 4. Current Tariff Schedule | H17: 11. Proposed Rates
D18: 5. 2014 Continuity Schedule | H18: 12. Summary Sheet
D19: 6. Billing Det. for Def-Var | H19: 13. Final Tariff Schedule
D20: 7. Cost Allocation for Def-Var | H20: 14. Bill Impacts

Sheet 3. Rate Class Selection
A12: Select the appropriate rate classes as they appear on your most recent Board-Approved Tariff of Rates and Charges, including the MicroFit Class.
A14: How many classes are listed on your most recent Board-Approved Tariff of Rates and Charges? | J14: 7
A16: Select Your Rate Classes from the Blue Cells below. Please ensure that a rate class is assigned to each shaded cell.
B18: Rate Class Classification | Q18: # of duplicates
A19: 1 | B19: RESIDENTIAL | P19: =COUNTIF($B$19:$J$40, B19) -> 1 | Q19: =COUNTIF(P19:P40, 2)/2 -> 0
A20: 2 | B20: GENERAL SERVICE LESS THAN 50 KW | P20: =COUNTIF($B$19:$J$40, B20) -> 1
A21: 3 | B21: GENERAL SERVICE 50 TO 4,999 KW | P21: 1
A22: 4 | B22: UNMETERED SCATTERED LOAD | P22: 1
A23: 5 | B23: SENTINEL LIGHTING | P23: 1
A24: 6 | B24: STREET LIGHTING | P24: 1
A25: 7 | B25: microFIT | P25: 1
P26: 0
P27: 0
P28: 0
P29: 0
P30: 0
P31: 0
P32: 0
P33: 0

Sheet 4. Current Tariff Schedule
Z1: 3 | AA1: January | AB1: ≥
AA2: February
AA3: March
AA4: April
AA5: May
AA6: June
AA7: July
AA8: August
AA9: September
AA10: October
AA11: November
B12: For each class, Applicants are required to copy and paste the class descriptions (located directly under the class name) and the description of the applicability of those rates (description is found under the class name and directly under the word "APPLICATION"). By using the drop-down lists located under the column labeled "Rate Description", please select the descriptions of the rates and charges that BEST MATCHES the descriptions on your most recent Board-Approved Tariff of Rates and Charges. If the description is not found in the drop-down list, please enter the description in the green cells under the correct class exactly as it appears on the tariff. Please do not enter more than one "Service Charge" for each class for which a base monthly fixed charge applies. | AA12: December
B21: =IF(ISBLANK('1. Information Sheet'!F14), "Please Choose Distributor Name on Sheet 1", '1. Information Sheet'!F14) -> Whitby Hydro Electric Corporation
B22: TARIFF OF RATES AND CHARGES
A24: RESIDENTIAL | B24: RESIDENTIAL Service Classification
A25: RESIDENTIAL
A26: RESIDENTIAL | B26: This classification refers to detached, semi-detached or freehold townhouse dwelling units. Energy is supplied to residential customers as single phase, three wire, 60 Hertz, having a normal voltage of 120/240 Volts up to a maximum of 200 Amps per dwelling unit. Further servicing details are available in the distributor’s Conditions of Service.
A27: RESIDENTIAL
A28: RESIDENTIAL
A29: RESIDENTIAL
A30: RESIDENTIAL
A31: RESIDENTIAL
A32: RESIDENTIAL | B32: APPLICATION
A33: RESIDENTIAL
A34: RESIDENTIAL | B34: The application of these rates and charges shall be in accordance with the Licence of the Distributor and any Code or Order of the Board, and amendments thereto as approved by the Board, which may be applicable to the administration of this schedule.
A35: RESIDENTIAL
A36: RESIDENTIAL
A37: RESIDENTIAL | B37: No rates and charges for the distribution of electricity and charges to meet the costs of any work or service done or furnished for the purpose of the distribution of electricity shall be made except as permitted by this schedule, unless required by the Distributor’s Licence or a Code or Order of the Board, and amendments thereto as approved by the Board, or as specified herein.
A38: RESIDENTIAL
A39: RESIDENTIAL
A40: RESIDENTIAL
A41: RESIDENTIAL | B41: Unless specifically noted, this schedule does not contain any charges for the electricity commodity, be it under the Regulated Price Plan, a contract with a retailer or the wholesale market price, as applicable. In addition, the charges in the MONTHLY RATES AND CHARGES - Regulatory Component of this schedule do not apply to a customer that is an embedded wholesale market participant.
A42: RESIDENTIAL
A43: RESIDENTIAL
A44: RESIDENTIAL | B44: It should be noted that this schedule does not list any charges, assessments or credits that are required by law to be invoiced by a distributor and that are not subject to Board approval, such as the Debt Retirement Charge, the Global Adjustment, the Ontario Clean Energy Benefit and the HST.
A45: RESIDENTIAL
A46: RESIDENTIAL
A47: RESIDENTIAL
A48: RESIDENTIAL | B48: MONTHLY RATES AND CHARGES - Delivery Component (If applicable, Effective Date MUST be included in rate description)
A49: RESIDENTIAL | B49: Service Charge | H49: $ | I49: 17.43 | K49: 1_C_MSC
A50: RESIDENTIAL | B50: Rate Rider for Disposition of Residual Historical Smart Meter Costs - effective until April 30, 2014 | H50: $ | I50: -0.55 | K50: 1_C_MSC_Rate_Rider_1 | L50: 2014-04-30
A51: RESIDENTIAL | B51: Rate Rider for Recovery of Smart Meter Incremental Revenue Requirement - in effect until the effective date of the next cost of service-based rate order | H51: $ | I51: 2.2 | K51: 1_C_MSC_Rate_Rider_2
A52: RESIDENTIAL | B52: Rate Rider for Smart Metering Entity Charge - effective until October 31, 2018 | H52: $ | I52: 0.79 | K52: 1_C_SMEC | L52: 2018-10-31
A53: RESIDENTIAL | B53: Distribution Volumetric Rate | H53: $/kWh | I53: 0.0144 | K53: 1_C_VC
A54: RESIDENTIAL | B54: Rate Rider for Disposition of Global Adjustment Sub-Account (2012) - effective until December 31, 2013 Applicable only for Non-RPP Customers | H54: $/kWh | I54: 0.0013 | K54: 1_C_VC_GA_Rate_Rider_kWh_1 | L54: 2013-12-31
A55: RESIDENTIAL | B55: Rate Rider for Disposition of Deferral/Variance Accounts (2010) - effective until December 31, 2014 | H55: $/kWh | I55: -0.0017 | K55: 1_C_VC_DEFVAR_kWh_1 | L55: 2014-12-31
A56: RESIDENTIAL | B56: Rate Rider for Disposition of Deferral/Variance Accounts (2012) - effective until December 31, 2013 | H56: $/kWh | I56: -0.0032 | K56: 1_C_VC_DEFVAR_kWh_2 | L56: 2013-12-31
A57: RESIDENTIAL | B57: Retail Transmission Rate - Network Service Rate | H57: $/kWh | I57: 0.0075 | K57: 1_C_RTSR_Network
A58: RESIDENTIAL | B58: Retail Transmission Rate - Line and Transformation Connection Service Rate | H58: $/kWh | I58: 0.0059 | K58: 1_C_RTSR_Connection
A59: RESIDENTIAL
A60: RESIDENTIAL
A61: RESIDENTIAL
A62: RESIDENTIAL
A63: RESIDENTIAL
A64: RESIDENTIAL
A65: RESIDENTIAL
A66: RESIDENTIAL
A67: RESIDENTIAL
A68: RESIDENTIAL
A69: RESIDENTIAL
A70: RESIDENTIAL
A71: RESIDENTIAL
A72: RESIDENTIAL
A73: RESIDENTIAL
A74: RESIDENTIAL
A75: RESIDENTIAL
A76: RESIDENTIAL
A77: RESIDENTIAL
A78: RESIDENTIAL
A79: RESIDENTIAL | B79: MONTHLY RATES AND CHARGES - Regulatory Component
A80: RESIDENTIAL
A81: RESIDENTIAL | B81: Wholesale Market Service Rate | H81: $/kWh | I81: 0.0044 | K81: 1_C_WMSR
A82: RESIDENTIAL | B82: Rural Rate Protection Charge | H82: $/kWh | I82: 0.0012 | K82: 1_C_RRPC
A83: RESIDENTIAL | B83: Standard Supply Service - Administrative Charge (if applicable) | H83: $ | I83: 0.25 | K83: 1_C_SSS
A84: RESIDENTIAL
A87: GENERAL SERVICE LESS THAN 50 KW | B87: GENERAL SERVICE LESS THAN 50 KW Service Classification
A88: GENERAL SERVICE LESS THAN 50 KW
A89: GENERAL SERVICE LESS THAN 50 KW | B89: This classification applies to a non residential account whose average monthly maximum demand is less than, or is forecast to be less than, 50 kW, shall include small apartment buildings and smaller commercial, industrial, and institutional developments. Further servicing details are available in the distributor’s Conditions of Service.
A90: GENERAL SERVICE LESS THAN 50 KW
A91: GENERAL SERVICE LESS THAN 50 KW
A92: GENERAL SERVICE LESS THAN 50 KW
A93: GENERAL SERVICE LESS THAN 50 KW
A94: GENERAL SERVICE LESS THAN 50 KW
A95: GENERAL SERVICE LESS THAN 50 KW | B95: APPLICATION
A96: GENERAL SERVICE LESS THAN 50 KW
A97: GENERAL SERVICE LESS THAN 50 KW | B97: The application of these rates and charges shall be in accordance with the Licence of the Distributor and any Code or Order of the Board, and amendments thereto as approved by the Board, which may be applicable to the administration of this schedule.
A98: GENERAL SERVICE LESS THAN 50 KW
A99: GENERAL SERVICE LESS THAN 50 KW
A100: GENERAL SERVICE LESS THAN 50 KW | B100: No rates and charges for the distribution of electricity and charges to meet the costs of any work or service done or furnished for the purpose of the distribution of electricity shall be made except as permitted by this schedule, unless required by the Distributor’s Licence or a Code or Order of the Board, and amendments thereto as approved by the Board, or as specified herein.
A101: GENERAL SERVICE LESS THAN 50 KW
A102: GENERAL SERVICE LESS THAN 50 KW
A103: GENERAL SERVICE LESS THAN 50 KW
A104: GENERAL SERVICE LESS THAN 50 KW | B104: Unless specifically noted, this schedule does not contain any charges for the electricity commodity, be it under the Regulated Price Plan, a contract with a retailer or the wholesale market price, as applicable. In addition, the charges in the MONTHLY RATES AND CHARGES - Regulatory Component of this schedule do not apply to a customer that is an embedded wholesale market participant.
A105: GENERAL SERVICE LESS THAN 50 KW
A106: GENERAL SERVICE LESS THAN 50 KW
A107: GENERAL SERVICE LESS THAN 50 KW | B107: It should be noted that this schedule does not list any charges, assessments or credits that are required by law to be invoiced by a distributor and that are not subject to Board approval, such as the Debt Retirement Charge, the Global Adjustment, the Ontario Clean Energy Benefit and the HST.
A108: GENERAL SERVICE LESS THAN 50 KW
A109: GENERAL SERVICE LESS THAN 50 KW
A110: GENERAL SERVICE LESS THAN 50 KW
A111: GENERAL SERVICE LESS THAN 50 KW | B111: MONTHLY RATES AND CHARGES - Delivery Component (If applicable, Effective Date MUST be included in rate description)
A112: GENERAL SERVICE LESS THAN 50 KW | B112: Service Charge | H112: $ | I112: 20.13 | K112: 2_C_MSC
A113: GENERAL SERVICE LESS THAN 50 KW | B113: Rate Rider for Disposition of Residual Historical Smart Meter Costs - effective until April 30, 2014 | H113: $ | I113: 12.51 | K113: 2_C_MSC_Rate_Rider_1 | L113: 2014-04-30
A114: GENERAL SERVICE LESS THAN 50 KW | B114: Rate Rider for Recovery of Smart Meter Incremental Revenue Requirement - in effect until the effective date of the next cost of service-based rate order | H114: $ | I114: 7.11 | K114: 2_C_MSC_Rate_Rider_2
A115: GENERAL SERVICE LESS THAN 50 KW | B115: Rate Rider for Smart Metering Entity Charge - effective until October 31, 2018 | H115: $ | I115: 0.79 | K115: 2_C_SMEC | L115: 2018-10-31
A116: GENERAL SERVICE LESS THAN 50 KW | B116: Distribution Volumetric Rate | H116: $/kWh | I116: 0.0197 | K116: 2_C_VC
A117: GENERAL SERVICE LESS THAN 50 KW | B117: Rate Rider for Disposition of Global Adjustment Sub-Account (2012) - effective until December 31, 2013 Applicable only for Non-RPP Customers | H117: $/kWh | I117: 0.0013 | K117: 2_C_VC_GA_Rate_Rider_kWh_1 | L117: 2013-12-31
A118: GENERAL SERVICE LESS THAN 50 KW | B118: Rate Rider for Disposition of Deferral/Variance Accounts (2010) - effective until December 31, 2014 | H118: $/kWh | I118: -0.0018 | K118: 2_C_VC_DEFVAR_kWh_1 | L118: 2014-12-31
A119: GENERAL SERVICE LESS THAN 50 KW | B119: Rate Rider for Disposition of Deferral/Variance Accounts (2012) - effective until December 31, 2013 | H119: $/kWh | I119: -0.0027 | K119: 2_C_VC_DEFVAR_kWh_2 | L119: 2013-12-31
A120: GENERAL SERVICE LESS THAN 50 KW | B120: Retail Transmission Rate - Network Service Rate | H120: $/kWh | I120: 0.0068 | K120: 2_C_RTSR_Network
A121: GENERAL SERVICE LESS THAN 50 KW | B121: Retail Transmission Rate - Line and Transformation Connection Service Rate | H121: $/kWh | I121: 0.0054 | K121: 2_C_RTSR_Connection
A122: GENERAL SERVICE LESS THAN 50 KW
A123: GENERAL SERVICE LESS THAN 50 KW
A124: GENERAL SERVICE LESS THAN 50 KW
A125: GENERAL SERVICE LESS THAN 50 KW
A126: GENERAL SERVICE LESS THAN 50 KW
A127: GENERAL SERVICE LESS THAN 50 KW
A128: GENERAL SERVICE LESS THAN 50 KW
A129: GENERAL SERVICE LESS THAN 50 KW
A130: GENERAL SERVICE LESS THAN 50 KW
A131: GENERAL SERVICE LESS THAN 50 KW
A132: GENERAL SERVICE LESS THAN 50 KW
A133: GENERAL SERVICE LESS THAN 50 KW
A134: GENERAL SERVICE LESS THAN 50 KW
A135: GENERAL SERVICE LESS THAN 50 KW
A136: GENERAL SERVICE LESS THAN 50 KW
A137: GENERAL SERVICE LESS THAN 50 KW
A138: GENERAL SERVICE LESS THAN 50 KW
A139: GENERAL SERVICE LESS THAN 50 KW
A140: GENERAL SERVICE LESS THAN 50 KW
A141: GENERAL SERVICE LESS THAN 50 KW
A142: GENERAL SERVICE LESS THAN 50 KW | B142: MONTHLY RATES AND CHARGES - Regulatory Component
A143: GENERAL SERVICE LESS THAN 50 KW
A144: GENERAL SERVICE LESS THAN 50 KW | B144: Wholesale Market Service Rate | H144: =H81 -> $/kWh | I144: 0.0044 | K144: 2_C_WMSR
A145: GENERAL SERVICE LESS THAN 50 KW | B145: Rural Rate Protection Charge | H145: $/kWh | I145: 0.0012 | K145: 2_C_RRPC
A146: GENERAL SERVICE LESS THAN 50 KW | B146: Standard Supply Service - Administrative Charge (if applicable) | H146: $ | I146: 0.25 | K146: 2_C_SSS
A147: GENERAL SERVICE LESS THAN 50 KW
A150: GENERAL SERVICE 50 TO 4,999 KW | B150: GENERAL SERVICE 50 TO 4,999 KW Service Classification
A151: GENERAL SERVICE 50 TO 4,999 KW
A152: GENERAL SERVICE 50 TO 4,999 KW | B152: This classification applies to a non residential account whose average monthly maximum demand used for billing purposes is equal to or greater than, or is forecast to be equal to or greater than, 50 kW but less than 5,000 kW and includes apartment buildings, and commercial, industrial, and institutional developments. Further servicing details are available in the distributor’s Conditions of Service.
A153: GENERAL SERVICE 50 TO 4,999 KW
A154: GENERAL SERVICE 50 TO 4,999 KW
A155: GENERAL SERVICE 50 TO 4,999 KW
A156: GENERAL SERVICE 50 TO 4,999 KW
A157: GENERAL SERVICE 50 TO 4,999 KW
A158: GENERAL SERVICE 50 TO 4,999 KW | B158: APPLICATION
A159: GENERAL SERVICE 50 TO 4,999 KW
A160: GENERAL SERVICE 50 TO 4,999 KW | B160: The application of these rates and charges shall be in accordance with the Licence of the Distributor and any Code or Order of the Board, and amendments thereto as approved by the Board, which may be applicable to the administration of this schedule.
A161: GENERAL SERVICE 50 TO 4,999 KW
A162: GENERAL SERVICE 50 TO 4,999 KW
A163: GENERAL SERVICE 50 TO 4,999 KW | B163: No rates and charges for the distribution of electricity and charges to meet the costs of any work or service done or furnished for the purpose of the distribution of electricity shall be made except as permitted by this schedule, unless required by the Distributor’s Licence or a Code or Order of the Board, and amendments thereto as approved by the Board, or as specified herein.
A164: GENERAL SERVICE 50 TO 4,999 KW
A165: GENERAL SERVICE 50 TO 4,999 KW
A166: GENERAL SERVICE 50 TO 4,999 KW
A167: GENERAL SERVICE 50 TO 4,999 KW | B167: Unless specifically noted, this schedule does not contain any charges for the electricity commodity, be it under the Regulated Price Plan, a contract with a retailer or the wholesale market price, as applicable. In addition, the charges in the MONTHLY RATES AND CHARGES - Regulatory Component of this schedule do not apply to a customer that is an embedded wholesale market participant.
A168: GENERAL SERVICE 50 TO 4,999 KW
A169: GENERAL SERVICE 50 TO 4,999 KW
A170: GENERAL SERVICE 50 TO 4,999 KW | B170: It should be noted that this schedule does not list any charges, assessments or credits that are required by law to be invoiced by a distributor and that are not subject to Board approval, such as the Debt Retirement Charge, the Global Adjustment, the Ontario Clean Energy Benefit and the HST.
A171: GENERAL SERVICE 50 TO 4,999 KW
A172: GENERAL SERVICE 50 TO 4,999 KW
A173: GENERAL SERVICE 50 TO 4,999 KW
A174: GENERAL SERVICE 50 TO 4,999 KW | B174: MONTHLY RATES AND CHARGES - Delivery Component (If applicable, Effective Date MUST be included in rate description)
A175: GENERAL SERVICE 50 TO 4,999 KW | B175: Service Charge | H175: $ | I175: 194.53 | K175: 3_C_MSC
A176: GENERAL SERVICE 50 TO 4,999 KW | B176: Distribution Volumetric Rate | H176: $/kW | I176: 3.9831 | K176: 3_C_VC
A177: GENERAL SERVICE 50 TO 4,999 KW | B177: Rate Rider for Disposition of Global Adjustment Sub-Account (2012) - effective until December 31, 2013 Applicable only for Non-RPP Customers | H177: $/kW | I177: 0.5426 | K177: 3_C_VC_GA_Rate_Rider_kW_1 | L177: 2013-12-31
A178: GENERAL SERVICE 50 TO 4,999 KW | B178: Rate Rider for Disposition of Deferral/Variance Accounts (2010) - effective until December 31, 2014 | H178: $/kW | I178: -0.6875 | K178: 3_C_VC_DEFVAR_kW_1 | L178: 2014-12-31
A179: GENERAL SERVICE 50 TO 4,999 KW | B179: Rate Rider for Disposition of Deferral/Variance Accounts (2012) - effective until December 31, 2013 | H179: $/kW | I179: -0.8667 | K179: 3_C_VC_DEFVAR_kW_2 | L179: 2013-12-31
A180: GENERAL SERVICE 50 TO 4,999 KW | B180: Retail Transmission Rate - Network Service Rate | H180: $/kW | I180: 2.7595 | K180: 3_C_RTSR_Network
A181: GENERAL SERVICE 50 TO 4,999 KW | B181: Retail Transmission Rate - Line and Transformation Connection Service Rate | H181: $/kW | I181: 2.0707 | K181: 3_C_RTSR_Connection
A182: GENERAL SERVICE 50 TO 4,999 KW
A183: GENERAL SERVICE 50 TO 4,999 KW
A184: GENERAL SERVICE 50 TO 4,999 KW
A185: GENERAL SERVICE 50 TO 4,999 KW
A186: GENERAL SERVICE 50 TO 4,999 KW
A187: GENERAL SERVICE 50 TO 4,999 KW
A188: GENERAL SERVICE 50 TO 4,999 KW
A189: GENERAL SERVICE 50 TO 4,999 KW
A190: GENERAL SERVICE 50 TO 4,999 KW
A191: GENERAL SERVICE 50 TO 4,999 KW
A192: GENERAL SERVICE 50 TO 4,999 KW
A193: GENERAL SERVICE 50 TO 4,999 KW
A194: GENERAL SERVICE 50 TO 4,999 KW
A195: GENERAL SERVICE 50 TO 4,999 KW
A196: GENERAL SERVICE 50 TO 4,999 KW
A197: GENERAL SERVICE 50 TO 4,999 KW
A198: GENERAL SERVICE 50 TO 4,999 KW
A199: GENERAL SERVICE 50 TO 4,999 KW
A200: GENERAL SERVICE 50 TO 4,999 KW
A201: GENERAL SERVICE 50 TO 4,999 KW
A202: GENERAL SERVICE 50 TO 4,999 KW
A203: GENERAL SERVICE 50 TO 4,999 KW
A204: GENERAL SERVICE 50 TO 4,999 KW
A205: GENERAL SERVICE 50 TO 4,999 KW | B205: MONTHLY RATES AND CHARGES - Regulatory Component
A206: GENERAL SERVICE 50 TO 4,999 KW
A207: GENERAL SERVICE 50 TO 4,999 KW | B207: Wholesale Market Service Rate | H207: =H81 -> $/kWh | I207: 0.0044 | K207: 3_C_WMSR
A208: GENERAL SERVICE 50 TO 4,999 KW | B208: Rural Rate Protection Charge | H208: $/kWh | I208: 0.0012 | K208: 3_C_RRPC
A209: GENERAL SERVICE 50 TO 4,999 KW | B209: Standard Supply Service - Administrative Charge (if applicable) | H209: $ | I209: 0.25 | K209: 3_C_SSS
A210: GENERAL SERVICE 50 TO 4,999 KW
A213: UNMETERED SCATTERED LOAD | B213: UNMETERED SCATTERED LOAD Service Classification
A214: UNMETERED SCATTERED LOAD
A215: UNMETERED SCATTERED LOAD | B215: This classification applies to an account whose average monthly maximum demand is less than, or is forecast to be less than, 50 kW and the consumption is unmetered. Such connections include cable TV power packs, bus shelters, telephone booths, traffic lights, railway crossings, decorative lighting, billboards, etc. The level of the consumption will be agreed to by the distributor and the customer, based on detailed manufacturer information/documentation with regard to electrical consumption of the unmetered load or periodic monitoring of actual consumption. Further servicing details are available in the distributor’s Conditions of Service.
... 235 more rows

Sheet 4. Hidden (hidden)
M1: Current Rate Classes | N1: Changed to Rate Classes | O1: Values in A that are NOT in B | P1: Values in B that are Not in A | Q1: Count of A | R1: Count of B
M2: RESIDENTIAL | N2: RESIDENTIAL | Q2: 7 | R2: 7
M3: GENERAL SERVICE LESS THAN 50 KW | N3: GENERAL SERVICE LESS THAN 50 KW
M4: GENERAL SERVICE 50 TO 4,999 KW | N4: GENERAL SERVICE 50 TO 4,999 KW
M5: UNMETERED SCATTERED LOAD | N5: UNMETERED SCATTERED LOAD
M6: SENTINEL LIGHTING | N6: SENTINEL LIGHTING
M7: STREET LIGHTING | N7: STREET LIGHTING
M8: microFIT | N8: microFIT
A24: RESIDENTIAL | B24: RESIDENTIAL Service Classification
A25: RESIDENTIAL
A26: RESIDENTIAL
A27: RESIDENTIAL
A28: RESIDENTIAL
A29: RESIDENTIAL
A30: RESIDENTIAL
A31: RESIDENTIAL
A32: RESIDENTIAL | B32: APPLICATION
A33: RESIDENTIAL
A34: RESIDENTIAL
A35: RESIDENTIAL
A36: RESIDENTIAL
A37: RESIDENTIAL
A38: RESIDENTIAL
A39: RESIDENTIAL
A40: RESIDENTIAL
A41: RESIDENTIAL
A42: RESIDENTIAL
A43: RESIDENTIAL
A44: RESIDENTIAL
A45: RESIDENTIAL
A46: RESIDENTIAL
A47: RESIDENTIAL
A48: RESIDENTIAL | B48: MONTHLY RATES AND CHARGES - Delivery Component (If applicable, Effective Date MUST be included in rate description)
A49: RESIDENTIAL
A50: RESIDENTIAL
A51: RESIDENTIAL
A52: RESIDENTIAL
A53: RESIDENTIAL
A54: RESIDENTIAL
A55: RESIDENTIAL
A56: RESIDENTIAL
A57: RESIDENTIAL
A58: RESIDENTIAL
A59: RESIDENTIAL
A60: RESIDENTIAL
A61: RESIDENTIAL
A62: RESIDENTIAL
A63: RESIDENTIAL
A64: RESIDENTIAL
A65: RESIDENTIAL
A66: RESIDENTIAL
A67: RESIDENTIAL
A68: RESIDENTIAL
A69: RESIDENTIAL
A70: RESIDENTIAL
A71: RESIDENTIAL
A72: RESIDENTIAL
A73: RESIDENTIAL
A74: RESIDENTIAL
A75: RESIDENTIAL
A76: RESIDENTIAL
A77: RESIDENTIAL
A78: RESIDENTIAL
A79: RESIDENTIAL | B79: MONTHLY RATES AND CHARGES - Regulatory Component
A80: RESIDENTIAL
A81: RESIDENTIAL | B81: Wholesale Market Service Rate
A82: RESIDENTIAL | B82: Rural Rate Protection Charge
A83: RESIDENTIAL | B83: Standard Supply Service - Administrative Charge (if applicable)
A84: RESIDENTIAL

Sheet 5. 2014 Continuity Schedule
C15: Please complete the following continuity schedule for the following Deferral / Variance Accounts. Enter information into green cells only. If you have received approval to dispose of balances from prior years, the starting point for entries in the 2014 DVA schedule below will be the balance sheet date as per your G/L for which you received approval. For example, if in the 2013 EDR process (CoS or IRM) you received approval for the December 31, 2011 balances, the starting point for your entries below should be the adjustment column BQ for principal and column BV for interest. This will allow for the correct starting point for the 2012 opening balance columns for both principal and interest. Please refer to the footnotes for further instructions.
E19: 2005 | O19: 2006 | Y19: 2007 | AI19: 2008 | AS19: 2009 | BC19: 2010 | BM19: 2011 | BW19: 2012 | CJ19: 2013 | CN19: Projected Interest on Dec-31-12 Balances | CQ19: 2.1.7 RRR
C20: Account Descriptions | D20: Account Number | E20: Opening Principal Amounts as of Jan-1-05 | F20: Transactions Debit / (Credit) during 2005 excluding interest and adjustments 2 | G20: Board-Approved Disposition during 2005 | H20: Adjustments during 2005 - other 2 | I20: Closing Principal Balance as of Dec-31-05 | J20: Opening Interest Amounts as of Jan-1-05 | K20: Interest Jan-1 to Dec-31-05 | L20: Board-Approved Disposition during 2005 | M20: Adjustments during 2005 - other 2 | N20: Closing Interest Amounts as of Dec-31-05 | O20: Opening Principal Amounts as of Jan-1-06 | P20: Transactions Debit / (Credit) during 2006 excluding interest and adjustments 2 | Q20: Board-Approved Disposition during 2006 | R20: Adjustments during 2006 - other 2 | S20: Closing Principal Balance as of Dec-31-06 | T20: Opening Interest Amounts as of Jan-1-06 | U20: Interest Jan-1 to Dec-31-06 | V20: Board-Approved Disposition during 2006 1 | W20: Adjustments during 2006 - other 2 | X20: Closing Interest Amounts as of Dec-31-06 | Y20: Opening Principal Amounts as of Jan-1-07 | Z20: Transactions Debit / (Credit) during 2007 excluding interest and adjustments 2 | AA20: Board-Approved Disposition during 2007 | AB20: Adjustments during 2007 - other 1 | AC20: Closing Principal Balance as of Dec-31-07 | AD20: Opening Interest Amounts as of Jan-1-07 | AE20: Interest Jan-1 to Dec-31-07 | AF20: Board-Approved Disposition during 2007 | AG20: Adjustments during 2007 - other 1 | AH20: Closing Interest Amounts as of Dec-31-07 | AI20: Opening Principal Amounts as of Jan-1-08 | AJ20: Transactions Debit / (Credit) during 2008 excluding interest and adjustments 2 | AK20: Board-Approved Disposition during 2008 | AL20: Adjustments during 2008 - other 1 | AM20: Closing Principal Balance as of Dec-31-08 | AN20: Opening Interest Amounts as of Jan-1-08 | AO20: Interest Jan-1 to Dec-31-08 | AP20: Board-Approved Disposition during 2008 | AQ20: Adjustments during 2008 - other 1 | AR20: Closing Interest Amounts as of Dec-31-08 | AS20: Opening Principal Amounts as of Jan-1-09 | AT20: Transactions Debit / (Credit) during 2009 excluding interest and adjustments 2 | AU20: Board-Approved Disposition during 2009 | AV20: Adjustments during 2009 - other 1 | AW20: Closing Principal Balance as of Dec-31-09 | AX20: Opening Interest Amounts as of Jan-1-09 | AY20: Interest Jan-1 to Dec-31-09 | AZ20: Board-Approved Disposition during 2009 | BA20: Adjustments during 2009 - other 1 | BB20: Closing Interest Amounts as of Dec-31-09 | BC20: Opening Principal Amounts as of Jan-1-10 | BD20: Transactions Debit / (Credit) during 2010 excluding interest and adjustments 2 | BE20: Board-Approved Disposition during 2010 | BF20: Adjustments during 2010 - other 1 | BG20: Closing Principal Balance as of Dec-31-10 | BH20: Opening Interest Amounts as of Jan-1-10 | BI20: Interest Jan-1 to Dec-31-10 | BJ20: Board-Approved Disposition during 2010 | BK20: Adjustments during 2010 - other 2 | BL20: Closing Interest Amounts as of Dec-31-10 | BM20: Opening Principal Amounts as of Jan-1-11 | BN20: Transactions Debit / (Credit) during 2011 excluding interest and adjustments 2 | BO20: Board-Approved Disposition during 2011 | BP20: Adjustments during 2011 - other 1 | BQ20: Closing Principal Balance as of Dec-31-11 | BR20: Opening Interest Amounts as of Jan-1-11 | BS20: Interest Jan-1 to Dec-31-11 | BT20: Board-Approved Disposition during 2011 | BU20: Adjustments during 2011 - other 2 | BV20: Closing Interest Amounts as of Dec-31-11 | BW20: Opening Principal Amounts as of Jan-1-12 | BX20: Transactions Debit / (Credit) during 2012 excluding interest and adjustments 2 | BY20: Board-Approved Disposition during 2012 | BZ20: Other 1 Adjustments during Q1 2012 | CA20: Other 1 Adjustments during Q2 2012 | CB20: Other 1 Adjustments during Q3 2012 | CC20: Other 1 Adjustments during Q4 2012 | CD20: Closing Principal Balance as of Dec-31-12 | CE20: Opening Interest Amounts as of Jan-1-12 | CF20: Interest Jan-1 to Dec-31-12 | CG20: Board-Approved Disposition during 2012 | CH20: Adjustments during 2012 - other 1 | CI20: Closing Interest Amounts as of Dec-31-12 | CJ20: Principal Disposition during 2013 - instructed by Board | CK20: Interest Disposition during 2013 - instructed by Board | CL20: Closing Principal Balances as of Dec 31-12 Adjusted for Dispositions during 2013 | CM20: Closing Interest Balances as of Dec 31-12 Adjusted for Dispositions during 2013 | CN20: Projected Interest from Jan 1, 2013 to December 31, 2013 on Dec 31 -12 balance adjusted for disposition during 2013 3 | CO20: Projected Interest from January 1, 2013 to April 30, 2013 on Dec 31 -12 balance adjusted for disposition during 2013 3 | CP20: Total Claim | CQ20: As of Dec 31-12 | CR20: Variance RRR vs. 2012 Balance (Principal + Interest)
CP22: Claim before Forecasted Transactions
C23: Group 1 Accounts
A24: 1 | C24: LV Variance Account | D24: 1550 | I24: =E24+F24-G24+H24 -> 0 | N24: =J24+K24-L24+M24 -> 0 | O24: =I24 -> 0 | S24: =O24+P24-Q24+R24 -> 0 | X24: =T24+U24-V24+W24 -> 0 | Y24: =S24 -> 0 | AC24: =Y24+Z24-AA24+AB24 -> 0 | AD24: =X24 -> 0 | AH24: =AD24+AE24-AF24+AG24 -> 0 | AI24: =AC24 -> 0 | AM24: =AI24+AJ24-AK24+AL24 -> 0 | AN24: =AH24 -> 0 | AR24: =AN24+AO24-AP24+AQ24 -> 0 | AS24: =AM24 -> 0 | AW24: =AS24+AT24-AU24+AV24 -> 0 | AX24: =AR24 -> 0 | BB24: =AX24+AY24-AZ24+BA24 -> 0 | BC24: =AW24 -> 0 | BG24: -785051.87 | BH24: =BB24 -> 0 | BL24: -10650.54 | BM24: =BG24 -> -785051.87 | BN24: -96446.37 | BO24: -65517.11 | BQ24: =BM24+BN24-BO24+BP24 -> -815981.13 | BR24: =BL24 -> -10650.54 | BS24: -11380.63 | BT24: -4755 | BU24: 402.31 | BV24: =BR24+BS24-BT24+BU24 -> -16873.86 | BW24: =BQ24 -> -815981.13 | BX24: -58459.35 | BY24: -719534.76 | CD24: =BW24+BX24-BY24+SUM(BZ24:CC24) -> -154905.72 | CE24: =BV24 -> -16873.86 | CF24: -1815 | CG24: -16070.39 | CI24: =CE24+CF24-CG24+CH24 -> -2618.47 | CL24: =CD24-CJ24 -> -154905.72 | CM24: =CI24-CK24 -> -2618.47 | CN24: =CL24*1.47% -> -2277.114084 | CP24: =SUM(CL24:CO24) -> -159801.3041 | CQ24: -157524.19 | CR24: =CQ24-SUM(CD24,CI24) -> 0
A25: 2 | C25: RSVA - Wholesale Market Service Charge | D25: 1580 | I25: 0 | N25: =J25+K25-L25+M25 -> 0 | O25: =I25 -> 0 | S25: 0 | X25: 0 | Y25: =S25 -> 0 | AC25: 0 | AD25: =X25 -> 0 | AH25: 0 | AI25: =AC25 -> 0 | AM25: 0 | AN25: =AH25 -> 0 | AR25: 0 | AS25: =AM25 -> 0 | AW25: 0 | AX25: =AR25 -> 0 | BB25: 0 | BC25: =AW25 -> 0 | BG25: -3328492 | BH25: =BB25 -> 0 | BL25: -114498.42 | BM25: =BG25 -> -3328492 | BN25: -882634.97 | BO25: -2028638.13 | BQ25: =BM25+BN25-BO25+SUM(BP25:BP25) -> -2182488.84 | BR25: =BL25 -> -114498.42 | BS25: -25360.68 | BT25: -94332 | BU25: 12459.12 | BV25: -33067.98 | BW25: =BQ25 -> -2182488.84 | BX25: -1111101.06 | BY25: -1299853.87 | CD25: -1993736.03 | CE25: =BV25 -> -33067.98 | CF25: =-20971 -> -20971 | CG25: -26815.14 | CI25: -27223.84 | CL25: =CD25-CJ25 -> -1993736.03 | CM25: =CI25-CK25 -> -27223.84 | CN25: -29307.91964 | CP25: =SUM(CL25:CO25) -> -2050267.79 | CQ25: -2020960.05 | CR25: =CQ25-SUM(CD25,CI25) -> -0.1800000002
A26: 3 | C26: RSVA - Retail Transmission Network Charge | D26: 1584 | I26: 0 | N26: 0 | O26: 0 | S26: 0 | X26: 0 | Y26: 0 | AC26: 0 | AD26: 0 | AH26: 0 | AI26: 0 | AM26: 0 | AN26: 0 | AR26: 0 | AS26: 0 | AW26: 0 | AX26: 0 | BB26: 0 | BC26: 0 | BG26: -442645.43 | BH26: 0 | BL26: -57054.61 | BM26: -442645.43 | BN26: 236054.16 | BO26: -1265631.85 | BQ26: 1059040.58 | BR26: -57054.61 | BS26: 13915.41 | BT26: -52018 | BU26: 7775.35 | BV26: 16654.15 | BW26: 1059040.58 | BX26: 84994.77 | BY26: 822986.26 | CD26: 321049.09 | CE26: 16654.15 | CF26: 3908 | CG26: 14836.66 | CI26: 5725.49 | CL26: 321049.09 | CM26: 5725.49 | CN26: 4719.421623 | CP26: 331494.0016 | CQ26: 326774.63 | CR26: 0.04999999993
A27: 4 | C27: RSVA - Retail Transmission Connection Charge | D27: 1586 | I27: =E27+F27-G27+H27 -> 0 | N27: 0 | O27: 0 | S27: 0 | X27: 0 | Y27: 0 | AC27: 0 | AD27: 0 | AH27: 0 | AI27: 0 | AM27: 0 | AN27: 0 | AR27: 0 | AS27: 0 | AW27: 0 | AX27: 0 | BB27: 0 | BC27: 0 | BG27: -1778596.08 | BH27: 0 | BL27: -80561.87 | BM27: -1778596.08 | BN27: 140510.76 | BO27: -1318057.31 | BQ27: -320028.01 | BR27: -80561.87 | BS27: -5894.82 | BT27: -67061 | BU27: 8094.5 | BV27: -11301.19 | BW27: -320028.01 | BX27: -8916.35 | BY27: -460538.87 | CD27: 131594.51 | CE27: -11301.19 | CF27: 1787 | CG27: -12176.28 | CI27: 2662.09 | CL27: 131594.51 | CM27: 2662.09 | CN27: 1934.439297 | CP27: 136191.0393 | CQ27: 134256.8 | CR27: 0.2
A28: 5 | C28: RSVA - Power (excluding Global Adjustment) | D28: 1588 | I28: 0 | N28: 0 | O28: 0 | S28: 0 | X28: 0 | Y28: 0 | AC28: 0 | AD28: 0 | AH28: 0 | AI28: 0 | AM28: 0 | AN28: 0 | AR28: 0 | AS28: 0 | AW28: 0 | AX28: 0 | BB28: 0 | BC28: 0 | BG28: -1880493.68 | BH28: 0 | BL28: 2660.21 | BM28: -1880493.68 | BN28: 72378.59 | BO28: -999440.11 | BQ28: -808674.98 | BR28: 2660.21 | BS28: -12865.72 | BT28: 15136 | BU28: 6137.19 | BV28: -19204.32 | BW28: -808674.98 | BX28: 49630.34 | BY28: -881053.57 | CD28: 122008.93 | CE28: -19204.32 | CF28: -1141 | CG28: -19290.08 | CI28: -1055.24 | CL28: 122008.93 | CM28: -1055.24 | CN28: 1793.531271 | CP28: 122747.2213 | CQ28: 120953.99 | CR28: 0.2999999999
A29: 6 | C29: RSVA - Global Adjustment | D29: 1589 | I29: 0 | N29: 0 | O29: 0 | S29: 0 | X29: 0 | Y29: 0 | AC29: 0 | AD29: 0 | AH29: 0 | AI29: 0 | AM29: 0 | AN29: 0 | AR29: 0 | AS29: 0 | AW29: 0 | AX29: 0 | BB29: 0 | BC29: 0 | BG29: 1495448.47 | BH29: 0 | BL29: 18907.68 | BM29: 1495448.47 | BN29: 534148.17 | BO29: 464290.32 | BQ29: 1565306.32 | BR29: 18907.68 | BS29: 21055.9 | BT29: 2250 | BU29: -2852.09 | BV29: 34861.49 | BW29: 1565306.32 | BX29: -368087.25 | BY29: 1031158.15 | CD29: 166060.92 | CE29: 34861.49 | CF29: 13337 | CG29: 28963.63 | CI29: 19234.86 | CL29: 166060.92 | CM29: 19234.86 | CN29: 2441.095524 | CP29: 187736.8755 | CQ29: 185295.97 | CR29: 0.1899999999
A30: 7 | C30: Recovery of Regulatory Asset Balances | D30: 1590 | I30: 0 | N30: 0 | O30: 0 | S30: 0 | X30: 0 | Y30: 0 | AC30: 0 | AD30: 0 | AH30: 0 | AI30: 0 | AM30: 0 | AN30: 0 | AR30: 0 | AS30: 0 | AW30: 0 | AX30: 0 | BB30: 0 | BC30: 0 | BG30: -1453107 | BH30: =BB30 -> 0 | BL30: 946894 | BM30: -1453107 | BO30: -1453107 | BQ30: 0 | BR30: 946894 | BT30: 954551 | BU30: 7657 | BV30: 0 | BW30: 0 | CD30: 0 | CE30: 0 | CI30: 0 | CL30: 0 | CM30: 0 | CN30: 0 | CP30: 0 | CR30: 0
A31: 8 | C31: Disposition and Recovery/Refund of Regulatory Balances (2008)5 | D31: 1595 | I31: 0 | N31: 0 | O31: =I31 -> 0 | S31: 0 | X31: 0 | Y31: =S31 -> 0 | AC31: 0 | AD31: =X31 -> 0 | AH31: 0 | AI31: =AC31 -> 0 | AM31: 0 | AN31: =AH31 -> 0 | AR31: 0 | AS31: =AM31 -> 0 | AW31: 0 | AX31: =AR31 -> 0 | BB31: 0 | BC31: =AW31 -> 0 | BM31: =BG31 -> 0 | BQ31: 0 | BR31: =BL31 -> 0 | BV31: 0 | BW31: 0 | CD31: 0 | CE31: 0 | CI31: 0 | CL31: 0 | CM31: 0 | CN31: 0 | CP31: 0 | CR31: 0
A32: 9 | C32: Disposition and Recovery/Refund of Regulatory Balances (2009)5 | D32: 1595 | I32: 0 | N32: 0 | O32: 0 | S32: 0 | X32: 0 | Y32: 0 | AC32: 0 | AD32: 0 | AH32: 0 | AI32: 0 | AM32: 0 | AN32: 0 | AR32: 0 | AS32: 0 | AW32: 0 | AX32: 0 | BB32: 0 | BC32: 0 | BH32: 0 | BM32: =BG32 -> 0 | BQ32: 0 | BR32: =BL32 -> 0 | BV32: 0 | BW32: 0 | CD32: 0 | CE32: 0 | CI32: 0 | CL32: 0 | CM32: 0 | CN32: 0 | CP32: 0 | CR32: 0
A33: 9 | C33: Disposition and Recovery/Refund of Regulatory Balances (2010)5 | D33: 1595 | I33: =E33+F33-G33+H33 -> 0 | N33: =J33+K33-L33+M33 -> 0 | O33: =I33 -> 0 | S33: 0 | X33: 0 | Y33: =S33 -> 0 | AC33: 0 | AD33: =X33 -> 0 | AH33: 0 | AI33: =AC33 -> 0 | AM33: 0 | AN33: =AH33 -> 0 | AR33: 0 | AS33: =AM33 -> 0 | AW33: 0 | AX33: =AR33 -> 0 | BB33: 0 | BC33: =AW33 -> 0 | BH33: =BB33 -> 0 | BM33: =BG33 -> 0 | BQ33: 0 | BR33: =BL33 -> 0 | BV33: 0 | BW33: 0 | CD33: 0 | CE33: 0 | CI33: 0 | CL33: =CD33-CJ33 -> 0 | CM33: =CI33-CK33 -> 0 | CN33: =CL33*1.47%/12*6 -> 0 | CP33: 0 | CR33: =CQ33-SUM(CD33,CI33) -> 0
A34: 9 | C34: Disposition and Recovery/Refund of Regulatory Balances (2011)5 | D34: 1595 | I34: =E34+F34-G34+H34 -> 0 | N34: =J34+K34-L34+M34 -> 0 | O34: =I34 -> 0 | S34: 0 | X34: 0 | Y34: =S34 -> 0 | AC34: 0 | AD34: =X34 -> 0 | AH34: 0 | AI34: =AC34 -> 0 | AM34: 0 | AN34: =AH34 -> 0 | AR34: 0 | AS34: =AM34 -> 0 | AW34: 0 | AX34: =AR34 -> 0 | BB34: 0 | BC34: =AW34 -> 0 | BH34: =BB34 -> 0 | BM34: =BG34 -> 0 | BQ34: 0 | BR34: =BL34 -> 0 | BV34: 0 | BW34: 0 | CD34: 0 | CE34: 0 | CI34: 0 | CL34: =CD34-CJ34 -> 0 | CM34: =CI34-CK34 -> 0 | CN34: =CL34*1.47%/12*6 -> 0 | CP34: =SUM(CL34:CO34) -> 0 | CR34: =CQ34-SUM(CD34,CI34) -> 0
C36: Group 1 Sub-Total (including Account 1589 - Global Adjustment) | E36: =SUM(E24:E34) -> 0 | F36: =SUM(F24:F34) -> 0 | G36: 0 | H36: 0 | I36: 0 | J36: 0 | K36: 0 | L36: 0 | M36: 0 | N36: 0 | O36: 0 | P36: 0 | Q36: 0 | R36: 0 | S36: =SUM(S24:S34) -> 0 | X36: =SUM(X24:X34) -> 0 | Y36: 0 | Z36: 0 | AA36: 0 | AB36: 0 | AC36: =SUM(AC24:AC34) -> 0 | AD36: 0 | AE36: 0 | AF36: 0 | AG36: 0 | AH36: =SUM(AH24:AH34) -> 0 | AI36: 0 | AJ36: 0 | AK36: 0 | AL36: 0 | AM36: =SUM(AM24:AM34) -> 0 | AN36: 0 | AO36: 0 | AP36: 0 | AQ36: 0 | AR36: =SUM(AR24:AR34) -> 0 | AS36: 0 | AT36: 0 | AU36: 0 | AV36: 0 | AW36: =SUM(AW24:AW34) -> 0 | AX36: 0 | AY36: 0 | AZ36: 0 | BA36: 0 | BB36: =SUM(BB24:BB34) -> 0 | BC36: 0 | BD36: 0 | BE36: 0 | BF36: 0 | BG36: =SUM(BG24:BG34) -> -8172937.59 | BH36: 0 | BI36: 0 | BJ36: 0 | BK36: 0 | BL36: =SUM(BL24:BL34) -> 705696.45 | BM36: =SUM(BM24:BM34) -> -8172937.59 | BN36: 4010.34 | BO36: -6666101.19 | BP36: 0 | BQ36: =SUM(BQ24:BQ34) -> -1502826.06 | BR36: 705696.45 | BS36: -20530.54 | BT36: 753771 | BU36: 39673.38 | BV36: =SUM(BV24:BV34) -> -28931.71 | BW36: -1502826.06 | BX36: -1411938.9 | BY36: -1506836.66 | BZ36: 0 | CA36: 0 | CB36: =SUM(CB24:CB34) -> 0 | CC36: 0 | CD36: =SUM(CD24:CD34) -> -1407928.3 | CE36: -28931.71 | CF36: -4895 | CG36: -30551.6 | CH36: 0 | CI36: =SUM(CI24:CI34) -> -3275.11 | CJ36: 0 | CK36: 0 | CL36: -1407928.3 | CM36: -3275.11 | CN36: -20696.54601 | CO36: 0 | CP36: -1431899.956 | CQ36: -1411202.85 | CR36: 0.5599999996
C37: Group 1 Sub-Total (excluding Account 1589 - Global Adjustment) | E37: =E36-E38 -> 0 | F37: =F36-F38 -> 0 | G37: =G36-G38 -> 0 | H37: 0 | I37: 0 | J37: 0 | K37: 0 | L37: =L36-L38 -> 0 | M37: =M36-M38 -> 0 | N37: 0 | O37: 0 | P37: 0 | Q37: 0 | R37: 0 | S37: =S36-S38 -> 0 | X37: =X36-X38 -> 0 | Y37: 0 | Z37: 0 | AA37: 0 | AB37: 0 | AC37: =AC36-AC38 -> 0 | AD37: 0 | AE37: 0 | AF37: =AF36-AF38 -> 0 | AG37: =AG36-AG38 -> 0 | AH37: =AH36-AH38 -> 0 | AI37: 0 | AJ37: 0 | AK37: 0 | AL37: 0 | AM37: =AM36-AM38 -> 0 | AN37: 0 | AO37: 0 | AP37: =AP36-AP38 -> 0 | AQ37: =AQ36-AQ38 -> 0 | AR37: =AR36-AR38 -> 0 | AS37: 0 | AT37: 0 | AU37: 0 | AV37: 0 | AW37: =AW36-AW38 -> 0 | AX37: 0 | AY37: 0 | AZ37: =AZ36-AZ38 -> 0 | BA37: =BA36-BA38 -> 0 | BB37: =BB36-BB38 -> 0 | BC37: 0 | BD37: 0 | BE37: 0 | BF37: 0 | BG37: =BG36-BG38 -> -9668386.06 | BH37: 0 | BI37: 0 | BJ37: 0 | BK37: 0 | BL37: =BL36-BL38 -> 686788.77 | BM37: =BM36-BM38 -> -9668386.06 | BN37: -530137.83 | BO37: -7130391.51 | BP37: 0 | BQ37: =BQ36-BQ38 -> -3068132.38 | BR37: 686788.77 | BS37: -41586.44 | BT37: 751521 | BU37: 42525.47 | BV37: =BV36-BV38 -> -63793.2 | BW37: -3068132.38 | BX37: -1043851.65 | BY37: -2537994.81 | BZ37: 0 | CA37: 0 | CB37: 0 | CC37: =CC36-CC38 -> 0 | CD37: =CD36-CD38 -> -1573989.22 | CE37: -63793.2 | CF37: -18232 | CG37: -59515.23 | CH37: 0 | CI37: =CI36-CI38 -> -22509.97 | CJ37: 0 | CK37: 0 | CL37: -1573989.22 | CM37: -22509.97 | CN37: -23137.64153 | CO37: 0 | CP37: -1619636.832 | CQ37: =CQ36-CQ38 -> -1596498.82 | CR37: 0.3699999994
C38: =C29 -> RSVA - Global Adjustment | D38: 1589 | E38: =E29 -> 0 | F38: =F29 -> 0 | G38: =G29 -> 0 | H38: 0 | I38: 0 | J38: 0 | K38: 0 | L38: =L29 -> 0 | M38: =M29 -> 0 | N38: 0 | O38: 0 | P38: 0 | Q38: 0 | R38: 0 | S38: =S29 -> 0 | X38: =X29 -> 0 | Y38: 0 | Z38: 0 | AA38: 0 | AB38: 0 | AC38: =AC29 -> 0 | AD38: 0 | AE38: 0 | AF38: 0 | AG38: 0 | AH38: =AH29 -> 0 | AI38: 0 | AJ38: 0 | AK38: 0 | AL38: 0 | AM38: =AM29 -> 0 | AN38: 0 | AO38: 0 | AP38: =AP29 -> 0 | AQ38: =AQ29 -> 0 | AR38: =AR29 -> 0 | AS38: 0 | AT38: 0 | AU38: 0 | AV38: 0 | AW38: =AW29 -> 0 | AX38: 0 | AY38: 0 | AZ38: 0 | BA38: 0 | BB38: =BB29 -> 0 | BC38: 0 | BD38: 0 | BE38: 0 | BF38: 0 | BG38: =BG29 -> 1495448.47 | BH38: 0 | BI38: 0 | BJ38: 0 | BK38: 0 | BL38: =BL29 -> 18907.68 | BM38: =BM29 -> 1495448.47 | BN38: 534148.17 | BO38: 464290.32 | BP38: 0 | BQ38: =BQ29 -> 1565306.32 | BR38: 18907.68 | BS38: 21055.9 | BT38: 2250 | BU38: -2852.09 | BV38: =BV29 -> 34861.49 | BW38: 1565306.32 | BX38: -368087.25 | BY38: 1031158.15 | BZ38: 0 | CA38: 0 | CB38: 0 | CC38: =CC29 -> 0 | CD38: =CD29 -> 166060.92 | CE38: 34861.49 | CF38: 13337 | CG38: 28963.63 | CH38: 0 | CI38: =CI29 -> 19234.86 | CJ38: 0 | CK38: 0 | CL38: 166060.92 | CM38: 19234.86 | CN38: 2441.095524 | CO38: 0 | CP38: 187736.8755 | CQ38: =CQ29 -> 185295.97 | CR38: 0.1899999999
A41: 31 | C41: Deferred Payments in Lieu of Taxes | D41: 1562 | I41: =E41+F41-G41+H41 -> 0 | N41: =J41+K41-L41+M41 -> 0 | O41: =I41 -> 0 | S41: =O41+P41-Q41+R41 -> 0 | X41: =T41+U41-V41+W41 -> 0 | Y41: =S41 -> 0 | AC41: =Y41+Z41-AA41+AB41 -> 0 | AD41: =X41 -> 0 | AH41: =AD41+AE41-AF41+AG41 -> 0 | AI41: =AC41 -> 0 | AM41: =AI41+AJ41-AK41+AL41 -> 0 | AN41: =AH41 -> 0 | AR41: =AN41+AO41-AP41+AQ41 -> 0 | AS41: =AM41 -> 0 | AW41: =AS41+AT41-AU41+AV41 -> 0 | AX41: =AR41 -> 0 | BB41: =AX41+AY41-AZ41+BA41 -> 0 | BC41: =AW41 -> 0 | BG41: -1426714 | BH41: =BB41 -> 0 | BL41: -232629.27 | BM41: =BG41 -> -1426714 | BP41: -87977 | BQ41: =BM41+BN41-BO41+SUM(BP41:BP41) -> -1514691 | BR41: =BL41 -> -232629.27 | BS41: -20880 | BU41: -11150.73 | BV41: =BR41+BS41-BT41+BU41 -> -264660 | BW41: =BQ41 -> -1514691 | BY41: -1514691 | CD41: =BW41+BX41-BY41+SUM(BZ41:CC41) -> 0 | CE41: =BV41 -> -264660 | CG41: -264660 | CI41: =CE41+CF41-CG41+CH41 -> 0 | CL41: =CD41-CJ41 -> 0 | CM41: =CI41-CK41 -> 0 | CN41: =CL41*1.47% -> 0 | CO41: =CM41*1.47% -> 0 | CP41: 0 | CR41: 0
CR42: 0
C43: Total of Group 1 and Account 1562 | E43: =SUM(E41,E36) -> 0 | F43: =SUM(F41,F36) -> 0 | G43: =SUM(G41,G36) -> 0 | H43: 0 | I43: 0 | J43: 0 | K43: 0 | L43: 0 | M43: 0 | N43: 0 | O43: 0 | P43: 0 | Q43: 0 | R43: 0 | S43: =SUM(S41,S36) -> 0 | X43: =SUM(X41,X36) -> 0 | Y43: 0 | Z43: 0 | AA43: 0 | AB43: 0 | AC43: =SUM(AC41,AC36) -> 0 | AD43: 0 | AE43: 0 | AF43: 0 | AG43: 0 | AH43: =SUM(AH41,AH36) -> 0 | AI43: 0 | AJ43: 0 | AK43: 0 | AL43: 0 | AM43: =SUM(AM41,AM36) -> 0 | AN43: 0 | AO43: 0 | AP43: 0 | AQ43: 0 | AR43: =SUM(AR41,AR36) -> 0 | AS43: 0 | AT43: 0 | AU43: 0 | AV43: 0 | AW43: =SUM(AW41,AW36) -> 0 | AX43: 0 | AY43: 0 | AZ43: 0 | BA43: 0 | BB43: =SUM(BB41,BB36) -> 0 | BC43: 0 | BD43: 0 | BE43: 0 | BF43: 0 | BG43: =SUM(BG41,BG36) -> -9599651.59 | BH43: 0 | BI43: 0 | BJ43: 0 | BK43: 0 | BL43: =SUM(BL41,BL36) -> 473067.18 | BM43: =SUM(BM41,BM36) -> -9599651.59 | BN43: 4010.34 | BO43: -6666101.19 | BP43: -87977 | BQ43: =SUM(BQ41,BQ36) -> -3017517.06 | BR43: 473067.18 | BS43: -41410.54 | BT43: 753771 | BU43: 28522.65 | BV43: =SUM(BV41,BV36) -> -293591.71 | BW43: -3017517.06 | BX43: -1411938.9 | BY43: -3021527.66 | BZ43: 0 | CA43: 0 | CB43: 0 | CC43: =SUM(CC41,CC36) -> 0 | CD43: =SUM(CD41,CD36) -> -1407928.3 | CE43: -293591.71 | CF43: -4895 | CG43: -295211.6 | CH43: 0 | CI43: =SUM(CI41,CI36) -> -3275.11 | CJ43: 0 | CK43: 0 | CL43: -1407928.3 | CM43: -3275.11 | CN43: -20696.54601 | CO43: 0 | CP43: -1431899.956 | CQ43: -1411202.85 | CR43: 0.5599999996
A45: 34 | C45: Special Purpose Charge Assessment Variance Account4 | D45: 1521
C47: LRAM Variance Account6 | D47: 1568 | BQ47: =BM47+BN47-BO47+SUM(BP47:BP47) -> 0 | BV47: =BR47+BS47-BT47+BU47 -> 0 | BW47: =BQ47 -> 0 | BX47: 68462 | CD47: =BW47+BX47-BY47+SUM(BZ47:CC47) -> 68462 | CE47: =BV47 -> 0 | CI47: =CE47+CF47-CG47+CH47 -> 0 | CL47: =CD47-CJ47 -> 68462 | CM47: =CI47-CK47 -> 0 | CO47: -68462 | CP47: =SUM(CL47:CO47) -> 0 | CQ47: 68462 | CR47: =CQ47-SUM(CD47,CI47) -> 0
C49: Total including Accounts 1562 and 1568 | E49: =E45+E43+E47 -> 0 | F49: =F45+F43+F47 -> 0 | G49: =G45+G43+G47 -> 0 | H49: 0 | I49: 0 | J49: 0 | K49: 0 | L49: 0 | M49: 0 | N49: 0 | O49: 0 | P49: 0 | Q49: 0 | R49: 0 | S49: =S45+S43+S47 -> 0 | X49: =X45+X43+X47 -> 0 | Y49: 0 | Z49: 0 | AA49: 0 | AB49: 0 | AC49: =AC45+AC43+AC47 -> 0 | AD49: 0 | AE49: 0 | AF49: 0 | AG49: 0 | AH49: =AH45+AH43+AH47 -> 0 | AI49: 0 | AJ49: 0 | AK49: =AK43+AK47 -> 0 | AL49: =AL43+AL47 -> 0 | AM49: =AM43+AM47 -> 0 | AN49: 0 | AO49: 0 | AP49: 0 | AQ49: 0 | AR49: =AR43+AR47 -> 0 | AS49: 0 | AT49: 0 | AU49: 0 | AV49: 0 | AW49: =AW43+AW47 -> 0 | AX49: 0 | AY49: 0 | AZ49: 0 | BA49: 0 | BB49: =BB43+BB47 -> 0 | BC49: 0 | BD49: 0 | BE49: 0 | BF49: 0 | BG49: =BG43+BG47 -> -9599651.59 | BH49: 0 | BI49: 0 | BJ49: 0 | BK49: 0 | BL49: =BL43+BL47 -> 473067.18 | BM49: =BM43+BM47 -> -9599651.59 | BN49: 4010.34 | BO49: -6666101.19 | BP49: -87977 | BQ49: =BQ43+BQ47 -> -3017517.06 | BR49: 473067.18 | BS49: -41410.54 | BT49: 753771 | BU49: 28522.65 | BV49: =BV43+BV47 -> -293591.71 | BW49: -3017517.06 | BX49: -1343476.9 | BY49: -3021527.66 | BZ49: 0 | CA49: 0 | CB49: 0 | CC49: 0 | CD49: =CD43+CD47 -> -1339466.3 | CE49: -293591.71 | CF49: -4895 | CG49: -295211.6 | CH49: 0 | CI49: =CI43+CI47 -> -3275.11 | CJ49: 0 | CK49: 0 | CL49: -1339466.3 | CM49: -3275.11 | CN49: -20696.54601 | CO49: -68462 | CP49: -1431899.956 | CQ49: -1342740.85 | CR49: 0.5599999996
C52: For all Board-Approved dispositions, please ensure that the disposition amount has the same sign (e.g: debit balances are to have a positive figure and credit balance are to have a negative figure) as per the related Board decision.
B55: 1 | C55: Please provide explanations for the nature of the adjustments. If the adjustment relates to previously Board Approved disposed balances, please provide amounts for adjustments and include supporting documentations.
B56: 2 | C56: For RSVA accounts only, report the net variance to the account during the year. For all other accounts, record the transactions during the year.
B57: 3 | C57: If the LDC’s 2013 rate year begins January 1, 2014, the projected interest is recorded from January 1, 2013 to December 31, 2013 on the December 31, 2012 balance adjusted for the disposed balances approved by the Board in the 2013 rate decision. If the LDC’s 2014 rate year begins May 1, 2014 the projected interest is recorded from January 1, 2013 to April 30, 2014 on the December 31, 2012 balance adjusted for the disposed balances approved by the Board in the 2013 rate decision.
B58: 4 | C58: Applicants that did not have the balance in Account 1521 cleared by the Board in the 2012 rate proceedings are expected to file to dispose of Account 1521 in the 2013 rate proceedings. No Account 1521 balance is to be filed for clearance in the 2013 rate proceedings for those distributors that had account 1521 cleared by the Board in the 2012 rate proceedings. In accordance with section 8 of the Special Purpose Charge (“SPC”) Regulation, Ontario Regulation 66/10, distributors were required to apply to the Board no later than April 15, 2012 for an order authorizing the distributor to clear the balance in Account 1521. As per the Board’s April 23, 2010 letter, the Board stated that it expected that requests for disposition of the balance in Account 1521 were to be addressed as part of the proceedings to set rates for the 2012 rate year, except in cases where this approach would result in non-compliance with the timeline set out in section 8 of the SPC Regulation.
B59: 5 | C59: Include Account 1595 as part of Group 1 accounts (lines 31, 32, 33 and 34) for review and disposition if the recovery (or refund) period has been completed. If the recovery (or refund) period has not been completed, do not include the respective balance in Account 1595 for disposition at this time.

Sheet 6. Billing Det. for Def-Var
A13: In the green shaded cells, enter the most recent Board Approved volumetric forecast. If there is a material difference between the latest Board-approved volumetric forecast and the most recent 12-month actual volumetric data, use the most recent 12-month actual data. Do not enter data for the MicroFit class.
E15: Billed kWh for Non-RPP Customers | F15: Estimated kW for Non-RPP Customers | G15: Distribution Revenue 1 | H15: 1590 Recovery Share Proportion* | I15: 1595 Recovery Share Proportion (2008) 2 | J15: 1595 Recovery Share Proportion (2009) 2 | K15: 1595 Recovery Share Proportion (2010) 2 | L15: 1595 Recovery Share Proportion (2011) 2 | M15: 1568 LRAM Variance Account Class Allocation ($ amounts)
A16: Rate Class | B16: Unit | C16: Metered kWh | D16: Metered kW
A17: RESIDENTIAL | B17: $/kWh | C17: 350407180 | E17: 24528503 | F17: =IF(ISERROR(D17/C17*E17), 0, D17/C17*E17) -> 0 | G17: 6458704 | H17: 0.42
A18: GENERAL SERVICE LESS THAN 50 KW | B18: $/kWh | C18: 75150446 | E18: 10596213 | F18: 0 | G18: 1046759 | H18: 0.09
A19: GENERAL SERVICE 50 TO 4,999 KW | B19: $/kW | C19: 414547692 | D19: 966330 | E19: 366460160 | F19: 854235.7206 | G19: 2343490 | H19: 0.47
A20: UNMETERED SCATTERED LOAD | B20: $/kWh | C20: 2493809 | F20: 0 | G20: 44457
A21: SENTINEL LIGHTING | B21: $/kW | C21: 43361 | D21: 120 | F21: 0 | G21: 1393
A22: STREET LIGHTING | B22: $/kW | C22: 9090771 | D22: 24361 | E22: 9090771 | F22: 24361 | G22: 130829 | H22: 0.02
A23: microFIT
B25: Total | C25: =SUM(C17:C23) -> 851733259 | D25: =SUM(D17:D23) -> 990811 | E25: 410675647 | F25: 878596.7206 | G25: 10025632 | H25: 1 | I25: 0 | J25: 0 | K25: 0 | L25: 0 | M25: 0
L26: Balance as per Sheet 5 | M26: ='5. 2014 Continuity Schedule'!CP47 -> 0
L27: Variance | M27: =M25-M26 -> 0
A29: Threshold Test
A30: Total Claim (including Account 1521, 1562 and 1568) | B30: ='5. 2014 Continuity Schedule'!CP49 -> -1431899.956
A31: Total Claim for Threshold Test (All Group 1 Accounts) | B31: ='5. 2014 Continuity Schedule'!CP36 -> -1431899.956
A32: Threshold Test (Total claim per kWh) 3 | B32: =IF(ISERROR(B31/C25), 0, B31/C25) -> -0.001681160083 | D32: =IF(AND(B32>-0.001,B32<0.001),"Claim does not meet the threshold test. If data has been entered on Sheet 5 for Accounts 1521 and 1562, the model will only dispose of Accounts 1521 and 1562.","") -> 
A36: 1 For Account 1562, the allocation to customer classes should be performed on the basis of the test year distribution revenue allocation to customer classes found in the Applicant’s Cost of Service application that was most recently approved at the time of disposition of the 1562 account balances
A38: 2 Residual Account balance to be allocated to rate classes in proportion to the recovery share as established when rate riders were implemented.
A39: 3 The Threshold Test does not include the amount in 1521, 1562 nor 1568.

Sheet 6. hidden (hidden)
E1: Billed kWh for Non-RPP Customers | F1: Estimated kW for Non-RPP Customers | G1: Distribution Revenue 1 | H1: 1590 Recovery Share Proportion* | I1: 1595 Recovery Share Proportion (2008) 2 | J1: 1595 Recovery Share Proportion (2009) 2 | K1: 1595 Recovery Share Proportion (2010) 2 | L1: 1595 Recovery Share Proportion (2011) 2 | M1: 1568 LRAM Variance Account Class Allocation
A2: Rate Class | B2: Unit | C2: Metered kWh | D2: Metered kW
A3: RESIDENTIAL | B3: $/kWh | C3: 350407180 | D3: 0 | E3: 24528503 | G3: 6458704 | H3: 0.42 | I3: 0 | J3: 0 | K3: 0 | L3: 0 | M3: 0
A4: GENERAL SERVICE LESS THAN 50 KW | B4: $/kWh | C4: 75150446 | D4: 0 | E4: 10596213 | G4: 1046759 | H4: 0.09 | I4: 0 | J4: 0 | K4: 0 | L4: 0 | M4: 0
A5: GENERAL SERVICE 50 TO 4,999 KW | B5: $/kW | C5: 414547692 | D5: 966330 | E5: 366460160 | G5: 2343490 | H5: 0.47 | I5: 0 | J5: 0 | K5: 0 | L5: 0 | M5: 0
A6: UNMETERED SCATTERED LOAD | B6: $/kWh | C6: 2493809 | D6: 0 | E6: 0 | G6: 44457 | H6: 0 | I6: 0 | J6: 0 | K6: 0 | L6: 0 | M6: 0
A7: SENTINEL LIGHTING | B7: $/kW | C7: 43361 | D7: 120 | E7: 0 | G7: 1393 | H7: 0 | I7: 0 | J7: 0 | K7: 0 | L7: 0 | M7: 0
A8: STREET LIGHTING | B8: $/kW | C8: 9090771 | D8: 24361 | E8: 9090771 | G8: 130829 | H8: 0.02 | I8: 0 | J8: 0 | K8: 0 | L8: 0 | M8: 0
A9: microFIT | B9: 0 | C9: 0 | D9: 0 | E9: 0 | G9: 0 | H9: 0 | I9: 0 | J9: 0 | K9: 0 | L9: 0 | M9: 0

Sheet 7. Allocating Def-Var Balances
A13: No input required. This workshseet allocates the deferral/variance account balances (Group 1, 1521, 1588 GA, 1562 and 1568) to the appropriate classes as per the EDDVAR Report dated July 31, 2009
A15: Allocation of Group 1 Accounts (including Accounts 1521, 1562, 1568)
C16: % of Total kWh | D16: % of Total non-RPP kWh | E16: % of Total Distribution Revenue | M16: 1595 (2008) | N16: 1595 (2009) | O16: 1595 (2010) | P16: 1595 (2011) | Q16: 1562 | R16: 1568
A17: Rate Class | F17: 1550 | G17: 1580 | H17: 1584 | I17: 1586 | J17: 1588* | K17: 1588 GA | L17: 1590
A19: RESIDENTIAL | C19: =VLOOKUP(A19, '6. Billing Det. for Def-Var'!A17:D23, 3,0)/'6. Billing Det. for Def-Var'!C25 -> 0.411404834 | D19: =VLOOKUP(A19, '6. Billing Det. for Def-Var'!A17:E23, 5,0)/'6. Billing Det. for Def-Var'!E25 -> 0.05972719147 | E19: =VLOOKUP(A19, '6. Billing Det. for Def-Var'!A17:G23, 7,0)/'6. Billing Det. for Def-Var'!G25 -> 0.6442191375 | F19: =C19* '5. 2014 Continuity Schedule'!CP24 -> -65743.02897 | G19: =C19* '5. 2014 Continuity Schedule'!CP25 -> -843490.0796 | H19: =C19* '5. 2014 Continuity Schedule'!CP26 -> 136378.2347 | I19: =C19* '5. 2014 Continuity Schedule'!CP27 -> 56029.65191 | J19: =C19* '5. 2014 Continuity Schedule'!CP28 -> 50498.80019 | K19: =D19* '5. 2014 Continuity Schedule'!CP29 -> 11212.99631 | L19: ='6. Billing Det. for Def-Var'!H17* '5. 2014 Continuity Schedule'!CP30 -> 0 | M19: ='6. Billing Det. for Def-Var'!I17* '5. 2014 Continuity Schedule'!CP31 -> 0 | N19: ='6. Billing Det. for Def-Var'!J17* '5. 2014 Continuity Schedule'!CP32 -> 0 | O19: ='6. Billing Det. for Def-Var'!K17* '5. 2014 Continuity Schedule'!CP33 -> 0 | P19: ='6. Billing Det. for Def-Var'!K17* '5. 2014 Continuity Schedule'!CP34 -> 0 | Q19: =E19* '5. 2014 Continuity Schedule'!CP41 -> 0 | R19: ='6. Billing Det. for Def-Var'!M17 -> 0
A20: GENERAL SERVICE LESS THAN 50 KW | C20: =VLOOKUP(A20, '6. Billing Det. for Def-Var'!A17:D23, 3,0)/'6. Billing Det. for Def-Var'!C25 -> 0.08823237229 | D20: =VLOOKUP(A20, '6. Billing Det. for Def-Var'!A17:E23, 5,0)/'6. Billing Det. for Def-Var'!E25 -> 0.02580190249 | E20: =VLOOKUP(A20, '6. Billing Det. for Def-Var'!A17:G23, 7,0)/'6. Billing Det. for Def-Var'!G25 -> 0.1044082807 | F20: =C20* '5. 2014 Continuity Schedule'!CP24 -> -14099.64815 | G20: =C20* '5. 2014 Continuity Schedule'!CP25 -> -180899.9909 | H20: =C20* '5. 2014 Continuity Schedule'!CP26 -> 29248.50216 | I20: =C20* '5. 2014 Continuity Schedule'!CP27 -> 12016.45848 | J20: =C20* '5. 2014 Continuity Schedule'!CP28 -> 10830.27852 | K20: =D20* '5. 2014 Continuity Schedule'!CP29 -> 4843.968557 | L20: ='6. Billing Det. for Def-Var'!H18* '5. 2014 Continuity Schedule'!CP30 -> 0 | M20: ='6. Billing Det. for Def-Var'!I18* '5. 2014 Continuity Schedule'!CP31 -> 0 | N20: ='6. Billing Det. for Def-Var'!J18* '5. 2014 Continuity Schedule'!CP32 -> 0 | O20: ='6. Billing Det. for Def-Var'!K18* '5. 2014 Continuity Schedule'!CP33 -> 0 | P20: ='6. Billing Det. for Def-Var'!K18* '5. 2014 Continuity Schedule'!CP34 -> 0 | Q20: =E20* '5. 2014 Continuity Schedule'!CP41 -> 0 | R20: ='6. Billing Det. for Def-Var'!M18 -> 0
A21: GENERAL SERVICE 50 TO 4,999 KW | C21: =VLOOKUP(A21, '6. Billing Det. for Def-Var'!A17:D23, 3,0)/'6. Billing Det. for Def-Var'!C25 -> 0.4867107015 | D21: =VLOOKUP(A21, '6. Billing Det. for Def-Var'!A17:E23, 5,0)/'6. Billing Det. for Def-Var'!E25 -> 0.8923347724 | E21: =VLOOKUP(A21, '6. Billing Det. for Def-Var'!A17:G23, 7,0)/'6. Billing Det. for Def-Var'!G25 -> 0.2337498524 | F21: =C21* '5. 2014 Continuity Schedule'!CP24 -> -77777.00482 | G21: =C21* '5. 2014 Continuity Schedule'!CP25 -> -997887.2742 | H21: =C21* '5. 2014 Continuity Schedule'!CP26 -> 161341.6781 | I21: =C21* '5. 2014 Continuity Schedule'!CP27 -> 66285.63628 | J21: =C21* '5. 2014 Continuity Schedule'!CP28 -> 59742.38618 | K21: =D21* '5. 2014 Continuity Schedule'!CP29 -> 167524.1421 | L21: ='6. Billing Det. for Def-Var'!H19* '5. 2014 Continuity Schedule'!CP30 -> 0 | M21: ='6. Billing Det. for Def-Var'!I19* '5. 2014 Continuity Schedule'!CP31 -> 0 | N21: ='6. Billing Det. for Def-Var'!J19* '5. 2014 Continuity Schedule'!CP32 -> 0 | O21: ='6. Billing Det. for Def-Var'!K19* '5. 2014 Continuity Schedule'!CP33 -> 0 | P21: ='6. Billing Det. for Def-Var'!K19* '5. 2014 Continuity Schedule'!CP34 -> 0 | Q21: =E21* '5. 2014 Continuity Schedule'!CP41 -> 0 | R21: ='6. Billing Det. for Def-Var'!M19 -> 0
A22: UNMETERED SCATTERED LOAD | C22: =VLOOKUP(A22, '6. Billing Det. for Def-Var'!A17:D23, 3,0)/'6. Billing Det. for Def-Var'!C25 -> 0.002927922532 | D22: =VLOOKUP(A22, '6. Billing Det. for Def-Var'!A17:E23, 5,0)/'6. Billing Det. for Def-Var'!E25 -> 0 | E22: =VLOOKUP(A22, '6. Billing Det. for Def-Var'!A17:G23, 7,0)/'6. Billing Det. for Def-Var'!G25 -> 0.004434333915 | F22: =C22* '5. 2014 Continuity Schedule'!CP24 -> -467.8858388 | G22: =C22* '5. 2014 Continuity Schedule'!CP25 -> -6003.025257 | H22: =C22* '5. 2014 Continuity Schedule'!CP26 -> 970.5887565 | I22: =C22* '5. 2014 Continuity Schedule'!CP27 -> 398.7568126 | J22: =C22* '5. 2014 Continuity Schedule'!CP28 -> 359.3943549 | K22: =D22* '5. 2014 Continuity Schedule'!CP29 -> 0 | L22: ='6. Billing Det. for Def-Var'!H20* '5. 2014 Continuity Schedule'!CP30 -> 0 | M22: ='6. Billing Det. for Def-Var'!I20* '5. 2014 Continuity Schedule'!CP31 -> 0 | N22: ='6. Billing Det. for Def-Var'!J20* '5. 2014 Continuity Schedule'!CP32 -> 0 | O22: ='6. Billing Det. for Def-Var'!K20* '5. 2014 Continuity Schedule'!CP33 -> 0 | P22: ='6. Billing Det. for Def-Var'!K20* '5. 2014 Continuity Schedule'!CP34 -> 0 | Q22: =E22* '5. 2014 Continuity Schedule'!CP41 -> 0 | R22: ='6. Billing Det. for Def-Var'!M20 -> 0
A23: SENTINEL LIGHTING | C23: =VLOOKUP(A23, '6. Billing Det. for Def-Var'!A17:D23, 3,0)/'6. Billing Det. for Def-Var'!C25 -> 5.090913093e-05 | D23: =VLOOKUP(A23, '6. Billing Det. for Def-Var'!A17:E23, 5,0)/'6. Billing Det. for Def-Var'!E25 -> 0 | E23: =VLOOKUP(A23, '6. Billing Det. for Def-Var'!A17:G23, 7,0)/'6. Billing Det. for Def-Var'!G25 -> 0.0001389438591 | F23: =C23* '5. 2014 Continuity Schedule'!CP24 -> -8.135345512 | G23: =C23* '5. 2014 Continuity Schedule'!CP25 -> -104.3773513 | H23: =C23* '5. 2014 Continuity Schedule'!CP26 -> 16.87607153 | I23: =C23* '5. 2014 Continuity Schedule'!CP27 -> 6.933367451 | J23: =C23* '5. 2014 Continuity Schedule'!CP28 -> 6.248954359 | K23: =D23* '5. 2014 Continuity Schedule'!CP29 -> 0 | L23: ='6. Billing Det. for Def-Var'!H21* '5. 2014 Continuity Schedule'!CP30 -> 0 | M23: ='6. Billing Det. for Def-Var'!I21* '5. 2014 Continuity Schedule'!CP31 -> 0 | N23: ='6. Billing Det. for Def-Var'!J21* '5. 2014 Continuity Schedule'!CP32 -> 0 | O23: ='6. Billing Det. for Def-Var'!K21* '5. 2014 Continuity Schedule'!CP33 -> 0 | P23: ='6. Billing Det. for Def-Var'!K21* '5. 2014 Continuity Schedule'!CP34 -> 0 | Q23: =E23* '5. 2014 Continuity Schedule'!CP41 -> 0 | R23: ='6. Billing Det. for Def-Var'!M21 -> 0
A24: STREET LIGHTING | C24: =VLOOKUP(A24, '6. Billing Det. for Def-Var'!A17:D23, 3,0)/'6. Billing Det. for Def-Var'!C25 -> 0.01067326056 | D24: =VLOOKUP(A24, '6. Billing Det. for Def-Var'!A17:E23, 5,0)/'6. Billing Det. for Def-Var'!E25 -> 0.02213613363 | E24: =VLOOKUP(A24, '6. Billing Det. for Def-Var'!A17:G23, 7,0)/'6. Billing Det. for Def-Var'!G25 -> 0.01304945165 | F24: =C24* '5. 2014 Continuity Schedule'!CP24 -> -1705.600956 | G24: =C24* '5. 2014 Continuity Schedule'!CP25 -> -21883.04233 | H24: =C24* '5. 2014 Continuity Schedule'!CP26 -> 3538.121853 | I24: =C24* '5. 2014 Continuity Schedule'!CP27 -> 1453.602448 | J24: =C24* '5. 2014 Continuity Schedule'!CP28 -> 1310.113076 | K24: =D24* '5. 2014 Continuity Schedule'!CP29 -> 4155.768564 | L24: ='6. Billing Det. for Def-Var'!H22* '5. 2014 Continuity Schedule'!CP30 -> 0 | M24: ='6. Billing Det. for Def-Var'!I22* '5. 2014 Continuity Schedule'!CP31 -> 0 | N24: ='6. Billing Det. for Def-Var'!J22* '5. 2014 Continuity Schedule'!CP32 -> 0 | O24: ='6. Billing Det. for Def-Var'!K22* '5. 2014 Continuity Schedule'!CP33 -> 0 | P24: ='6. Billing Det. for Def-Var'!K22* '5. 2014 Continuity Schedule'!CP34 -> 0 | Q24: =E24* '5. 2014 Continuity Schedule'!CP41 -> 0 | R24: ='6. Billing Det. for Def-Var'!M22 -> 0
A25: microFIT | C25: 0 | D25: 0 | E25: 0 | F25: =C25* '5. 2014 Continuity Schedule'!CP24 -> 0 | G25: =C25* '5. 2014 Continuity Schedule'!CP25 -> 0 | H25: =C25* '5. 2014 Continuity Schedule'!CP26 -> 0 | I25: =C25* '5. 2014 Continuity Schedule'!CP27 -> 0 | J25: =C25* '5. 2014 Continuity Schedule'!CP28 -> 0 | K25: =D25* '5. 2014 Continuity Schedule'!CP29 -> 0 | L25: ='6. Billing Det. for Def-Var'!H23* '5. 2014 Continuity Schedule'!CP30 -> 0 | M25: ='6. Billing Det. for Def-Var'!I23* '5. 2014 Continuity Schedule'!CP31 -> 0 | N25: ='6. Billing Det. for Def-Var'!J23* '5. 2014 Continuity Schedule'!CP32 -> 0 | O25: ='6. Billing Det. for Def-Var'!K23* '5. 2014 Continuity Schedule'!CP33 -> 0 | P25: ='6. Billing Det. for Def-Var'!K23* '5. 2014 Continuity Schedule'!CP34 -> 0 | Q25: =E25* '5. 2014 Continuity Schedule'!CP41 -> 0 | R25: ='6. Billing Det. for Def-Var'!M23 -> 0
A27: Total | C27: =SUM(C19:C25) -> 1 | D27: 1 | E27: 1 | F27: -159801.3041 | G27: -2050267.79 | H27: 331494.0016 | I27: 136191.0393 | J27: 122747.2213 | K27: 187736.8755 | L27: 0 | M27: 0 | N27: 0 | O27: 0 | P27: 0 | Q27: 0 | R27: 0
A30: * RSVA - Power (Excluding Global Adjustment)

Sheet 8. Calculation of Def-Var RR
A12: Input required at cell C15 only. This workshseet calculates rate riders related to the Deferral/Variance Account Disposition (if applicable) and associated rate riders for the global adjustment sub-account. Rate Riders will not be generated for the MicroFit class.
A15: Please indicate the Rate Rider Recovery Period (in years) | C15: 2
E17: Balance of Accounts Allocated by kWh/kW (RPP) or Distribution Revenue | F17: Deferral/Variance Account Rate Rider | G17: Allocation of Balance in Account 1588 Global Adjustment Sub-Account | H17: Billed kWh or Estimated kW for Non-RPP Customers | I17: Global Adjustment Rate Rider
A18: Rate Class | B18: Unit | C18: Billed kWh | D18: Billed kW or kVA
A20: RESIDENTIAL | B20: $/kWh | C20: 350407180 | E20: =SUM('7. Allocating Def-Var Balances'!F19:J19)+SUM('7. Allocating Def-Var Balances'!L19:R19) -> -666326.4218 | F20: -0.001 | G20: 11212.99631 | H20: 24528503 | I20: 0.000228570743
A21: GENERAL SERVICE LESS THAN 50 KW | B21: $/kWh | C21: 75150446 | E21: =SUM('7. Allocating Def-Var Balances'!F20:J20)+SUM('7. Allocating Def-Var Balances'!L20:R20) -> -142904.3999 | F21: -0.001 | G21: 4843.968557 | H21: 10596213 | I21: 0.000228570743
A22: GENERAL SERVICE 50 TO 4,999 KW | B22: $/kW | C22: 414547692 | D22: 966330 | E22: =SUM('7. Allocating Def-Var Balances'!F21:J21)+SUM('7. Allocating Def-Var Balances'!L21:R21) -> -788294.5785 | F22: -0.4079 | G22: 167524.1421 | H22: 854235.7206 | I22: 0.09805498532
A23: UNMETERED SCATTERED LOAD | B23: $/kWh | C23: 2493809 | E23: =SUM('7. Allocating Def-Var Balances'!F22:J22)+SUM('7. Allocating Def-Var Balances'!L22:R22) -> -4742.171172 | F23: -0.001 | G23: 0 | I23: 0
A24: SENTINEL LIGHTING | B24: $/kW | C24: 43361 | D24: 120 | E24: =SUM('7. Allocating Def-Var Balances'!F23:J23)+SUM('7. Allocating Def-Var Balances'!L23:R23) -> -82.45430352 | F24: -0.3436 | G24: 0 | H24: 0 | I24: 0
A25: STREET LIGHTING | B25: $/kW | C25: 9090771 | D25: 24361 | E25: =SUM('7. Allocating Def-Var Balances'!F24:J24)+SUM('7. Allocating Def-Var Balances'!L24:R24) -> -17286.80591 | F25: -0.3548 | G25: 4155.768564 | H25: 24361 | I25: 0.08529552489
A26: microFIT
A27: Total | C27: =SUM(C20:C26) -> 851733259 | D27: =SUM(D20:D26) -> 990811 | E27: =SUM(E20:E26) -> -1619636.832 | G27: =SUM(G20:G26) -> 187736.8755 | H27: =SUM(H20:H26) -> 36003312.72

Sheet 9. Rev2Cost_GDPIPI
Z1: 0
A12: If applicable, please enter any adjustments related to the revenue to cost ratio model into columns C and E. The Price Escalator has been set at the 2013 values and will be updated by Board staff. The Stretch Factor Value may be updated by Board staff.
A15: Price Escalator | B15: 0.02 | C15: Choose Stretch Factor Group | E15: III
A16: Productivity Factor | B16: 0.0072 | C16: Associated Stretch Factor Value | E16: =IF(ISBLANK(E15)=TRUE, "", IF(E15="I", 0, IF(E15="II", 0.0015, IF(E15="III", 0.003, IF(E15="iv", 0.0045, 0.006))))) -> 0.003
A17: Price Cap Index | B17: =B15-B16-E16 -> 0.0098
B19: Current MFC | C19: MFC Adjustment from R/C Model | D19: Current Volumetric Charge | E19: DVR Adjustment from R/C Model | F19: Price Cap Index to be Applied to MFC and DVR | G19: Proposed MFC | H19: Proposed Volumetric Charge
A20: Rate Class
A22: RESIDENTIAL | B22: 17.43 | D22: 0.0144 | F22: =$B$17 -> 0.0098 | G22: =ROUND(SUM(B22,C22)*(1+F22),2) -> 17.6 | H22: =ROUND(SUM(D22,E22)*(1+F22),4) -> 0.0145
A23: GENERAL SERVICE LESS THAN 50 KW | B23: 20.13 | D23: 0.0197 | F23: 0.0098 | G23: 20.33 | H23: 0.0199
A24: GENERAL SERVICE 50 TO 4,999 KW | B24: 194.53 | D24: 3.9831 | F24: 0.0098 | G24: 196.44 | H24: 4.0221
A25: UNMETERED SCATTERED LOAD | B25: 9.43 | D25: 0.0307 | F25: 0.0098 | G25: 9.52 | H25: 0.031
A26: SENTINEL LIGHTING | B26: 5.36 | D26: 14.5002 | F26: 0.0098 | G26: 5.41 | H26: 14.6423
A27: STREET LIGHTING | B27: 1.69 | D27: 6.7147 | F27: 0.0098 | G27: 1.71 | H27: 6.7805
A28: microFIT | B28: 5.4 | G28: 5.4

Sheet 9. hidden (hidden)
A1: Rate Class | B1: MFC Adjustment from R/C Model | C1: DVR Adjustment from R/C Model
A2: RESIDENTIAL | B2: 0 | C2: 0
A3: GENERAL SERVICE LESS THAN 50 KW | B3: 0 | C3: 0
A4: GENERAL SERVICE 50 TO 4,999 KW | B4: 0 | C4: 0
A5: UNMETERED SCATTERED LOAD | B5: 0 | C5: 0
A6: SENTINEL LIGHTING | B6: 0 | C6: 0
A7: STREET LIGHTING | B7: 0 | C7: 0
A8: microFIT | B8: 0 | C8: 0

Sheet 10. Other Charges & LF
A11: Please enter the following charges as found on your most recent Board-Approved Tariff Schedule. The standard Allowance rates have been included as default entries. If you have different rates, please make the appropriate corrections in the applicable cells below. As well, please enter the current Specific Service Charges below. The standard Retail Service Charges have been entered below. If you have different rates, please make the appropriate corrections in columns A, C or D as applicable (cells are unlocked).
C13: UNIT | D13: RATE
A15: ALLOWANCES
A17: Transformer Allowance for Ownership - per kW of billing demand/month | C17: $/kW | D17: -0.6
A20: Primary Metering Allowance for transformer losses – applied to measured demand and energy | C20: % | D20: -1
A22: SPECIFIC SERVICE CHARGES
A24: APPLICATION
A26: The application of these rates and charges shall be in accordance with the Licence of the Distributor and any Code or
A27: Order of the Board, and amendments thereto as approved by the Board, which may be applicable to the
A28: administration of this schedule
A30: No charges to meet the costs of any work or service done or furnished for the purpose of the distribution of electricity
A31: shall be made except as permitted by this schedule, unless required by the Distributor’s Licence or a Code or Order
A32: of the Board, and amendments thereto as approved by the Board, or as specified herein.
A34: It should be noted that this schedule does not list any charges, assessments, or credits that are required by law to be
A35: invoiced by a distributor and that are not subject to Board approval, such as the Debt Retirement Charge, the Global
A36: Adjustment, the Ontario Clean Energy Benefit and the HST.
A39: Customer Administration
A41: Arrears certificate | C41: $ | D41: 15
A42: Statement of Account | C42: $ | D42: 15
A43: Pulling Post Dated Cheques | C43: $ | D43: 15
A44: Easement Letter | C44: $ | D44: 15
A45: Account History | C45: $ | D45: 15
A46: Credit Reference/credit check (plus credit agency costs) | C46: $ | D46: 15
A47: Account set up charge/change of occupancy charge (plus credit agency costs if applicable) | C47: $ | D47: 30
A48: Returned cheque (plus bank charges) | C48: $ | D48: 15
A49: Special meter reads | C49: $ | D49: 30
A50: Meter dispute charge plus Measurement Canada fees (if meter found correct) | C50: $ | D50: 30
A51: Legal letter charge | C51: $ | D51: 15
A77: Non-Payment of Account
A79: Late Payment – per month | C79: % | D79: 1.5
A80: Late Payment – per annum | C80: % | D80: 19.56
A81: Collection of account charge – no disconnection | C81: $ | D81: 30
A82: Collection of account charge – no disconnection – after regular hours | C82: $ | D82: 165
A83: Disconnect/Reconnect at meter – during regular hours | C83: $ | D83: 65
A84: Disconnect/Reconnect at meter – after regular hours | C84: $ | D84: 185
A85: Disconnect/Reconnect at pole – during regular hours | C85: $ | D85: 185
A86: Disconnect/Reconnect at pole – after regular hours | C86: $ | D86: 415
A106: Install/Remove load control device – during regular hours | C106: $ | D106: 65
A107: Install/Remove load control device – after regular hours | C107: $ | D107: 185
A108: Service call – customer owned equipment | C108: $ | D108: 30
A109: Service call – after regular hours | C109: $ | D109: 165
A110: Temporary service install & remove – overhead – no transformer | C110: $ | D110: 500
A111: Temporary Service Install & Remove – Underground – No Transformer | C111: $ | D111: 300
A112: Temporary Service Install & Remove – Overhead – With Transformer | C112: $ | D112: 1000
A113: Specific Charge for Access to the Power Poles - $/pole/year | C113: $ | D113: 22.35
A128: RETAIL SERVICE CHARGES (if applicable)
A130: The application of these rates and charges shall be in accordance with the Licence of the Distributor and any Code or
A131: Order of the Board, and amendments thereto as approved by the Board, which may be applicable to the
A132: administration of this schedule.
A134: No rates and charges for the distribution of electricity and charges to meet the costs of any work or service done or
A135: furnished for the purpose of the distribution of electricity shall be made except as permitted by this schedule, unless
A136: required by the Distributor’s Licence or a Code or Order of the Board, and amendments thereto as approved by the
A137: Board, or as specified herein.
A139: Unless specifically noted, this schedule does not contain any charges for the electricity commodity, be it under the
A140: Regulated Price Plan, a contract with a retailer or the wholesale market price, as applicable.
A142: It should be noted that this schedule does not list any charges, assessments, or credits that are required by law to be
A143: invoiced by a distributor and that are not subject to Board approval, such as the Debt Retirement Charge, the Global
A144: Adjustment, the Ontario Clean Energy Benefit and the HST.
A147: Retail Service Charges refer to services provided by a distributor to retailers or customers related
A148: to the supply of competitive electricity
A151: One-time charge, per retailer, to establish the service agreement between the distributor and the retailer | C151: $ | D151: 100
A152: Monthly Fixed Charge, per retailer | C152: $ | D152: 20
A153: Monthly Variable Charge, per customer, per retailer | C153: $/cust. | D153: 0.5
A154: Distributor-consolidated billing monthly charge, per customer, per retailer | C154: $/cust. | D154: 0.3
A155: Retailer-consolidated billing monthly credit, per customer, per retailer | C155: $/cust. | D155: -0.3
A156: Service Transaction Requests (STR)
A157: Request fee, per request, applied to the requesting party | C157: $ | D157: 0.25
A158: Processing fee, per request, applied to the requesting party | C158: $ | D158: 0.5
A159: Request for customer information as outlined in Section 10.6.3 and Chapter 11 of the Retail
A160: Settlement Code directly to retailers and customers, if not delivered electronically through the
A161: Electronic Business Transaction (EBT) system, applied to the requesting party
A162: Up to twice a year | C162: $ | D162: no charge
A163: More than twice a year, per request (plus incremental delivery costs) | C163: $ | D163: 2
A165: LOSS FACTORS
A167: If the distributor is not capable of prorating changed loss factors jointly with distribution rates, the revised loss factors will be implemented upon the first subsequent billing for each billing cycle.
A170: Total Loss Factor – Secondary Metered Customer < 5,000 kW | D170: 1.0454 | H170: TLF_Secondary_LT_5000kW
A171: Total Loss Factor – Primary Metered Customer < 5,000 kW | D171: 1.0349 | H171: TLF_Primary_LT_5000kW

Sheet 11. Proposed Rates
Y1: 0 | Z1: 3 | AA1: ≥
Z2: February
Z3: March
Z4: April
Z5: May
Z6: June
Z7: July
Z8: August
Z9: September
Z10: October
Z11: November
A12: Below is a listing of the proposed Monthly Fixed Charges, proposed Distribution Volumetric Rates, proposed Deferral and Variance account Rate Riders and all unexpired volumetric rates that were entered on Sheet 4. In the green cells (column A) below, please enter any additional rates being proposed (eg: LRAM/SSM, Tax Adjustments, etc). Please ensure that the word "Rider" or "Adder" is included in the description (as applicable). Note: All rates with expired effective dates have been removed. As well, the Current RTSR-Network and RTSR-Connection rate descriptions entered on Sheet 4 can be found below. The associated rates have been removed from this sheet, giving the applicant the opportunity to enter updated rates (from Sheet 13 in the Board-Approved RTSR model into the cells in column I. | Z12: December
A20: RESIDENTIAL SERVICE CLASSIFICATION
A21: MONTHLY RATES AND CHARGES - Delivery Component
A22: Service Charge | H22: $ | I22: 17.6 | K22: 1_P_MSC
A23: Rate Rider for Disposition of Residual Historical Smart Meter Costs - effective until April 30, 2014 | H23: $ | I23: -0.55 | K23: 1_P_MSC_Rate_Rider_1
A24: Rate Rider for Recovery of Smart Meter Incremental Revenue Requirement - in effect until the effective date of the next cost of service-based rate order | H24: $ | I24: 2.2 | K24: 1_P_MSC_Rate_Rider_2
A25: Rate Rider for Smart Metering Entity Charge - effective until October 31, 2018 | H25: $ | I25: 0.79 | K25: 1_P_SMEC
A26: Distribution Volumetric Rate | H26: $/kWh | I26: 0.0145 | K26: 1_P_VC
A27: Rate Rider for Disposition of Deferral/Variance Accounts (2010) - effective until December 31, 2014 | H27: $/kWh | I27: -0.0017 | K27: 1_P_VC_DEFVAR_kWh_1
A28: Rate Rider for Deferral/Variance Account Disposition (2014) - effective until December 31, 2015 | H28: $/kWh | I28: -0.001 | K28: 1_P_VC_DEFVAR_kWh_2
A29: Rate Rider for Global Adjustment Sub-Account Disposition (2014) - effective until December 31, 2015 Applicable only for Non-RPP Customers | H29: $/kWh | I29: 0.0002 | K29: 1_P_VC_GA_Rate_Rider_kWh_1
A30: Retail Transmission Rate - Network Service Rate | H30: $/kWh | I30: 0.0079 | K30: 1_P_RTSR_Network
A31: Retail Transmission Rate - Line and Transformation Connection Service Rate | H31: $/kWh | I31: 0.0059 | K31: 1_P_RTSR_Connection
A48: MONTHLY RATES AND CHARGES - Regulatory Component
A49: Wholesale Market Service Rate | H49: $/kWh | I49: 0.0044 | K49: 1_P_WMSR
A50: Rural Rate Protection Charge | H50: $/kWh | I50: 0.0012 | K50: 1_P_RRPC
A51: Standard Supply Service - Administrative Charge (if applicable) | H51: $ | I51: 0.25 | K51: 1_P_SSS
A56: GENERAL SERVICE LESS THAN 50 KW SERVICE CLASSIFICATION
A57: MONTHLY RATES AND CHARGES - Delivery Component
A58: Service Charge | H58: $ | I58: 20.33 | K58: 2_P_MSC
A59: Rate Rider for Disposition of Residual Historical Smart Meter Costs - effective until April 30, 2014 | H59: $ | I59: 12.51 | K59: 2_P_MSC_Rate_Rider_1
A60: Rate Rider for Recovery of Smart Meter Incremental Revenue Requirement - in effect until the effective date of the next cost of service-based rate order | H60: $ | I60: 7.11 | K60: 2_P_MSC_Rate_Rider_2
A61: Rate Rider for Smart Metering Entity Charge - effective until October 31, 2018 | H61: $ | I61: 0.79 | K61: 2_P_SMEC
A62: Distribution Volumetric Rate | H62: $/kWh | I62: 0.0199 | K62: 2_P_VC
A63: Rate Rider for Disposition of Deferral/Variance Accounts (2010) - effective until December 31, 2014 | H63: $/kWh | I63: -0.0018 | K63: 2_P_VC_DEFVAR_kWh_1
A64: Rate Rider for Deferral/Variance Account Disposition (2014) - effective until December 31, 2015 | H64: $/kWh | I64: -0.001 | K64: 2_P_VC_DEFVAR_kWh_2
A65: Rate Rider for Global Adjustment Sub-Account Disposition (2014) - effective until December 31, 2015 Applicable only for Non-RPP Customers | H65: $/kWh | I65: 0.0002 | K65: 2_P_VC_GA_Rate_Rider_kWh_1
A66: Retail Transmission Rate - Network Service Rate | H66: $/kWh | I66: 0.0072 | K66: 2_P_RTSR_Network
A67: Retail Transmission Rate - Line and Transformation Connection Service Rate | H67: $/kWh | I67: 0.0054 | K67: 2_P_RTSR_Connection
A84: MONTHLY RATES AND CHARGES - Regulatory Component
A85: Wholesale Market Service Rate | H85: $/kWh | I85: 0.0044 | K85: 2_P_WMSR
A86: Rural Rate Protection Charge | H86: $/kWh | I86: 0.0012 | K86: 2_P_RRPC
A87: Standard Supply Service - Administrative Charge (if applicable) | H87: $ | I87: 0.25 | K87: 2_P_SSS
A92: GENERAL SERVICE 50 TO 4,999 KW SERVICE CLASSIFICATION
A93: MONTHLY RATES AND CHARGES - Delivery Component
A94: Service Charge | H94: $ | I94: 196.44 | K94: 3_P_MSC
A95: Distribution Volumetric Rate | H95: $/kW | I95: 4.0221 | K95: 3_P_VC
A96: Rate Rider for Disposition of Deferral/Variance Accounts (2010) - effective until December 31, 2014 | H96: $/kW | I96: -0.6875 | K96: 3_P_VC_DEFVAR_kW_1
A97: Rate Rider for Deferral/Variance Account Disposition (2014) - effective until December 31, 2015 | H97: $/kW | I97: -0.4079 | K97: 3_P_VC_DEFVAR_kW_2
A98: Rate Rider for Global Adjustment Sub-Account Disposition (2014) - effective until December 31, 2015 Applicable only for Non-RPP Customers | H98: $/kW | I98: 0.0981 | K98: 3_P_VC_GA_Rate_Rider_kW_1
A99: Retail Transmission Rate - Network Service Rate | H99: $/kW | I99: 2.9032 | K99: 3_P_RTSR_Network
A100: Retail Transmission Rate - Line and Transformation Connection Service Rate | H100: $/kW | I100: 2.0583 | K100: 3_P_RTSR_Connection
A120: MONTHLY RATES AND CHARGES - Regulatory Component
A121: Wholesale Market Service Rate | H121: $/kWh | I121: 0.0044 | K121: 3_P_WMSR
A122: Rural Rate Protection Charge | H122: $/kWh | I122: 0.0012 | K122: 3_P_RRPC
A123: Standard Supply Service - Administrative Charge (if applicable) | H123: $ | I123: 0.25 | K123: 3_P_SSS
A128: UNMETERED SCATTERED LOAD SERVICE CLASSIFICATION
A129: MONTHLY RATES AND CHARGES - Delivery Component
A130: Service Charge (per connection) | H130: $ | I130: 9.52 | K130: 4_P_MSC
A131: Distribution Volumetric Rate | H131: $/kWh | I131: 0.031 | K131: 4_P_VC
A132: Rate Rider for Disposition of Deferral/Variance Accounts (2010) - effective until December 31, 2014 | H132: $/kWh | I132: -0.0018 | K132: 4_P_VC_DEFVAR_kWh_1
A133: Rate Rider for Deferral/Variance Account Disposition (2014) - effective until December 31, 2015 | H133: $/kWh | I133: -0.001 | K133: 4_P_VC_DEFVAR_kWh_2
A134: Retail Transmission Rate - Network Service Rate | H134: $/kWh | I134: 0.0072 | K134: 4_P_RTSR_Network
A135: Retail Transmission Rate - Line and Transformation Connection Service Rate | H135: $/kWh | I135: 0.0054 | K135: 4_P_RTSR_Connection
A156: MONTHLY RATES AND CHARGES - Regulatory Component
A157: Wholesale Market Service Rate | H157: $/kWh | I157: 0.0044 | K157: 4_P_WMSR
A158: Rural Rate Protection Charge | H158: $/kWh | I158: 0.0012 | K158: 4_P_RRPC
A159: Standard Supply Service - Administrative Charge (if applicable) | H159: $ | I159: 0.25 | K159: 4_P_SSS
A164: SENTINEL LIGHTING SERVICE CLASSIFICATION
A165: MONTHLY RATES AND CHARGES - Delivery Component
A166: Service Charge (per light) | H166: $ | I166: 5.41 | K166: 5_P_MSC
A167: Distribution Volumetric Rate | H167: $/kW | I167: 14.6423 | K167: 5_P_VC
A168: Rate Rider for Disposition of Deferral/Variance Accounts (2010) - effective until December 31, 2014 | H168: $/kW | I168: -0.4912 | K168: 5_P_VC_DEFVAR_kW_1
A169: Rate Rider for Deferral/Variance Account Disposition (2014) - effective until December 31, 2015 | H169: $/kW | I169: -0.3436 | K169: 5_P_VC_DEFVAR_kW_2
A170: Retail Transmission Rate - Network Service Rate | H170: $/kW | I170: 2.2007 | K170: 5_P_RTSR_Network
A171: Retail Transmission Rate - Line and Transformation Connection Service Rate | H171: $/kW | I171: 1.6246 | K171: 5_P_RTSR_Connection
A192: MONTHLY RATES AND CHARGES - Regulatory Component
A193: Wholesale Market Service Rate | H193: $/kWh | I193: 0.0044 | K193: 5_P_WMSR
A194: Rural Rate Protection Charge | H194: $/kWh | I194: 0.0012 | K194: 5_P_RRPC
A195: Standard Supply Service - Administrative Charge (if applicable) | H195: $ | I195: 0.25 | K195: 5_P_SSS
A200: STREET LIGHTING SERVICE CLASSIFICATION
A201: MONTHLY RATES AND CHARGES - Delivery Component
A202: Service Charge (per light) | H202: $ | I202: 1.71 | K202: 6_P_MSC
A203: Distribution Volumetric Rate | H203: $/kW | I203: 6.7805 | K203: 6_P_VC
A204: Rate Rider for Disposition of Deferral/Variance Accounts (2010) - effective until December 31, 2014 | H204: $/kW | I204: -0.7408 | K204: 6_P_VC_DEFVAR_kW_1
A205: Rate Rider for Deferral/Variance Account Disposition (2014) - effective until December 31, 2015 | H205: $/kW | I205: -0.3548 | K205: 6_P_VC_DEFVAR_kW_2
A206: Rate Rider for Global Adjustment Sub-Account Disposition (2014) - effective until December 31, 2015 Applicable only for Non-RPP Customers | H206: $/kW | I206: 0.0853 | K206: 6_P_VC_GA_Rate_Rider_kW_1
A207: Retail Transmission Rate - Network Service Rate | H207: $/kW | I207: 2.1896 | K207: 6_P_RTSR_Network
A208: Retail Transmission Rate - Line and Transformation Connection Service Rate | H208: $/kW | I208: 1.5913 | K208: 6_P_RTSR_Connection
A228: MONTHLY RATES AND CHARGES - Regulatory Component
A229: Wholesale Market Service Rate | H229: $/kWh | I229: 0.0044 | K229: 6_P_WMSR
A230: Rural Rate Protection Charge | H230: $/kWh | I230: 0.0012 | K230: 6_P_RRPC
A231: Standard Supply Service - Administrative Charge (if applicable) | H231: $ | I231: 0.25 | K231: 6_P_SSS
A236: MICROFIT SERVICE CLASSIFICATION
A237: MONTHLY RATES AND CHARGES - Delivery Component
A238: Service Charge | H238: $ | I238: 5.4 | K238: 7_P_MSC
A264: MONTHLY RATES AND CHARGES - Regulatory Component

Sheet 11. Hidden (hidden)
Y1: 0 | Z1: 0 | AA1: ≥
Z2: February
Z3: March
Z4: April
Z5: May
Z6: June
Z7: July
Z8: August
Z9: September
Z10: October
Z11: November
A12: Below is a listing of the proposed Monthly Fixed Charges, proposed Distribution Volumetric Rates, proposed Deferral and Variance account Rate Riders and all unexpired volumetric rates that were entered on Sheet 4. In the green cells (column A) below, please enter any additional rates being proposed (eg: LRAM/SSM, Tax Adjustments, etc). Please ensure that the word "Rider" or "Adder" is included in the description (as applicable). Note: All rates with expired effective dates have been removed. As well, the Current RTSR-Network and RTSR-Connection rate descriptions entered on Sheet 4 can be found below. The associated rates have been removed from this sheet, giving the applicant the opportunity to enter updated rates (from Sheet 13 in the Board-Approved RTSR model into the cells in column I. | Z12: December
A20: RESIDENTIAL SERVICE CLASSIFICATION
A21: MONTHLY RATES AND CHARGES - Delivery Component
A22: Service Charge | H22: $ | I22: 17.6 | K22: 1_P_MSC
A23: Rate Rider for Disposition of Residual Historical Smart Meter Costs - effective until April 30, 2014 | H23: $ | I23: -0.55 | K23: 1_P_MSC_Rate_Rider_1
A24: Rate Rider for Recovery of Smart Meter Incremental Revenue Requirement - in effect until the effective date of the next cost of service-based rate order | H24: $ | I24: 2.2 | K24: 1_P_MSC_Rate_Rider_2
A25: Rate Rider for Smart Metering Entity Charge - effective until October 31, 2018 | H25: $ | I25: 0.79 | K25: 1_P_SMEC
A26: Distribution Volumetric Rate | H26: $/kWh | I26: 0.0145 | K26: 1_P_VC
A27: Rate Rider for Disposition of Deferral/Variance Accounts (2010) - effective until December 31, 2014 | H27: $/kWh | I27: -0.0017 | K27: 1_P_VC_DEFVAR_kWh_1
A28: Rate Rider for Deferral/Variance Account Disposition (2014) - effective until December 30, 2015 | H28: $/kWh | I28: -0.001 | K28: 1_P_VC_DEFVAR_kWh_2
A29: Rate Rider for Global Adjustment Sub-Account Disposition (2014) - effective until December 30, 2015 Applicable only for Non-RPP Customers | H29: $/kWh | I29: 0.0002 | K29: 1_P_VC_GA_Rate_Rider_kWh_1
A30: Retail Transmission Rate - Network Service Rate | H30: $/kWh | I30: 0.0079 | K30: 1_P_RTSR_Network
A31: Retail Transmission Rate - Line and Transformation Connection Service Rate | H31: $/kWh | I31: 0.0059 | K31: 1_P_RTSR_Connection
A48: MONTHLY RATES AND CHARGES - Regulatory Component
A49: Wholesale Market Service Rate | H49: $/kWh | I49: 0.0044 | K49: 1_P_WMSR
A50: Rural Rate Protection Charge | H50: $/kWh | I50: 0.0012 | K50: 1_P_RRPC
A51: Standard Supply Service - Administrative Charge (if applicable) | H51: $ | I51: 0.25 | K51: 1_P_SSS
A56: GENERAL SERVICE LESS THAN 50 KW SERVICE CLASSIFICATION
A57: MONTHLY RATES AND CHARGES - Delivery Component
A58: Service Charge | H58: $ | I58: 20.33 | K58: 2_P_MSC
A59: Rate Rider for Disposition of Residual Historical Smart Meter Costs - effective until April 30, 2014 | H59: $ | I59: 12.51 | K59: 2_P_MSC_Rate_Rider_1
A60: Rate Rider for Recovery of Smart Meter Incremental Revenue Requirement - in effect until the effective date of the next cost of service-based rate order | H60: $ | I60: 7.11 | K60: 2_P_MSC_Rate_Rider_2
A61: Rate Rider for Smart Metering Entity Charge - effective until October 31, 2018 | H61: $ | I61: 0.79 | K61: 2_P_SMEC
A62: Distribution Volumetric Rate | H62: $/kWh | I62: 0.0199 | K62: 2_P_VC
A63: Rate Rider for Disposition of Deferral/Variance Accounts (2010) - effective until December 31, 2014 | H63: $/kWh | I63: -0.0018 | K63: 2_P_VC_DEFVAR_kWh_1
A64: Rate Rider for Deferral/Variance Account Disposition (2014) - effective until December 30, 2015 | H64: $/kWh | I64: -0.001 | K64: 2_P_VC_DEFVAR_kWh_2
A65: Rate Rider for Global Adjustment Sub-Account Disposition (2014) - effective until December 30, 2015 Applicable only for Non-RPP Customers | H65: $/kWh | I65: 0.0002 | K65: 2_P_VC_GA_Rate_Rider_kWh_1
A66: Retail Transmission Rate - Network Service Rate | H66: $/kWh | I66: 0.0072 | K66: 2_P_RTSR_Network
A67: Retail Transmission Rate - Line and Transformation Connection Service Rate | H67: $/kWh | I67: 0.0054 | K67: 2_P_RTSR_Connection
A84: MONTHLY RATES AND CHARGES - Regulatory Component
A85: Wholesale Market Service Rate | H85: $/kWh | I85: 0.0044 | K85: 2_P_WMSR
A86: Rural Rate Protection Charge | H86: $/kWh | I86: 0.0012 | K86: 2_P_RRPC
A87: Standard Supply Service - Administrative Charge (if applicable) | H87: $ | I87: 0.25 | K87: 2_P_SSS
A92: GENERAL SERVICE 50 TO 4,999 KW SERVICE CLASSIFICATION
A93: MONTHLY RATES AND CHARGES - Delivery Component
A94: Service Charge | H94: $ | I94: 196.44 | K94: 3_P_MSC
A95: Distribution Volumetric Rate | H95: $/kW | I95: 4.0221 | K95: 3_P_VC
A96: Rate Rider for Disposition of Deferral/Variance Accounts (2010) - effective until December 31, 2014 | H96: $/kW | I96: -0.6875 | K96: 3_P_VC_DEFVAR_kW_1
A97: Rate Rider for Deferral/Variance Account Disposition (2014) - effective until December 30, 2015 | H97: $/kW | I97: -0.4079 | K97: 3_P_VC_DEFVAR_kW_2
A98: Rate Rider for Global Adjustment Sub-Account Disposition (2014) - effective until December 30, 2015 Applicable only for Non-RPP Customers | H98: $/kW | I98: 0.0981 | K98: 3_P_VC_GA_Rate_Rider_kW_1
A99: Retail Transmission Rate - Network Service Rate | H99: $/kW | I99: 2.9032 | K99: 3_P_RTSR_Network
A100: Retail Transmission Rate - Line and Transformation Connection Service Rate | H100: $/kW | I100: 2.0583 | K100: 3_P_RTSR_Connection
A120: MONTHLY RATES AND CHARGES - Regulatory Component
A121: Wholesale Market Service Rate | H121: $/kWh | I121: 0.0044 | K121: 3_P_WMSR
A122: Rural Rate Protection Charge | H122: $/kWh | I122: 0.0012 | K122: 3_P_RRPC
A123: Standard Supply Service - Administrative Charge (if applicable) | H123: $ | I123: 0.25 | K123: 3_P_SSS
A128: UNMETERED SCATTERED LOAD SERVICE CLASSIFICATION
A129: MONTHLY RATES AND CHARGES - Delivery Component
A130: Service Charge (per connection) | H130: $ | I130: 9.52 | K130: 4_P_MSC
A131: Distribution Volumetric Rate | H131: $/kWh | I131: 0.031 | K131: 4_P_VC
A132: Rate Rider for Disposition of Deferral/Variance Accounts (2010) - effective until December 31, 2014 | H132: $/kWh | I132: -0.0018 | K132: 4_P_VC_DEFVAR_kWh_1
A133: Rate Rider for Deferral/Variance Account Disposition (2014) - effective until December 30, 2015 | H133: $/kWh | I133: -0.001 | K133: 4_P_VC_DEFVAR_kWh_2
A134: Retail Transmission Rate - Network Service Rate | H134: $/kWh | I134: 0.0072 | K134: 4_P_RTSR_Network
A135: Retail Transmission Rate - Line and Transformation Connection Service Rate | H135: $/kWh | I135: 0.0054 | K135: 4_P_RTSR_Connection
A156: MONTHLY RATES AND CHARGES - Regulatory Component
A157: Wholesale Market Service Rate | H157: $/kWh | I157: 0.0044 | K157: 4_P_WMSR
A158: Rural Rate Protection Charge | H158: $/kWh | I158: 0.0012 | K158: 4_P_RRPC
A159: Standard Supply Service - Administrative Charge (if applicable) | H159: $ | I159: 0.25 | K159: 4_P_SSS
A164: SENTINEL LIGHTING SERVICE CLASSIFICATION
A165: MONTHLY RATES AND CHARGES - Delivery Component
A166: Service Charge (per light) | H166: $ | I166: 5.41 | K166: 5_P_MSC
A167: Distribution Volumetric Rate | H167: $/kW | I167: 14.6423 | K167: 5_P_VC
A168: Rate Rider for Disposition of Deferral/Variance Accounts (2010) - effective until December 31, 2014 | H168: $/kW | I168: -0.491 | K168: 5_P_VC_DEFVAR_kW_1
A169: Rate Rider for Deferral/Variance Account Disposition (2014) - effective until December 30, 2015 | H169: $/kW | I169: -0.3436 | K169: 5_P_VC_DEFVAR_kW_2
A170: Retail Transmission Rate - Network Service Rate | H170: $/kW | I170: 2.2007 | K170: 5_P_RTSR_Network
A171: Retail Transmission Rate - Line and Transformation Connection Service Rate | H171: $/kW | I171: 1.6246 | K171: 5_P_RTSR_Connection
A192: MONTHLY RATES AND CHARGES - Regulatory Component
A193: Wholesale Market Service Rate | H193: $/kWh | I193: 0.0044 | K193: 5_P_WMSR
A194: Rural Rate Protection Charge | H194: $/kWh | I194: 0.0012 | K194: 5_P_RRPC
A195: Standard Supply Service - Administrative Charge (if applicable) | H195: $ | I195: 0.25 | K195: 5_P_SSS
A200: STREET LIGHTING SERVICE CLASSIFICATION
A201: MONTHLY RATES AND CHARGES - Delivery Component
A202: Service Charge (per light) | H202: $ | I202: 1.71 | K202: 6_P_MSC
A203: Distribution Volumetric Rate | H203: $/kW | I203: 6.7805 | K203: 6_P_VC
A204: Rate Rider for Disposition of Deferral/Variance Accounts (2010) - effective until December 31, 2014 | H204: $/kW | I204: -0.7408 | K204: 6_P_VC_DEFVAR_kW_1
A205: Rate Rider for Deferral/Variance Account Disposition (2014) - effective until December 30, 2015 | H205: $/kW | I205: -0.3548 | K205: 6_P_VC_DEFVAR_kW_2
A206: Rate Rider for Global Adjustment Sub-Account Disposition (2014) - effective until December 30, 2015 Applicable only for Non-RPP Customers | H206: $/kW | I206: 0.0853 | K206: 6_P_VC_GA_Rate_Rider_kW_1
A207: Retail Transmission Rate - Network Service Rate | H207: $/kW | I207: 2.1896 | K207: 6_P_RTSR_Network
A208: Retail Transmission Rate - Line and Transformation Connection Service Rate | H208: $/kW | I208: 1.5913 | K208: 6_P_RTSR_Connection
A228: MONTHLY RATES AND CHARGES - Regulatory Component
A229: Wholesale Market Service Rate | H229: $/kWh | I229: 0.0044 | K229: 6_P_WMSR
A230: Rural Rate Protection Charge | H230: $/kWh | I230: 0.0012 | K230: 6_P_RRPC
A231: Standard Supply Service - Administrative Charge (if applicable) | H231: $ | I231: 0.25 | K231: 6_P_SSS
A236: MICROFIT SERVICE CLASSIFICATION
A237: MONTHLY RATES AND CHARGES - Delivery Component
A238: Service Charge | H238: $ | I238: 5.4 | K238: 7_P_MSC
A264: MONTHLY RATES AND CHARGES - Regulatory Component

Sheet 12. Summary Sheet
Y1: 3 | Z1: 3 | AA1: ≥
Z2: February
Z3: March
Z4: April
Z5: May
Z6: June
Z7: July
Z8: August
Z9: September
Z10: October
A11: The following table provides applicants with a class to class comparison of current vs. proposed rates. | Z11: November
Z12: December
A15: Current Rates | E15: Proposed Rates
A16: Rate Description | B16: Unit | C16: Amount | E16: Rate Description | F16: Unit | G16: Amount
A17: RESIDENTIAL | E17: RESIDENTIAL
A18: Service Charge | B18: $ | C18: 17.43 | E18: Service Charge | F18: $ | G18: 17.6
A19: Rate Rider for Disposition of Residual Historical Smart Meter Costs - effective until April 30, 2014 | B19: $ | C19: -0.55 | E19: Rate Rider for Disposition of Residual Historical Smart Meter Costs - effective until April 30, 2014 | F19: $ | G19: -0.55
A20: Rate Rider for Recovery of Smart Meter Incremental Revenue Requirement - in effect until the effective date of the next cost of service-based rate order | B20: $ | C20: 2.2 | E20: Rate Rider for Recovery of Smart Meter Incremental Revenue Requirement - in effect until the effective date of the next cost of service-based rate order | F20: $ | G20: 2.2
A21: Rate Rider for Smart Metering Entity Charge - effective until October 31, 2018 | B21: $ | C21: 0.79 | E21: Rate Rider for Smart Metering Entity Charge - effective until October 31, 2018 | F21: $ | G21: 0.79
A22: Distribution Volumetric Rate | B22: $/kWh | C22: 0.0144 | E22: Distribution Volumetric Rate | F22: $/kWh | G22: 0.0145
A23: Rate Rider for Disposition of Global Adjustment Sub-Account (2012) - effective until December 31, 2013 Applicable only for Non-RPP Customers | B23: $/kWh | C23: 0.0013 | E23: Rate Rider for Disposition of Deferral/Variance Accounts (2010) - effective until December 31, 2014 | F23: $/kWh | G23: -0.0017
A24: Rate Rider for Disposition of Deferral/Variance Accounts (2010) - effective until December 31, 2014 | B24: $/kWh | C24: -0.0017 | E24: Rate Rider for Deferral/Variance Account Disposition (2014) - effective until December 31, 2015 | F24: $/kWh | G24: -0.001
A25: Rate Rider for Disposition of Deferral/Variance Accounts (2012) - effective until December 31, 2013 | B25: $/kWh | C25: -0.0032 | E25: Rate Rider for Global Adjustment Sub-Account Disposition (2014) - effective until December 31, 2015 Applicable only for Non-RPP Customers | F25: $/kWh | G25: 0.0002
A26: Retail Transmission Rate - Network Service Rate | B26: $/kWh | C26: 0.0075 | E26: Retail Transmission Rate - Network Service Rate | F26: $/kWh | G26: 0.0079
A27: Retail Transmission Rate - Line and Transformation Connection Service Rate | B27: $/kWh | C27: 0.0059 | E27: Retail Transmission Rate - Line and Transformation Connection Service Rate | F27: $/kWh | G27: 0.0059
A28: Wholesale Market Service Rate | B28: $/kWh | C28: 0.0044 | E28: Wholesale Market Service Rate | F28: $/kWh | G28: 0.0044
A29: Rural Rate Protection Charge | B29: $/kWh | C29: 0.0012 | E29: Rural Rate Protection Charge | F29: $/kWh | G29: 0.0012
A30: Standard Supply Service - Administrative Charge (if applicable) | B30: $ | C30: 0.25 | E30: Standard Supply Service - Administrative Charge (if applicable) | F30: $ | G30: 0.25
A31: GENERAL SERVICE LESS THAN 50 KW | E31: GENERAL SERVICE LESS THAN 50 KW
A32: Service Charge | B32: $ | C32: 20.13 | E32: Service Charge | F32: $ | G32: 20.33
A33: Rate Rider for Disposition of Residual Historical Smart Meter Costs - effective until April 30, 2014 | B33: $ | C33: 12.51 | E33: Rate Rider for Disposition of Residual Historical Smart Meter Costs - effective until April 30, 2014 | F33: $ | G33: 12.51
A34: Rate Rider for Recovery of Smart Meter Incremental Revenue Requirement - in effect until the effective date of the next cost of service-based rate order | B34: $ | C34: 7.11 | E34: Rate Rider for Recovery of Smart Meter Incremental Revenue Requirement - in effect until the effective date of the next cost of service-based rate order | F34: $ | G34: 7.11
A35: Rate Rider for Smart Metering Entity Charge - effective until October 31, 2018 | B35: $ | C35: 0.79 | E35: Rate Rider for Smart Metering Entity Charge - effective until October 31, 2018 | F35: $ | G35: 0.79
A36: Distribution Volumetric Rate | B36: $/kWh | C36: 0.0197 | E36: Distribution Volumetric Rate | F36: $/kWh | G36: 0.0199
A37: Rate Rider for Disposition of Global Adjustment Sub-Account (2012) - effective until December 31, 2013 Applicable only for Non-RPP Customers | B37: $/kWh | C37: 0.0013 | E37: Rate Rider for Disposition of Deferral/Variance Accounts (2010) - effective until December 31, 2014 | F37: $/kWh | G37: -0.0018
A38: Rate Rider for Disposition of Deferral/Variance Accounts (2010) - effective until December 31, 2014 | B38: $/kWh | C38: -0.0018 | E38: Rate Rider for Deferral/Variance Account Disposition (2014) - effective until December 31, 2015 | F38: $/kWh | G38: -0.001
A39: Rate Rider for Disposition of Deferral/Variance Accounts (2012) - effective until December 31, 2013 | B39: $/kWh | C39: -0.0027 | E39: Rate Rider for Global Adjustment Sub-Account Disposition (2014) - effective until December 31, 2015 Applicable only for Non-RPP Customers | F39: $/kWh | G39: 0.0002
A40: Retail Transmission Rate - Network Service Rate | B40: $/kWh | C40: 0.0068 | E40: Retail Transmission Rate - Network Service Rate | F40: $/kWh | G40: 0.0072
A41: Retail Transmission Rate - Line and Transformation Connection Service Rate | B41: $/kWh | C41: 0.0054 | E41: Retail Transmission Rate - Line and Transformation Connection Service Rate | F41: $/kWh | G41: 0.0054
A42: Wholesale Market Service Rate | B42: $/kWh | C42: 0.0044 | E42: Wholesale Market Service Rate | F42: $/kWh | G42: 0.0044
A43: Rural Rate Protection Charge | B43: $/kWh | C43: 0.0012 | E43: Rural Rate Protection Charge | F43: $/kWh | G43: 0.0012
A44: Standard Supply Service - Administrative Charge (if applicable) | B44: $ | C44: 0.25 | E44: Standard Supply Service - Administrative Charge (if applicable) | F44: $ | G44: 0.25
A45: GENERAL SERVICE 50 TO 4,999 KW | E45: GENERAL SERVICE 50 TO 4,999 KW
A46: Service Charge | B46: $ | C46: 194.53 | E46: Service Charge | F46: $ | G46: 196.44
A47: Distribution Volumetric Rate | B47: $/kW | C47: 3.9831 | E47: Distribution Volumetric Rate | F47: $/kW | G47: 4.0221
A48: Rate Rider for Disposition of Global Adjustment Sub-Account (2012) - effective until December 31, 2013 Applicable only for Non-RPP Customers | B48: $/kW | C48: 0.5426 | E48: Rate Rider for Disposition of Deferral/Variance Accounts (2010) - effective until December 31, 2014 | F48: $/kW | G48: -0.6875
A49: Rate Rider for Disposition of Deferral/Variance Accounts (2010) - effective until December 31, 2014 | B49: $/kW | C49: -0.6875 | E49: Rate Rider for Deferral/Variance Account Disposition (2014) - effective until December 31, 2015 | F49: $/kW | G49: -0.4079
A50: Rate Rider for Disposition of Deferral/Variance Accounts (2012) - effective until December 31, 2013 | B50: $/kW | C50: -0.8667 | E50: Rate Rider for Global Adjustment Sub-Account Disposition (2014) - effective until December 31, 2015 Applicable only for Non-RPP Customers | F50: $/kW | G50: 0.0981
A51: Retail Transmission Rate - Network Service Rate | B51: $/kW | C51: 2.7595 | E51: Retail Transmission Rate - Network Service Rate | F51: $/kW | G51: 2.9032
A52: Retail Transmission Rate - Line and Transformation Connection Service Rate | B52: $/kW | C52: 2.0707 | E52: Retail Transmission Rate - Line and Transformation Connection Service Rate | F52: $/kW | G52: 2.0583
A53: Wholesale Market Service Rate | B53: $/kWh | C53: 0.0044 | E53: Wholesale Market Service Rate | F53: $/kWh | G53: 0.0044
A54: Rural Rate Protection Charge | B54: $/kWh | C54: 0.0012 | E54: Rural Rate Protection Charge | F54: $/kWh | G54: 0.0012
A55: Standard Supply Service - Administrative Charge (if applicable) | B55: $ | C55: 0.25 | E55: Standard Supply Service - Administrative Charge (if applicable) | F55: $ | G55: 0.25
A56: UNMETERED SCATTERED LOAD | E56: UNMETERED SCATTERED LOAD
A57: Service Charge (per connection) | B57: $ | C57: 9.43 | E57: Service Charge (per connection) | F57: $ | G57: 9.52
A58: Distribution Volumetric Rate | B58: $/kWh | C58: 0.0307 | E58: Distribution Volumetric Rate | F58: $/kWh | G58: 0.031
A59: Rate Rider for Disposition of Deferral/Variance Accounts (2010) - effective until December 31, 2014 | B59: $/kWh | C59: -0.0018 | E59: Rate Rider for Disposition of Deferral/Variance Accounts (2010) - effective until December 31, 2014 | F59: $/kWh | G59: -0.0018
A60: Rate Rider for Disposition of Deferral/Variance Accounts (2012) - effective until December 31, 2013 | B60: $/kWh | C60: -0.0037 | E60: Rate Rider for Deferral/Variance Account Disposition (2014) - effective until December 31, 2015 | F60: $/kWh | G60: -0.001
A61: Retail Transmission Rate - Network Service Rate | B61: $/kWh | C61: 0.0068 | E61: Retail Transmission Rate - Network Service Rate | F61: $/kWh | G61: 0.0072
A62: Retail Transmission Rate - Line and Transformation Connection Service Rate | B62: $/kWh | C62: 0.0054 | E62: Retail Transmission Rate - Line and Transformation Connection Service Rate | F62: $/kWh | G62: 0.0054
A63: Wholesale Market Service Rate | B63: $/kWh | C63: 0.0044 | E63: Wholesale Market Service Rate | F63: $/kWh | G63: 0.0044
A64: Rural Rate Protection Charge | B64: $/kWh | C64: 0.0012 | E64: Rural Rate Protection Charge | F64: $/kWh | G64: 0.0012
A65: Standard Supply Service - Administrative Charge (if applicable) | B65: $ | C65: 0.25 | E65: Standard Supply Service - Administrative Charge (if applicable) | F65: $ | G65: 0.25
A66: SENTINEL LIGHTING | E66: SENTINEL LIGHTING
A67: Service Charge (per light) | B67: $ | C67: 5.36 | E67: Service Charge (per light) | F67: $ | G67: 5.41
A68: Distribution Volumetric Rate | B68: $/kW | C68: 14.5002 | E68: Distribution Volumetric Rate | F68: $/kW | G68: 14.6423
A69: Rate Rider for Disposition of Deferral/Variance Accounts (2010) - effective until December 31, 2014 | B69: $/kW | C69: -0.4912 | E69: Rate Rider for Disposition of Deferral/Variance Accounts (2010) - effective until December 31, 2014 | F69: $/kW | G69: -0.4912
A70: Rate Rider for Disposition of Deferral/Variance Accounts (2012) - effective until December 31, 2013 | B70: $/kW | C70: -1.7524 | E70: Rate Rider for Deferral/Variance Account Disposition (2014) - effective until December 31, 2015 | F70: $/kW | G70: -0.3436
A71: Retail Transmission Rate - Network Service Rate | B71: $/kW | C71: 2.0918 | E71: Retail Transmission Rate - Network Service Rate | F71: $/kW | G71: 2.2007
A72: Retail Transmission Rate - Line and Transformation Connection Service Rate | B72: $/kW | C72: 1.6344 | E72: Retail Transmission Rate - Line and Transformation Connection Service Rate | F72: $/kW | G72: 1.6246
A73: Wholesale Market Service Rate | B73: $/kWh | C73: 0.0044 | E73: Wholesale Market Service Rate | F73: $/kWh | G73: 0.0044
A74: Rural Rate Protection Charge | B74: $/kWh | C74: 0.0012 | E74: Rural Rate Protection Charge | F74: $/kWh | G74: 0.0012
A75: Standard Supply Service - Administrative Charge (if applicable) | B75: $ | C75: 0.25 | E75: Standard Supply Service - Administrative Charge (if applicable) | F75: $ | G75: 0.25
A76: STREET LIGHTING | E76: STREET LIGHTING
A77: Service Charge (per light) | B77: $ | C77: 1.69 | E77: Service Charge (per light) | F77: $ | G77: 1.71
A78: Distribution Volumetric Rate | B78: $/kW | C78: 6.7147 | E78: Distribution Volumetric Rate | F78: $/kW | G78: 6.7805
A79: Rate Rider for Disposition of Global Adjustment Sub-Account (2012) - effective until December 31, 2013 Applicable only for Non-RPP Customers | B79: $/kW | C79: 0.472 | E79: Rate Rider for Disposition of Deferral/Variance Accounts (2010) - effective until December 31, 2014 | F79: $/kW | G79: -0.7408
A80: Rate Rider for Disposition of Deferral/Variance Accounts (2010) - effective until December 31, 2014 | B80: $/kW | C80: -0.7408 | E80: Rate Rider for Deferral/Variance Account Disposition (2014) - effective until December 31, 2015 | F80: $/kW | G80: -0.3548
A81: Rate Rider for Disposition of Deferral/Variance Accounts (2012) - effective until December 31, 2013 | B81: $/kW | C81: -1.174 | E81: Rate Rider for Global Adjustment Sub-Account Disposition (2014) - effective until December 31, 2015 Applicable only for Non-RPP Customers | F81: $/kW | G81: 0.0853
A82: Retail Transmission Rate - Network Service Rate | B82: $/kW | C82: 2.0812 | E82: Retail Transmission Rate - Network Service Rate | F82: $/kW | G82: 2.1896
A83: Retail Transmission Rate - Line and Transformation Connection Service Rate | B83: $/kW | C83: 1.6009 | E83: Retail Transmission Rate - Line and Transformation Connection Service Rate | F83: $/kW | G83: 1.5913
A84: Wholesale Market Service Rate | B84: $/kWh | C84: 0.0044 | E84: Wholesale Market Service Rate | F84: $/kWh | G84: 0.0044
A85: Rural Rate Protection Charge | B85: $/kWh | C85: 0.0012 | E85: Rural Rate Protection Charge | F85: $/kWh | G85: 0.0012
A86: Standard Supply Service - Administrative Charge (if applicable) | B86: $ | C86: 0.25 | E86: Standard Supply Service - Administrative Charge (if applicable) | F86: $ | G86: 0.25
A87: microFIT | E87: microFIT
A88: Service Charge | B88: $ | C88: 5.4 | E88: Service Charge | F88: $ | G88: 5.4

Sheet 13. Final Tariff Schedule
Y1: 3 | Z1: 3 | AA1: ≥
Z2: February
Z3: March
Z4: April
Z5: May
Z6: June
Z7: July
Z8: August
Z9: September
Z10: October
Z11: November
A12: The following is a complete Tariff Schedule based on the information entered in this model. Pressing the button on the right hand side will transfer the tariff schedule to a new file. | Z12: December
A19: ='1. Information Sheet'!F14 -> Whitby Hydro Electric Corporation
A20: TARIFF OF RATES AND CHARGES
A21: ="Effective and Implementation Date " & TEXT('1. Information Sheet'!F26, "mmmm dd, yyyy") -> Effective and Implementation Date January 01, 2014
A23: This schedule supersedes and replaces all previously
A24: approved schedules of Rates, Charges and Loss Factors
A25: ='1. Information Sheet'!F18 -> EB-2013-0181
A26: RESIDENTIAL SERVICE CLASSIFICATION
A28: This classification refers to detached, semi-detached or freehold townhouse dwelling units. Energy is supplied to residential customers as single phase, three wire, 60 Hertz, having a normal voltage of 120/240 Volts up to a maximum of 200 Amps per dwelling unit. Further servicing details are available in the distributor’s Conditions of Service.
A30: APPLICATION
A32: The application of these rates and charges shall be in accordance with the Licence of the Distributor and any Code or Order of the Board, and amendments thereto as approved by the Board, which may be applicable to the administration of this schedule.
A34: No rates and charges for the distribution of electricity and charges to meet the costs of any work or service done or furnished for the purpose of the distribution of electricity shall be made except as permitted by this schedule, unless required by the Distributor’s Licence or a Code or Order of the Board, and amendments thereto as approved by the Board, or as specified herein.
A36: Unless specifically noted, this schedule does not contain any charges for the electricity commodity, be it under the Regulated Price Plan, a contract with a retailer or the wholesale market price, as applicable. In addition, the charges in the MONTHLY RATES AND CHARGES - Regulatory Component of this schedule do not apply to a customer that is an embedded wholesale market participant.
A38: It should be noted that this schedule does not list any charges, assessments or credits that are required by law to be invoiced by a distributor and that are not subject to Board approval, such as the Debt Retirement Charge, the Global Adjustment, the Ontario Clean Energy Benefit and the HST.
A40: MONTHLY RATES AND CHARGES - Delivery Component
A42: Service Charge | H42: $ | I42: 17.6
A43: Rate Rider for Disposition of Residual Historical Smart Meter Costs - effective until April 30, 2014 | H43: $ | I43: -0.55
A44: Rate Rider for Recovery of Smart Meter Incremental Revenue Requirement - in effect until the effective date of the next cost of service-based rate order | H44: $ | I44: 2.2
A45: Rate Rider for Smart Metering Entity Charge - effective until October 31, 2018 | H45: $ | I45: 0.79
A46: Distribution Volumetric Rate | H46: $/kWh | I46: 0.0145
A47: Rate Rider for Disposition of Deferral/Variance Accounts (2010) - effective until December 31, 2014 | H47: $/kWh | I47: -0.0017
A48: Rate Rider for Deferral/Variance Account Disposition (2014) - effective until December 31, 2015 | H48: $/kWh | I48: -0.001
A49: Rate Rider for Global Adjustment Sub-Account Disposition (2014) - effective until December 31, 2015
A50: Applicable only for Non-RPP Customers | H50: $/kWh | I50: 0.0002
A51: Retail Transmission Rate - Network Service Rate | H51: $/kWh | I51: 0.0079
A52: Retail Transmission Rate - Line and Transformation Connection Service Rate | H52: $/kWh | I52: 0.0059
A54: MONTHLY RATES AND CHARGES - Regulatory Component
A56: Wholesale Market Service Rate | H56: $/kWh | I56: 0.0044
A57: Rural Rate Protection Charge | H57: $/kWh | I57: 0.0012
A58: Standard Supply Service - Administrative Charge (if applicable) | H58: $ | I58: 0.25
A61: GENERAL SERVICE LESS THAN 50 KW SERVICE CLASSIFICATION
A63: This classification applies to a non residential account whose average monthly maximum demand is less than, or is forecast to be less than, 50 kW, shall include small apartment buildings and smaller commercial, industrial, and institutional developments. Further servicing details are available in the distributor’s Conditions of Service.
A65: APPLICATION
A67: The application of these rates and charges shall be in accordance with the Licence of the Distributor and any Code or Order of the Board, and amendments thereto as approved by the Board, which may be applicable to the administration of this schedule.
A69: No rates and charges for the distribution of electricity and charges to meet the costs of any work or service done or furnished for the purpose of the distribution of electricity shall be made except as permitted by this schedule, unless required by the Distributor’s Licence or a Code or Order of the Board, and amendments thereto as approved by the Board, or as specified herein.
A71: Unless specifically noted, this schedule does not contain any charges for the electricity commodity, be it under the Regulated Price Plan, a contract with a retailer or the wholesale market price, as applicable. In addition, the charges in the MONTHLY RATES AND CHARGES - Regulatory Component of this schedule do not apply to a customer that is an embedded wholesale market participant.
A73: It should be noted that this schedule does not list any charges, assessments or credits that are required by law to be invoiced by a distributor and that are not subject to Board approval, such as the Debt Retirement Charge, the Global Adjustment, the Ontario Clean Energy Benefit and the HST.
A75: MONTHLY RATES AND CHARGES - Delivery Component
A77: Service Charge | H77: $ | I77: 20.33
A78: Rate Rider for Disposition of Residual Historical Smart Meter Costs - effective until April 30, 2014 | H78: $ | I78: 12.51
A79: Rate Rider for Recovery of Smart Meter Incremental Revenue Requirement - in effect until the effective date of the next cost of service-based rate order | H79: $ | I79: 7.11
A80: Rate Rider for Smart Metering Entity Charge - effective until October 31, 2018 | H80: $ | I80: 0.79
A81: Distribution Volumetric Rate | H81: $/kWh | I81: 0.0199
A82: Rate Rider for Disposition of Deferral/Variance Accounts (2010) - effective until December 31, 2014 | H82: $/kWh | I82: -0.0018
A83: Rate Rider for Deferral/Variance Account Disposition (2014) - effective until December 31, 2015 | H83: $/kWh | I83: -0.001
A84: Rate Rider for Global Adjustment Sub-Account Disposition (2014) - effective until December 31, 2015
A85: Applicable only for Non-RPP Customers | H85: $/kWh | I85: 0.0002
A86: Retail Transmission Rate - Network Service Rate | H86: $/kWh | I86: 0.0072
A87: Retail Transmission Rate - Line and Transformation Connection Service Rate | H87: $/kWh | I87: 0.0054
A89: MONTHLY RATES AND CHARGES - Regulatory Component
A91: Wholesale Market Service Rate | H91: $/kWh | I91: 0.0044
A92: Rural Rate Protection Charge | H92: $/kWh | I92: 0.0012
A93: Standard Supply Service - Administrative Charge (if applicable) | H93: $ | I93: 0.25
A96: GENERAL SERVICE 50 TO 4,999 KW SERVICE CLASSIFICATION
A98: This classification applies to a non residential account whose average monthly maximum demand used for billing purposes is equal to or greater than, or is forecast to be equal to or greater than, 50 kW but less than 5,000 kW and includes apartment buildings, and commercial, industrial, and institutional developments. Further servicing details are available in the distributor’s Conditions of Service.
A100: APPLICATION
A102: The application of these rates and charges shall be in accordance with the Licence of the Distributor and any Code or Order of the Board, and amendments thereto as approved by the Board, which may be applicable to the administration of this schedule.
A104: No rates and charges for the distribution of electricity and charges to meet the costs of any work or service done or furnished for the purpose of the distribution of electricity shall be made except as permitted by this schedule, unless required by the Distributor’s Licence or a Code or Order of the Board, and amendments thereto as approved by the Board, or as specified herein.
A106: Unless specifically noted, this schedule does not contain any charges for the electricity commodity, be it under the Regulated Price Plan, a contract with a retailer or the wholesale market price, as applicable. In addition, the charges in the MONTHLY RATES AND CHARGES - Regulatory Component of this schedule do not apply to a customer that is an embedded wholesale market participant.
A108: It should be noted that this schedule does not list any charges, assessments or credits that are required by law to be invoiced by a distributor and that are not subject to Board approval, such as the Debt Retirement Charge, the Global Adjustment, the Ontario Clean Energy Benefit and the HST.
A110: MONTHLY RATES AND CHARGES - Delivery Component
A112: Service Charge | H112: $ | I112: 196.44
A113: Distribution Volumetric Rate | H113: $/kW | I113: 4.0221
A114: Rate Rider for Disposition of Deferral/Variance Accounts (2010) - effective until December 31, 2014 | H114: $/kW | I114: -0.6875
A115: Rate Rider for Deferral/Variance Account Disposition (2014) - effective until December 31, 2015 | H115: $/kW | I115: -0.4079
A116: Rate Rider for Global Adjustment Sub-Account Disposition (2014) - effective until December 31, 2015
A117: Applicable only for Non-RPP Customers | H117: $/kW | I117: 0.0981
A118: Retail Transmission Rate - Network Service Rate | H118: $/kW | I118: 2.9032
A119: Retail Transmission Rate - Line and Transformation Connection Service Rate | H119: $/kW | I119: 2.0583
A121: MONTHLY RATES AND CHARGES - Regulatory Component
A123: Wholesale Market Service Rate | H123: $/kWh | I123: 0.0044
A124: Rural Rate Protection Charge | H124: $/kWh | I124: 0.0012
A125: Standard Supply Service - Administrative Charge (if applicable) | H125: $ | I125: 0.25
A128: UNMETERED SCATTERED LOAD SERVICE CLASSIFICATION
A130: This classification applies to an account whose average monthly maximum demand is less than, or is forecast to be less than, 50 kW and the consumption is unmetered. Such connections include cable TV power packs, bus shelters, telephone booths, traffic lights, railway crossings, decorative lighting, billboards, etc. The level of the consumption will be agreed to by the distributor and the customer, based on detailed manufacturer information/documentation with regard to electrical consumption of the unmetered load or periodic monitoring of actual consumption. Further servicing details are available in the distributor’s Conditions of Service.
A132: APPLICATION
A134: The application of these rates and charges shall be in accordance with the Licence of the Distributor and any Code or Order of the Board, and amendments thereto as approved by the Board, which may be applicable to the administration of this schedule.
A136: No rates and charges for the distribution of electricity and charges to meet the costs of any work or service done or furnished for the purpose of the distribution of electricity shall be made except as permitted by this schedule, unless required by the Distributor’s Licence or a Code or Order of the Board, and amendments thereto as approved by the Board, or as specified herein.
A138: Unless specifically noted, this schedule does not contain any charges for the electricity commodity, be it under the Regulated Price Plan, a contract with a retailer or the wholesale market price, as applicable. In addition, the charges in the MONTHLY RATES AND CHARGES - Regulatory Component of this schedule do not apply to a customer that is an embedded wholesale market participant.
A140: It should be noted that this schedule does not list any charges, assessments or credits that are required by law to be invoiced by a distributor and that are not subject to Board approval, such as the Debt Retirement Charge, the Global Adjustment, the Ontario Clean Energy Benefit and the HST.
A142: MONTHLY RATES AND CHARGES - Delivery Component
A144: Service Charge (per connection) | H144: $ | I144: 9.52
A145: Distribution Volumetric Rate | H145: $/kWh | I145: 0.031
A146: Rate Rider for Disposition of Deferral/Variance Accounts (2010) - effective until December 31, 2014 | H146: $/kWh | I146: -0.0018
A147: Rate Rider for Deferral/Variance Account Disposition (2014) - effective until December 31, 2015 | H147: $/kWh | I147: -0.001
A148: Retail Transmission Rate - Network Service Rate | H148: $/kWh | I148: 0.0072
A149: Retail Transmission Rate - Line and Transformation Connection Service Rate | H149: $/kWh | I149: 0.0054
A151: MONTHLY RATES AND CHARGES - Regulatory Component
A153: Wholesale Market Service Rate | H153: $/kWh | I153: 0.0044
A154: Rural Rate Protection Charge | H154: $/kWh | I154: 0.0012
A155: Standard Supply Service - Administrative Charge (if applicable) | H155: $ | I155: 0.25
A158: SENTINEL LIGHTING SERVICE CLASSIFICATION
A160: This classification refers to accounts that are an unmetered lighting load supplied to a sentinel light. Further servicing details are available in the distributor’s Conditions of Service.
A162: APPLICATION
A164: The application of these rates and charges shall be in accordance with the Licence of the Distributor and any Code or Order of the Board, and amendments thereto as approved by the Board, which may be applicable to the administration of this schedule.
A166: No rates and charges for the distribution of electricity and charges to meet the costs of any work or service done or furnished for the purpose of the distribution of electricity shall be made except as permitted by this schedule, unless required by the Distributor’s Licence or a Code or Order of the Board, and amendments thereto as approved by the Board, or as specified herein.
A168: Unless specifically noted, this schedule does not contain any charges for the electricity commodity, be it under the Regulated Price Plan, a contract with a retailer or the wholesale market price, as applicable. In addition, the charges in the MONTHLY RATES AND CHARGES - Regulatory Component of this schedule do not apply to a customer that is an embedded wholesale market participant.
A170: It should be noted that this schedule does not list any charges, assessments or credits that are required by law to be invoiced by a distributor and that are not subject to Board approval, such as the Debt Retirement Charge, the Global Adjustment, the Ontario Clean Energy Benefit and the HST.
A172: MONTHLY RATES AND CHARGES - Delivery Component
A174: Service Charge (per light) | H174: $ | I174: 5.41
A175: Distribution Volumetric Rate | H175: $/kW | I175: 14.6423
A176: Rate Rider for Disposition of Deferral/Variance Accounts (2010) - effective until December 31, 2014 | H176: $/kW | I176: -0.4912
A177: Rate Rider for Deferral/Variance Account Disposition (2014) - effective until December 31, 2015 | H177: $/kW | I177: -0.3436
A178: Retail Transmission Rate - Network Service Rate | H178: $/kW | I178: 2.2007
A179: Retail Transmission Rate - Line and Transformation Connection Service Rate | H179: $/kW | I179: 1.6246
A181: MONTHLY RATES AND CHARGES - Regulatory Component
A183: Wholesale Market Service Rate | H183: $/kWh | I183: 0.0044
A184: Rural Rate Protection Charge | H184: $/kWh | I184: 0.0012
A185: Standard Supply Service - Administrative Charge (if applicable) | H185: $ | I185: 0.25
A188: STREET LIGHTING SERVICE CLASSIFICATION
A190: This classification relates to the supply of power for street lighting installations. Street lighting design and installations shall be in accordance with the requirements of Whitby Hydro, Town of Whitby specifications and ESA. The Town of Whitby retains ownership of the street lighting system on municipal roadways. Further servicing details are available in the distributor’s Conditions of Service.
A192: APPLICATION
A194: The application of these rates and charges shall be in accordance with the Licence of the Distributor and any Code or Order of the Board, and amendments thereto as approved by the Board, which may be applicable to the administration of this schedule.
A196: No rates and charges for the distribution of electricity and charges to meet the costs of any work or service done or furnished for the purpose of the distribution of electricity shall be made except as permitted by this schedule, unless required by the Distributor’s Licence or a Code or Order of the Board, and amendments thereto as approved by the Board, or as specified herein.
A198: Unless specifically noted, this schedule does not contain any charges for the electricity commodity, be it under the Regulated Price Plan, a contract with a retailer or the wholesale market price, as applicable. In addition, the charges in the MONTHLY RATES AND CHARGES - Regulatory Component of this schedule do not apply to a customer that is an embedded wholesale market participant.
A200: It should be noted that this schedule does not list any charges, assessments or credits that are required by law to be invoiced by a distributor and that are not subject to Board approval, such as the Debt Retirement Charge, the Global Adjustment, the Ontario Clean Energy Benefit and the HST.
A202: MONTHLY RATES AND CHARGES - Delivery Component
A204: Service Charge (per light) | H204: $ | I204: 1.71
A205: Distribution Volumetric Rate | H205: $/kW | I205: 6.7805
A206: Rate Rider for Disposition of Deferral/Variance Accounts (2010) - effective until December 31, 2014 | H206: $/kW | I206: -0.7408
A207: Rate Rider for Deferral/Variance Account Disposition (2014) - effective until December 31, 2015 | H207: $/kW | I207: -0.3548
A208: Rate Rider for Global Adjustment Sub-Account Disposition (2014) - effective until December 31, 2015
A209: Applicable only for Non-RPP Customers | H209: $/kW | I209: 0.0853
A210: Retail Transmission Rate - Network Service Rate | H210: $/kW | I210: 2.1896
A211: Retail Transmission Rate - Line and Transformation Connection Service Rate | H211: $/kW | I211: 1.5913
A213: MONTHLY RATES AND CHARGES - Regulatory Component
A215: Wholesale Market Service Rate | H215: $/kWh | I215: 0.0044
A216: Rural Rate Protection Charge | H216: $/kWh | I216: 0.0012
A217: Standard Supply Service - Administrative Charge (if applicable) | H217: $ | I217: 0.25
A220: MICROFIT SERVICE CLASSIFICATION
A222: This classification applies to an electricity generation facility contracted under the Ontario Power Authority’s microFIT program and connected to the distributor’s distribution system. Further servicing details are available in the distributor’s Conditions of Service.
A224: APPLICATION
A226: The application of these rates and charges shall be in accordance with the Licence of the Distributor and any Code or Order of the Board, and amendments thereto as approved by the Board, which may be applicable to the administration of this schedule.
A228: No rates and charges for the distribution of electricity and charges to meet the costs of any work or service done or furnished for the purpose of the distribution of electricity shall be made except as permitted by this schedule, unless required by the Distributor’s Licence or a Code or Order of the Board, and amendments thereto as approved by the Board, or as specified herein.
A230: Unless specifically noted, this schedule does not contain any charges for the electricity commodity, be it under the Regulated Price Plan, a contract with a retailer or the wholesale market price, as applicable.
A232: It should be noted that this schedule does not list any charges, assessments or credits that are required by law to be invoiced by a distributor and that are not subject to Board approval, such as the Debt Retirement Charge, the Global Adjustment, the Ontario Clean Energy Benefit and the HST.
A234: MONTHLY RATES AND CHARGES - Delivery Component
A236: Service Charge | H236: $ | I236: 5.4
A238: MONTHLY RATES AND CHARGES - Regulatory Component
A240: MONTHLY RATES AND CHARGES - Regulatory Component
A243: ALLOWANCES
A245: Transformer Allowance for Ownership - per kW of billing demand/month | H245: $/kW | I245: -0.6
A246: Primary Metering Allowance for transformer losses – applied to measured demand and energy | H246: % | I246: -1
A248: SPECIFIC SERVICE CHARGES
A250: APPLICATION
A252: The application of these rates and charges shall be in accordance with the Licence of the Distributor and any Code or
A253: Order of the Board, and amendments thereto as approved by the Board, which may be applicable to the
A254: administration of this schedule
A256: No charges to meet the costs of any work or service done or furnished for the purpose of the distribution of electricity
A257: shall be made except as permitted by this schedule, unless required by the Distributor’s Licence or a Code or Order
A258: of the Board, and amendments thereto as approved by the Board, or as specified herein.
A260: It should be noted that this schedule does not list any charges, assessments, or credits that are required by law to be
A261: invoiced by a distributor and that are not subject to Board approval, such as the Debt Retirement Charge, the Global
A262: Adjustment, the Ontario Clean Energy Benefit and the HST.
A265: Customer Administration
A267: Arrears certificate | H267: $ | I267: 15
A268: Statement of Account | H268: $ | I268: 15
A269: Pulling Post Dated Cheques | H269: $ | I269: 15
A270: Easement Letter | H270: $ | I270: 15
A271: Account History | H271: $ | I271: 15
A272: Credit Reference/credit check (plus credit agency costs) | H272: $ | I272: 15
A273: Account set up charge/change of occupancy charge (plus credit agency costs if applicable) | H273: $ | I273: 30
A274: Returned cheque (plus bank charges) | H274: $ | I274: 15
A275: Special meter reads | H275: $ | I275: 30
A276: Meter dispute charge plus Measurement Canada fees (if meter found correct) | H276: $ | I276: 30
A277: Legal letter charge | H277: $ | I277: 15
A279: Non-Payment of Account
A281: Late Payment – per month | H281: % | I281: 1.5
A282: Late Payment – per annum | H282: % | I282: 19.56
A283: Collection of account charge – no disconnection | H283: $ | I283: 30
A284: Collection of account charge – no disconnection – after regular hours | H284: $ | I284: 165
A285: Disconnect/Reconnect at meter – during regular hours | H285: $ | I285: 65
A286: Disconnect/Reconnect at meter – after regular hours | H286: $ | I286: 185
A287: Disconnect/Reconnect at pole – during regular hours | H287: $ | I287: 185
A288: Disconnect/Reconnect at pole – after regular hours | H288: $ | I288: 415
A289: Install/Remove load control device – during regular hours | H289: $ | I289: 65
A290: Install/Remove load control device – after regular hours | H290: $ | I290: 185
A291: Service call – customer owned equipment | H291: $ | I291: 30
A292: Service call – after regular hours | H292: $ | I292: 165
A293: Temporary service install & remove – overhead – no transformer | H293: $ | I293: 500
A294: Temporary Service Install & Remove – Underground – No Transformer | H294: $ | I294: 300
A295: Temporary Service Install & Remove – Overhead – With Transformer | H295: $ | I295: 1000
A296: Specific Charge for Access to the Power Poles - $/pole/year | H296: $ | I296: 22.35
A297: RETAIL SERVICE CHARGES (if applicable)
A299: The application of these rates and charges shall be in accordance with the Licence of the Distributor and any Code or
A300: Order of the Board, and amendments thereto as approved by the Board, which may be applicable to the
A301: administration of this schedule.
A303: No rates and charges for the distribution of electricity and charges to meet the costs of any work or service done or
A304: furnished for the purpose of the distribution of electricity shall be made except as permitted by this schedule, unless
... 26 more rows

Sheet 14. Bill Impacts (hidden)
Z1: =MATCH(A13, '3. Rate Class Selection'!B19:B40,0) -> 1 | AA1: =VLOOKUP(A13, lists!AO:AP,2,0) -> kWh
A11: Choose a Rate Class from the drop-down menu below and click UPDATE. For Street Lighting and USL classes, please ensure that the number of customers is manually entered into cells B30 and B31. Click the UPDATE button to refresh the sheet.
A13: RESIDENTIAL | F13: =IF(ISERROR(SEARCH("MicroFit",A13,1))=FALSE,"Bill impact presentation for this class does not exist.", "") -> 
A15: Consumption | B15: =730*D15*B17 -> 3650000 | C15: kWh | D15: 10000 | E15: =IF(AA1 = "kWh", "", "kW") -> 
A16: RPP Tier One | B16: 600 | C16: kWh | E16: 1
A17: Load Factor | B17: 0.5
A18: Loss Factor | B18: 1
B21: CURRENT ESTIMATED BILL | E21: PROPOSED ESTIMATED BILL
B22: Volume | C22: Current Rate ($) | D22: Current Charge ($) | E22: Volume | F22: Proposed Rate ($) | G22: Proposed Charge ($) | I22: Change ($) | J22: Change (%) | K22: % of Total RPP Bill | L22: % of Total TOU Bill
A23: Energy First Tier (kWh) | B23: 3650000 | C23: 0.075 | D23: =B23*C23 -> 273750 | E23: =B23 -> 3650000 | F23: =C23 -> 0.075 | G23: =E23*F23 -> 273750 | I23: =G23-D23 -> 0 | J23: =I23/D23 -> 0 | K23: =G23/G48 -> 0.8646078577
A24: Energy Second Tier (kWh) | B24: 0 | C24: 0.088 | D24: =B24*C24 -> 0 | E24: =B24 -> 0 | F24: =C24 -> 0.088 | G24: =E24*F24 -> 0 | I24: =G24-D24 -> 0 | J24: 0 | K24: =G24/G48 -> 0
A26: TOU - Off Peak | B26: =0.64*$B$15*$B$18 -> 2336000 | C26: 0.065 | D26: =C26*B26 -> 151840 | E26: =B26 -> 2336000 | F26: =C26 -> 0.065 | G26: =F26*E26 -> 151840 | I26: =G26-D26 -> 0 | J26: =I26/D26 -> 0 | L26: =G26/G54 -> 0.449726096
A27: TOU - Mid Peak | B27: =0.18*$B$15*$B$18 -> 657000 | C27: 0.1 | D27: =C27*B27 -> 65700 | E27: =B27 -> 657000 | F27: =C27 -> 0.1 | G27: =F27*E27 -> 65700 | H27: 6570 | I27: =G27-D27 -> 0 | J27: =I27/D27 -> 0 | L27: =G27/G54 -> 0.1945930223
A28: TOU - On Peak | B28: =0.18*$B$15*$B$18 -> 657000 | C28: 0.117 | D28: 76869 | F28: 0.117 | G28: =F28*E28 -> 0 | H28: 0 | J28: =I28/D28 -> 0 | L28: =G28/G54 -> 0
A30: Service Charge | B30: 1 | D30: 0 | G30: =F30*E30 -> 0 | H30: 0 | J30: 0 | K30: 0 | L30: 0
A31: Service Charge Rate Rider(s) | B31: 1 | C31: 0 | D31: 0 | F31: 0 | G31: =F31*E31 -> 0 | H31: =G31*F31 -> 0 | J31: 0 | K31: 0 | L31: 0
A32: Distribution Volumetric Rate | B32: 10000 | D32: 0 | E32: =B32 -> 10000 | G32: 0 | H32: 0 | I32: 0 | J32: 0 | K32: 0 | L32: 0
A33: Low Voltage Volumetric Rate | B33: 10000 | D33: 0 | G33: 0 | H33: 0 | J33: 0 | K33: 0 | L33: 0
A34: Distribution Volumetric Rate Rider(s) | B34: 10000 | C34: 0 | D34: 0 | F34: 1.2025 | G34: 0 | H34: 0 | J34: 0 | K34: =G34/G48 -> 0 | L34: =G34/G54 -> 0
A35: Total: Distribution | D35: =ROUND(SUM(D30:D34),2) -> 0 | G35: =ROUND(SUM(G30:G34),2) -> 0 | J35: 0 | K35: =G35/G48 -> 0 | L35: =G35/G54 -> 0
A36: Total: Retail Transmission
A37: Sub-Total: Delivery (Distribution and Retail Transmission) | D37: =SUM(D36,D35) -> 0 | G37: =SUM(G36,G35) -> 0 | J37: 0 | K37: =G37/G48 -> 0 | L37: =G37/G54 -> 0
A38: Wholesale Market Service Rate | B38: 3650000 | C38: 0 | D38: =B38*C38 -> 0 | F38: =C38 -> 0 | G38: =E38*F38 -> 0 | J38: 0 | K38: 0 | L38: 0
A39: Rural Rate Protection Charge | B39: 3650000 | C39: 0 | D39: =B39*C39 -> 0 | E39: 3650000 | F39: 0 | G39: =E39*F39 -> 0 | I39: =G39-D39 -> 0 | J39: 0 | K39: 0 | L39: 0
A40: Standard Supply Service – Administration Charge (if applicable) | B40: 1 | C40: 0 | D40: 0 | E40: 1 | F40: 0 | G40: =E40*F40 -> 0 | I40: 0 | J40: 0 | K40: 0 | L40: 0
A41: Sub-Total: Regulatory | D41: =SUM(D38:D40) -> 0 | G41: =SUM(G38:H40) -> 0 | I41: =G41-D41 -> 0 | J41: 0 | K41: 0 | L41: 0
A42: Debt Retirement Charge (DRC) | B42: 3650000 | C42: 0.007 | D42: 25550 | E42: =B42 -> 3650000 | F42: =C42 -> 0.007 | G42: =E42*F42 -> 25550 | I42: 0 | J42: =I42/D42 -> 0 | K42: =G42/G48 -> 0.08069673339 | L42: =G42/G54 -> 0.07567506422
A44: Total Bill on RPP (before taxes) | D44: 299300 | G44: 311325 | I44: =G44-D44 -> 12025 | J44: =I44/D44 -> 0.04017707985 | K44: =G44/G48 -> 0.9832841691
A45: HST | C45: 0.13 | D45: =C45*D44 -> 38909 | F45: =C45 -> 0.13 | G45: =F45*G44 -> 40472.25 | I45: =G45-D45 -> 1563.25 | J45: =I45/D45 -> 0.04017707985 | K45: =G45/G48 -> 0.127826942
A46: Total Bill (including HST) | D46: =D45+D44 -> 338209 | G46: =G45+G44 -> 351797.25 | I46: =G46-D46 -> 13588.25 | J46: =I46/D46 -> 0.04017707985 | K46: =G46/G48 -> 1.111111111
A47: Ontario Clean Energy Benefit (OCEB) | C47: -0.1 | D47: =-0.1*D46 -> -33820.9 | F47: =C47 -> -0.1 | G47: =-0.1*G46 -> -35179.725 | I47: =G47-D47 -> -1358.825 | J47: =I47/D47 -> 0.04017707985 | K47: =G47/G48 -> -0.1111111111
A48: Total Bill on RPP (including OCEB) | D48: =D46+D47 -> 304388.1 | G48: =G46+G47 -> 316617.525 | I48: =G48-D48 -> 12229.425 | J48: =I48/D48 -> 0.04017707985 | K48: =G48/G48 -> 1
A50: Total Bill on TOU (before taxes) | D50: 319959 | G50: 331984 | I50: =G50-D50 -> 12025 | J50: =I50/D50 -> 0.03758294031 | L50: =G50/G54 -> 0.9832841691
A51: HST | C51: 0.13 | D51: =C51*D50 -> 41594.67 | F51: =C51 -> 0.13 | G51: =F51*G50 -> 43157.92 | I51: =G51-D51 -> 1563.25 | J51: =I51/D51 -> 0.03758294031 | L51: =G51/G54 -> 0.127826942
A52: Total Bill (including HST) | D52: =D51+D50 -> 361553.67 | G52: =G51+G50 -> 375141.92 | I52: =G52-D52 -> 13588.25 | J52: =I52/D52 -> 0.03758294031 | L52: =G52/G54 -> 1.111111111
A53: Ontario Clean Energy Benefit (OCEB) | C53: -0.1 | D53: =-0.1*D52 -> -36155.367 | F53: =C53 -> -0.1 | G53: =-0.1*G52 -> -37514.192 | I53: =G53-D53 -> -1358.825 | J53: =I53/D53 -> 0.03758294031 | L53: =G53/G54 -> -0.1111111111
A54: Total Bill on TOU (including OCEB) | D54: =D52+D53 -> 325398.303 | G54: =G52+G53 -> 337627.728 | I54: =G54-D54 -> 12229.425 | J54: =I54/D54 -> 0.03758294031 | L54: =G54/G54 -> 1
A57: Applicants must provide bill impacts for residential at 800 kWh and GS<50kW at 2000 kWh. In addition, their filing should cover the range that is relevant to their service territory, class by class. A general guideline of consumption levels follows: Residential (kWh) - 100, 250, 500, 800, 1000, 1500, 2000 GS<50kW (kWh) - 1000, 2000, 5000, 10000, 15000 GS>50kW (kW) 100, 500, 1000 Large User - range appropriate for utility Street/Sentinel Lighting Classes and USL - 150 kWh and 1 kW, range appropriate for utility.

Sheet 14. Bill Impacts1
S1: 1 | Z1: =MATCH(C14, '3. Rate Class Selection'!B19:B40,0) -> 3 | AA1: =VLOOKUP(C14, lists!AO:AP,2,0) -> kW
A14: Rate Class | C14: GENERAL SERVICE 50 TO 4,999 KW
A16: Loss Factor | E16: 1.0454
A18: Consumption | C18: kWh | E18: =730*E21*E22 -> 40000
A20: If Billed on a kW basis:
A21: Demand | C21: kW | E21: 100
A22: Load Factor | E22: 0.5479452055
E23: =IF(AND(ISNUMBER(E21), ISBLANK(E22)), "Please enter a load factor", "") -> 
E25: Current Board-Approved | I25: Proposed | M25: Impact
E26: Rate | F26: Volume | G26: Charge | I26: Rate | J26: Volume | K26: Charge | M26: $ Change | N26: % Change
E27: ($) | G27: ($) | I27: ($) | K27: ($)
A28: Monthly Service Charge | E28: 194.53 | F28: 1 | G28: =F28*E28 -> 194.53 | I28: 196.44 | J28: 1 | K28: =J28*I28 -> 196.44 | M28: =K28-G28 -> 1.91 | N28: =IF((G28)=0,"",(M28/G28)) -> 0.009818536987
A29: Distribution Volumetric Rate | E29: 3.9831 | G29: =F29*E29 -> 0 | I29: 4.0221 | J29: =F29 -> 0 | K29: =J29*I29 -> 0 | M29: =K29-G29 -> 0 | N29: =IF((G29)=0,"",(M29/G29)) -> 
A30: Fixed Rate Riders | E30: 0 | F30: 1 | G30: =F30*E30 -> 0 | I30: 0 | J30: 1 | K30: =J30*I30 -> 0 | M30: =K30-G30 -> 0 | N30: =IF((G30)=0,"",(M30/G30)) -> 
A31: Volumetric Rate Riders | E31: 0.54 | G31: 0 | I31: 0 | J31: =F31 -> 0 | K31: 0 | M31: 0
A32: Sub-Total A (excluding pass through) | G32: =SUM(G28:G31) -> 194.53 | K32: =SUM(K28:K31) -> 196.44 | M32: 1.91 | N32: 0.009818536987
A33: Line Losses on Cost of Power | E33: =E45*0.64+E46*0.18+E47*0.18 -> 0.08392 | F33: =E18*(E16-1) -> 1816 | G33: =E33*F33 -> 152.39872 | I33: =I45*0.64+I46*0.18+I47*0.18 -> 0.08392 | J33: =F33 -> 1816 | K33: =I33*J33 -> 152.39872 | M33: 0 | N33: 0
A34: Total Deferral/Variance Account Rate Riders | E34: -1.5542 | G34: =F34*E34 -> 0 | I34: -1.0954 | J34: =F34 -> 0 | K34: =J34*I34 -> 0 | M34: =K34-G34 -> 0 | N34: =IF((G34)=0,"",(M34/G34)) -> 
A35: Low Voltage Service Charge | G35: =F35*E35 -> 0 | J35: =F35 -> 0 | K35: =J35*I35 -> 0 | M35: =K35-G35 -> 0 | N35: =IF((G35)=0,"",(M35/G35)) -> 
A36: Smart Meter Entity Charge | F36: 1 | G36: =F36*E36 -> 0 | J36: =F36 -> 1 | K36: =J36*I36 -> 0 | M36: =K36-G36 -> 0 | N36: =IF((G36)=0,"",(M36/G36)) -> 
A37: Sub-Total B - Distribution (includes Sub-Total A) | G37: =SUM(G34:G36)+G32 -> 194.53 | K37: =SUM(K34:K36)+K32 -> 196.44 | M37: =K37-G37 -> 1.91 | N37: =IF((G37)=0,"",(M37/G37)) -> 0.009818536987
A38: RTSR - Network | E38: 2.7595 | F38: 0 | G38: =F38*E38 -> 0 | I38: 2.9032 | J38: =F38 -> 0 | K38: =J38*I38 -> 0 | M38: 0
A39: RTSR - Connection and/or Line and Transformation Connection | E39: 2.0707 | F39: 0 | G39: =F39*E39 -> 0 | I39: 2.0583 | J39: =F39 -> 0 | K39: =J39*I39 -> 0 | M39: 0
A40: Sub-Total C - Delivery (including Sub-Total B) | G40: =SUM(G37:G39) -> 194.53 | K40: =SUM(K37:K39) -> 196.44 | M40: 1.91 | N40: 0.009818536987
A41: Wholesale Market Service Charge (WMSC) | E41: 0.0044 | F41: =E18*E16 -> 41816 | G41: =F41*E41 -> 183.9904 | I41: 0.0044 | J41: =E18*E16 -> 41816 | K41: =J41*I41 -> 183.9904 | M41: 0 | N41: 0
A42: Rural and Remote Rate Protection (RRRP) | E42: 0.0012 | F42: =E18*E16 -> 41816 | G42: 50.1792 | I42: 0.0012 | J42: =E18*E16 -> 41816 | K42: 50.1792 | M42: 0 | N42: 0
A43: Standard Supply Service Charge | E43: 0.25 | F43: 1 | G43: 0.25 | I43: 0.25 | J43: 1 | K43: 0.25 | M43: 0 | N43: 0
A44: Debt Retirement Charge (DRC) | E44: 0.007 | F44: =E18 -> 40000 | G44: 280 | I44: 0.007 | J44: =E18 -> 40000 | K44: 280 | M44: 0 | N44: 0
A45: TOU - Off Peak | E45: 0.067 | F45: 0 | G45: 0 | I45: 0.067 | J45: =F45 -> 0 | K45: 0 | M45: 0
A46: TOU - Mid Peak | E46: 0.104 | F46: 0 | G46: 0 | I46: 0.104 | J46: 0 | K46: 0 | M46: 0
A47: TOU - On Peak | E47: 0.124 | F47: 0 | G47: 0 | I47: 0.124 | J47: =F47 -> 0 | K47: 0 | M47: 0
A49: Total Bill on TOU (before Taxes) | G49: =SUM(G40:G44,G45:G47) -> 708.9496 | K49: =SUM(K40:K44,K45:K47) -> 710.8596 | M49: =K49-G49 -> 1.91 | N49: =IF((G49)=0,"",(M49/G49)) -> 0.002694126635
A50: HST | E50: 0.13 | G50: =G49*E50 -> 92.163448 | I50: 0.13 | K50: =K49*I50 -> 92.411748 | M50: 0.2483 | N50: 0.002694126635
A51: Total Bill (including HST) | G51: =G49+G50 -> 801.113048 | K51: =K49+K50 -> 803.271348 | M51: 2.1583 | N51: 0.002694126635
A52: Ontario Clean Energy Benefit 1 | G52: =ROUND(-G51*10%,2) -> -80.11 | K52: =ROUND(-K51*10%,2) -> -80.33 | M52: -0.22 | N52: 0.002746223942
A53: Total Bill on TOU (including OCEB) | G53: =G51+G52 -> 721.003048 | K53: =K51+K52 -> 722.941348 | M53: 1.9383 | N53: 0.00268833815
A58: Note: For distributors who have a majority of customers on Tiered pricing, please provide a separate bill impact for such customers.

Sheet lists (hidden)
A1: DISTRIBUTED GENERATION [DGEN] | B1: Embedded Distributor | C1: =COUNTA(B1:B17) -> 4 | I1: Distribution Volumetric Rate | L1: Loss Factors | N1: Units | O1: Units1 | P1: Units2 | Z1: Account History | AA1: Account set up charge/change of occupancy charge (plus credit agency costs if applicable) | AB1: Total Loss Factor – Embedded Distributor – Hydro One Networks Inc. | AL1: Algoma Power Inc. | AM1: Algoma Power Inc. | AO1: DISTRIBUTED GENERATION [DGEN] | AP1: kW | AT1: Sub-Total: Delivery (Distribution and Retail Transmission)
A2: EMBEDDED DISTRIBUTOR | B2: General Service 3,000 to 4,999 kW | I2: Distribution Volumetric Rate - $/kW of contracted amount | L2: Total Loss Factor – Primary Metered Customer | N2: $ | O2: $/kWh | P2: $ | Z2: Account set up charge/change of occupancy charge | AA2: Administrative Billing Charge | AB2: Total Loss Factor – Primary Metered Customer | AL2: Atikokan Hydro Inc. | AM2: Atikokan Hydro Inc. | AO2: EMBEDDED DISTRIBUTOR | AP2: kW | AT2: Wholesale Market Service Rate | AW2: =AU2*AV2 -> 0 | AX2: =AU2 -> 0 | AY2: 0 | AZ2: =AX2*AY2 -> 0 | BB2: =AZ2-AW2 -> 0 | BC2: =BB2/AW2 -> 
A3: EMBEDDED DISTRIBUTOR | B3: General Service 1,000 to 4,999 kW | I3: Distribution Wheeling Service Rate | L3: Total Loss Factor – Primary Metered Customer < 5,000 kW | N3: $/kWh | O3: $/kW | P3: % | W3: MSC | Z3: Account set up charge/change of occupancy charge (plus credit agency costs if applicable – Residential) | AA3: Bell Canada Pole Rentals | AB3: Total Loss Factor – Primary Metered Customer < 5,000 kW | AL3: Attawapiskat Power Corp. | AM3: Attawapiskat Power Corp. | AO3: EMBEDDED DISTRIBUTOR | AP3: kW | AT3: Rural Rate Protection Charge | AW3: =AU3*AV3 -> 0 | AX3: 0 | AY3: 0 | AZ3: =AX3*AY3 -> 0 | BB3: =AZ3-AW3 -> 0 | BC3: =BB3/AW3 -> 
A4: FARMS - SINGLE PHASE ENERGY-BILLED [F1] | B4: General Service Equal To Or Greater Than 1,500 kW - Interval Metered | I4: General Service 1,500 to 4,999 kW customer | L4: Total Loss Factor – Primary Metered Customer > 5,000 kW | N4: $/kW | O4: $/kVA | W4: SM_Rate_Adder | Z4: Account set up charge/change of occupancy charge (plus credit agency costs if applicable) | AA4: Clearance Pole Attachment charge $/pole/year | AB4: Total Loss Factor – Primary Metered Customer > 5,000 kW | AL4: Bluewater Power Distribution Corporation | AM4: Bluewater Power Distribution Corporation | AO4: FARMS - SINGLE PHASE ENERGY-BILLED [F1] | AP4: kWh | AT4: Standard Supply Service – Administration Charge (if applicable) | AW4: 0 | AX4: 0 | AY4: 0 | AZ4: =AX4*AY4 -> 0 | BB4: 0
A5: FARMS - THREE PHASE ENERGY-BILLED [F3] | I5: General Service 50 to 1,499 kW customer | L5: Total Loss Factor – Secondary Metered Customer | N5: $/kVA | W5: MSC_Rate_Rider_ | Z5: Arrears certificate | AA5: Collection of account charge – no disconnection | AB5: Total Loss Factor – Secondary Metered Customer | AL5: Brant County Power Inc. | AM5: Brant County Power Inc. | AO5: FARMS - THREE PHASE ENERGY-BILLED [F3] | AP5: kWh | AT5: Sub-Total: Regulatory | AW5: =SUM(AW2:AW4) -> 0 | AZ5: =SUM(AZ2:BA4) -> 0 | BB5: =AZ5-AW5 -> 0
A6: GENERAL SERVICE - COMMERCIAL | I6: General Service Large Use customer | L6: Total Loss Factor – Secondary Metered Customer < 5,000 kW | W6: VC | Z6: Arrears certificate (credit reference) | AA6: Collection of account charge – no disconnection – after regular hours | AB6: Total Loss Factor – Secondary Metered Customer < 5,000 kW | AL6: Brantford Power Inc. | AM6: Brantford Power Inc. | AO6: GENERAL SERVICE - COMMERCIAL | AP6: kW | AT6: Debt Retirement Charge (DRC) | AW6: 0 | AX6: =AU6 -> 0 | AY6: =AV6 -> 0 | AZ6: =AX6*AY6 -> 0 | BB6: 0
A7: GENERAL SERVICE - INSTITUTIONAL | I7: Green Energy Act Plan Funding Adder | AL7: Burlington Hydro Inc. | AM7: Burlington Hydro Inc. | AO7: GENERAL SERVICE - INSTITUTIONAL | AP7: kW
A8: GENERAL SERVICE 1,000 TO 2,999 KW | I8: Green Energy Act Plan Funding Adder - effective April 1, 2013 until March 31, 2014 | L8: Total Loss Factor – Secondary Metered Customer > 5,000 kW | W8: VC_Rate_Rider_ | Z8: Charge to certify cheque | AA8: Collection of account charge – no disconnection - during regular business hours | AB8: Total Loss Factor – Secondary Metered Customer > 5,000 kW | AL8: Cambridge and North Dumfries Hydro Inc. | AM8: Cambridge and North Dumfries Hydro Inc. | AO8: GENERAL SERVICE 1,000 TO 2,999 KW | AP8: kW | AT8: Total Bill on RPP (before taxes) | BB8: =AZ8-AW8 -> 0
A9: GENERAL SERVICE 1,000 TO 4,999 KW - INTERVAL METERS | I9: Green Energy Act Plan Funding Adder - effective until March 31, 2013 | L9: Distribution Loss Factor - Secondary Metered Customer < 5,000 kW | W9: VC_GA_Rate_Rider_kW_ | Z9: Collection of Account Charge – No Disconnection | AA9: Collection of account charge – no disconnection – during regular hours | AL9: Canadian Niagara Power Inc. | AM9: Canadian Niagara Power Inc. - Eastern Ontario Power | AO9: GENERAL SERVICE 1,000 TO 4,999 KW - INTERVAL METERS | AP9: kW | AT9: HST | AW9: =AV9*AW8 -> 0 | AY9: =AV9 -> 0 | AZ9: =AY9*AZ8 -> 0 | BB9: =AZ9-AW9 -> 0 | BC9: =BB9/AW9 -> 
A10: GENERAL SERVICE 1,000 TO 4,999 KW (CO-GENERATION) | I10: Low Voltage Service Charge | L10: Distribution Loss Factor - Secondary Metered Customer > 5,000 kW | W10: VC_LV_Rate | Z10: Credit Card Convenience Charge | AA10: Collection/Disconnection/Load Limiter/Reconnection – if in Community | AL10: Centre Wellington Hydro Ltd. | AM10: Canadian Niagara Power Inc. - Fort Erie | AO10: GENERAL SERVICE 1,000 TO 4,999 KW (CO-GENERATION) | AP10: kW | AT10: Total Bill (including HST) | AW10: =AW9+AW8 -> 0 | AZ10: =AZ9+AZ8 -> 0 | BB10: =AZ10-AW10 -> 0 | BC10: =BB10/AW10 -> 
A11: GENERAL SERVICE 1,000 TO 4,999 KW | I11: Low Voltage Service Rate | L11: Distribution Loss Factor - Primary Metered Customer < 5,000 kW | W11: RTSR_Network | Z11: Credit check (plus credit agency costs) | AA11: Credit Card Convenience Charge | AL11: Chapleau Public Utilities Corporation | AM11: Canadian Niagara Power Inc. - Port Colborne Hydro Inc. | AO11: GENERAL SERVICE 1,000 TO 4,999 KW | AP11: kW | AT11: Ontario Clean Energy Benefit (OCEB) | AW11: =-0.1*AW10 -> 0 | AY11: =AV11 -> 0 | AZ11: =-0.1*AZ10 -> 0 | BB11: =AZ11-AW11 -> 0 | BC11: =BB11/AW11 -> 
A12: GENERAL SERVICE 1,500 TO 4,999 KW | I12: Low Voltage Volumetric Rate | L12: Distribution Loss Factor - Primary Metered Customer > 5,000 kW | W12: RTSR_Connection | Z12: Credit reference Letter | AA12: Disconnect/Reconnect at meter – after regular hours | AL12: Clinton Power Corporation | AM12: Centre Wellington Hydro Ltd. | AO12: GENERAL SERVICE 1,500 TO 4,999 KW | AP12: kW | AT12: Total Bill on RPP (including OCEB) | AW12: =AW10+AW11 -> 0 | AZ12: =AZ10+AZ11 -> 0 | BB12: =AZ12-AW12 -> 0 | BC12: =BB12/AW12 -> 
A13: GENERAL SERVICE 2,500 TO 4,999 KW | I13: Mechanism (SSM) Recovery (2012) - effective until April 30, 2014 | AL13: COLLUS Power Corporation | AM13: Chapleau Public Utilities Corporation | AO13: GENERAL SERVICE 2,500 TO 4,999 KW | AP13: kW
A14: GENERAL SERVICE 3,000 TO 4,999 KW - INTERMEDIATE USE | I14: Minimum Distribution Charge - per KW of maximum billing demand in the previous 11 months | L14: Total Loss Factor - Embedded Distributor | W14: RTSR_Network_Interval | Z14: Credit reference/credit check (plus credit agency costs – General Service) | AA14: Disconnect/Reconnect at meter – during regular hours | AL14: Cooperative Hydro Embrun Inc. | AM14: Clinton Power Corporation | AO14: GENERAL SERVICE 3,000 TO 4,999 KW - INTERMEDIATE USE | AP14: kW | AT14: Total Bill on TOU (before taxes) | BB14: =AZ14-AW14 -> 0
A15: GENERAL SERVICE 3,000 TO 4,999 KW - INTERVAL METERED | I15: Monthly Distribution Wheeling Service Rate - Dedicated LV Line | L15: Total Loss Factor – Embedded Distributor – Hydro One Networks Inc. | W15: RTSR_Connection_Interval | Z15: Credit Reference/credit check (plus credit agency costs) | AA15: Disconnect/Reconnect at pole – after regular hours | AL15: E.L.K. Energy Inc. | AM15: COLLUS Power Corporation | AO15: GENERAL SERVICE 3,000 TO 4,999 KW - INTERVAL METERED | AP15: kW | AT15: HST | AW15: =AV15*AW14 -> 0 | AY15: =AV15 -> 0 | AZ15: =AY15*AZ14 -> 0 | BB15: =AZ15-AW15 -> 0 | BC15: =BB15/AW15 -> 
A16: GENERAL SERVICE 3,000 TO 4,999 KW - TIME OF USE | I16: Monthly Distribution Wheeling Service Rate - Hydro One Networks | W16: RTSR_Network_Interval_GR1000kW | Z16: Dispute Test – Commercial self contained -- MC | AA16: Disconnect/Reconnect at pole – during regular hours | AL16: Enersource Hydro Mississauga Inc. | AM16: Cooperative Hydro Embrun Inc. | AO16: GENERAL SERVICE 3,000 TO 4,999 KW - TIME OF USE | AP16: kW | AT16: Total Bill (including HST) | AW16: =AW15+AW14 -> 0 | AZ16: =AZ15+AZ14 -> 0 | BB16: =AZ16-AW16 -> 0 | BC16: =BB16/AW16 -> 
A17: GENERAL SERVICE 3,000 TO 4,999 KW | I17: Monthly Distribution Wheeling Service Rate - Shared LV Line | W17: RTSR_Connection_Interval_GR1000kW | Z17: Dispute Test – Commercial TT -- MC | AA17: Disconnect/Reconnect Charge – At Meter – After Hours | AL17: Entegrus Powerlines Inc. | AM17: E.L.K. Energy Inc. | AO17: GENERAL SERVICE 3,000 TO 4,999 KW | AP17: kW | AT17: Ontario Clean Energy Benefit (OCEB) | AW17: =-0.1*AW16 -> 0 | AY17: =AV17 -> 0 | AZ17: =-0.1*AZ16 -> 0 | BB17: =AZ17-AW17 -> 0 | BC17: =BB17/AW17 -> 
A18: GENERAL SERVICE 50 TO 1,000 KW - INTERVAL METERS | I18: Monthly Distribution Wheeling Service Rate - Waterloo North Hydro | W18: RTSR_Line_Connection | Z18: Dispute Test – Residential | AA18: Disconnect/Reconnect Charge – At Meter – During Regular Hours | AL18: ENWIN Utilities Ltd. | AM18: Enersource Hydro Mississauga Inc. | AO18: GENERAL SERVICE 50 TO 1,000 KW - INTERVAL METERS | AP18: kW | AT18: Total Bill on TOU (including OCEB) | AW18: =AW16+AW17 -> 0 | AZ18: =AZ16+AZ17 -> 0 | BB18: =AZ18-AW18 -> 0 | BC18: =BB18/AW18 -> 
A19: GENERAL SERVICE 50 TO 1,000 KW - NON INTERVAL METERS | I19: Rate Rider for Application of Tax Change - effective until April 30, 2014 | W19: RTSR_Transformer_Connection | Z19: Duplicate Invoices for previous billing | AA19: Disconnect/Reconnect Charge – At Pole – After Hours | AL19: Erie Thames Powerlines Corporation | AM19: Entegrus Powerlines Inc. - Chatham-Kent | AO19: GENERAL SERVICE 50 TO 1,000 KW - NON INTERVAL METERS | AP19: kW
A20: GENERAL SERVICE 50 TO 1,000 KW | I20: Rate Rider for Application of Tax Change - effective until December 31, 2013 | W20: WMSR | Z20: Easement Letter | AA20: Disconnect/Reconnect Charge – At Pole – During Regular Hours | AL20: Espanola Regional Hydro Distribution Corporation | AM20: Entegrus Powerlines Inc. - Dutton | AO20: GENERAL SERVICE 50 TO 1,000 KW | AP20: kW
A21: GENERAL SERVICE 50 TO 1,499 KW - INTERVAL METERED | I21: Rate Rider for Application of Tax Change - Hydro One Networks - effective until April 30, 2014 | W21: RRRP | Z21: Income Tax Letter | AA21: Disconnect/Reconnect Charges for non payment of account - At Meter After Hours | AL21: Essex Powerlines Corporation | AM21: Entegrus Powerlines Inc. - Newbury | AO21: GENERAL SERVICE 50 TO 1,499 KW - INTERVAL METERED | AP21: kW
A22: GENERAL SERVICE 50 TO 1,499 KW | I22: Rate Rider for Application of Tax Change - Waterloo North Hydro - effective until April 30, 2014 | W22: SPC | Z22: Interval Meter Interrogation | AA22: Disconnect/Reconnect charges for non payment of account – at meter after regular hours | AL22: Festival Hydro Inc. | AM22: Entegrus Powerlines Inc. - Strathroy, Mounth Brydges & Parkhill | AO22: GENERAL SERVICE 50 TO 1,499 KW | AP22: kW
A23: GENERAL SERVICE 50 TO 2,499 KW | I23: Rate Rider for Application of Tax Change (2013) - effective until April 30, 2014 | W23: DRC | Z23: Interval meter request change | AA23: Disconnect/Reconnect Charges for non payment of account - At Meter During Regular Hours | AL23: Fort Albany Power Corporation | AM23: ENWIN Utilities Ltd. | AO23: GENERAL SERVICE 50 TO 2,499 KW | AP23: kW
A24: GENERAL SERVICE 50 TO 2,999 KW - INTERVAL METERED | I24: Rate Rider for Application of Tax Change (per connection) - effective until April 30, 2014 | W24: SSS | Z24: Legal letter | AA24: Disconnect/Reconnect charges for non payment of account – at meter during regular hours | AL24: Fort Frances Power Corporation | AM24: Erie Thames Powerlines Corporation | AO24: GENERAL SERVICE 50 TO 2,999 KW - INTERVAL METERED | AP24: kW
A25: GENERAL SERVICE 50 TO 2,999 KW - TIME OF USE | I25: Rate Rider for Application of Tax Change Dedicated LV Line - effective until April 30, 2014 | W25: SFLF | Z25: Legal letter charge | AA25: Disconnect/Reconnect charges for non payment of account – at pole after regular hours | AL25: Greater Sudbury Hydro Inc. | AM25: Espanola Regional Hydro Distribution Corporation | AO25: GENERAL SERVICE 50 TO 2,999 KW - TIME OF USE | AP25: kW
A26: GENERAL SERVICE 50 TO 2,999 KW | B26: January | I26: Rate Rider for Application of Tax Change Shared LV Line - effective until April 30, 2014 | W26: DLF_Secondary_LT_5000kW | Z26: Meter dispute charge plus Measurement Canada fees (if meter found correct) | AA26: Disconnect/Reconnect charges for non payment of account – at pole during regular hours | AL26: Grimsby Power Inc. | AM26: Essex Powerlines Corporation | AO26: GENERAL SERVICE 50 TO 2,999 KW | AP26: kW
A27: GENERAL SERVICE 50 TO 4,999 KW - INTERVAL METERED | B27: February | I27: Rate Rider for Deferral/Variance Account (2012) - effective unitl April 30, 2016 | W27: DLF_Secondary_GT_5000kW | Z27: Notification charge | AA27: Disconnect/Reconnection for >300 volts - after regular hours | AL27: Guelph Hydro Electric Systems Inc. | AM27: Festival Hydro Inc. | AO27: GENERAL SERVICE 50 TO 4,999 KW - INTERVAL METERED | AP27: kW
A28: GENERAL SERVICE 50 TO 4,999 KW - TIME OF USE | B28: March | I28: Rate Rider for Deferral/Variance Account Disposition (2012) - effective until April 30, 2016 | W28: DLF_Primary_LT_5000kW | Z28: Pulling Post Dated Cheques | AA28: Disconnect/Reconnection for >300 volts - during regular hours | AL28: Haldimand County Hydro Inc. | AM28: Festival Hydro Inc. - Hensall | AO28: GENERAL SERVICE 50 TO 4,999 KW - TIME OF USE | AP28: kW
A29: GENERAL SERVICE 50 TO 4,999 KW (COGENERATION) | B29: April | I29: Rate Rider for Deferral/Variance Account Disposition (2013) - effective until April 30, 2014 | W29: DLF_Primary_GT_5000kW | Z29: Request for other billing information | AA29: Disposal of Concrete Poles | AL29: Halton Hills Hydro Inc. | AM29: Fort Albany Power Corporation | AO29: GENERAL SERVICE 50 TO 4,999 KW (COGENERATION) | AP29: kW
A30: GENERAL SERVICE 50 TO 4,999 KW (FORMERLY TIME OF USE) | B30: May | I30: Rate Rider for Deferral/Variance Account Dispositon (2012) - effective until April 30, 2016 | W30: TLF_Secondary_LT_5000kW | Z30: Returned cheque (plus bank charges) | AA30: Dispute Test – Commercial TT -- MC | AL30: Hearst Power Distribution Company Limited | AM30: Fort Frances Power Corporation | AO30: GENERAL SERVICE 50 TO 4,999 KW (FORMERLY TIME OF USE) | AP30: kW
A31: GENERAL SERVICE 50 TO 4,999 KW | B31: June | I31: Rate Rider for Disposition of Capital Gain - effective until April 30, 2014 | W31: TLF_Secondary_GT_5000kW | Z31: Returned cheque charge (plus bank charges) | AA31: Install/Remove load control device – after regular hours | AL31: Horizon Utilities Corporation | AM31: Greater Sudbury Hydro Inc. | AO31: GENERAL SERVICE 50 TO 4,999 KW | AP31: kW
A32: GENERAL SERVICE 50 TO 499 KW | B32: July | I32: Rate Rider for Disposition of Deferral/Variance Accounts - effective until August 31, 2013 | W32: TLF_Primary_LT_5000kW | Z32: Special Billing Service (aggregation) | AA32: Install/Remove load control device – during regular hours | AL32: Hydro 2000 Inc. | AM32: Grimsby Power Inc. | AO32: GENERAL SERVICE 50 TO 499 KW | AP32: kW
A33: GENERAL SERVICE 50 TO 699 KW | B33: August | I33: Rate Rider for Disposition of Deferral/Variance Accounts (2010) - effective until April 30, 2014 | W33: TLF_Primary_GT_5000kW | Z33: Special Billing Service (sub-metering charge per meter) | AA33: Interval Meter Interrogation | AL33: Hydro Hawkesbury Inc. | AM33: Guelph Hydro Electric Systems Inc. | AO33: GENERAL SERVICE 50 TO 699 KW | AP33: kW
A34: GENERAL SERVICE 50 TO 999 KW - INTERVAL METERED | B34: September | I34: Rate Rider for Disposition of Deferral/Variance Accounts (2010) - effective until December 31, 2014 | W34: TLF_EmbeddedDistributor | Z34: Special meter reads | AA34: Interval Meter Load Management Tool Charge $/month | AL34: Hydro One Brampton Networks Inc. | AM34: Haldimand County Hydro Inc. | AO34: GENERAL SERVICE 50 TO 999 KW - INTERVAL METERED | AP34: kW
A35: GENERAL SERVICE 50 TO 999 KW | B35: October | I35: Rate Rider for Disposition of Deferral/Variance Accounts (2011) - effective until April 30, 2014 | Z35: Statement of Account | AA35: Interval meter request change | AL35: Hydro One Networks Inc. | AM35: Halton Hills Hydro Inc. | AO35: GENERAL SERVICE 50 TO 999 KW | AP35: kW
A36: GENERAL SERVICE 500 TO 4,999 KW | B36: November | I36: Rate Rider for Disposition of Deferral/Variance Accounts (2011) - effective until April 30, 2015 | Z36: Unprocessed Payment Charge (plus bank charges) | AA36: Late Payment – per annum | AL36: Hydro Ottawa Limited | AM36: Hearst Power Distribution Company Limited | AO36: GENERAL SERVICE 500 TO 4,999 KW | AP36: kW
A37: GENERAL SERVICE 700 TO 4,999 KW | B37: December | I37: Rate Rider for Disposition of Deferral/Variance Accounts (2011) - effective until April 30, 2016 | AA37: Late Payment – per month | AL37: Innisfil Hydro Distribution Systems Limited | AM37: Horizon Utilities Corporation | AO37: GENERAL SERVICE 700 TO 4,999 KW | AP37: kW
A38: GENERAL SERVICE DEMAND BILLED (50 KW AND ABOVE) [GSD] | I38: Rate Rider for Disposition of Deferral/Variance Accounts (2012) - effective until April 30, 2014 | AA38: Layout fees | AL38: Kashechewan Power Corporation | AM38: Hydro 2000 Inc. | AO38: GENERAL SERVICE DEMAND BILLED (50 KW AND ABOVE) [GSD] | AP38: kW
A39: GENERAL SERVICE ENERGY BILLED (LESS THAN 50 KW) [GSE-METERED] | I39: Rate Rider for Disposition of Deferral/Variance Accounts (2012) - effective until April 30, 2015 | AA39: Meter dispute charge plus Measurement Canada fees (if meter found correct) | AL39: Kenora Hydro Electric Corporation Ltd. | AM39: Hydro Hawkesbury Inc. | AO39: GENERAL SERVICE ENERGY BILLED (LESS THAN 50 KW) [GSE-METERED] | AP39: kWh
A40: GENERAL SERVICE ENERGY BILLED (LESS THAN TO 50 KW) [GSE-UNMETERED] | I40: Rate Rider for Disposition of Deferral/Variance Accounts (2012) - effective until April 30, 2016 | AA40: Meter Interrogation Charge | AL40: Kingston Hydro Corporation | AM40: Hydro One Brampton Networks Inc. | AO40: GENERAL SERVICE ENERGY BILLED (LESS THAN TO 50 KW) [GSE-UNMETERED] | AP40: kWh
A41: GENERAL SERVICE EQUAL TO OR GREATER THAN 1,500 KW - INTERVAL METERED | I41: Rate Rider for Disposition of Deferral/Variance Accounts (2012) - effective until December 31, 2013 | AA41: Missed Service Appointment | AL41: Kitchener-Wilmot Hydro Inc. | AM41: Hydro One Networks Inc. | AO41: GENERAL SERVICE EQUAL TO OR GREATER THAN 1,500 KW - INTERVAL METERED | AP41: kW
A42: GENERAL SERVICE EQUAL TO OR GREATER THAN 1,500 KW | I42: Rate Rider for Disposition of Deferral/Variance Accounts (2012) - effective until December 31, 2013 Applicable in the service area excluding the former service area of Clinton Power | AA42: Norfolk Pole Rentals – Billed | AL42: Lakefront Utilities Inc. | AM42: Hydro Ottawa Limited | AO42: GENERAL SERVICE EQUAL TO OR GREATER THAN 1,500 KW | AP42: kW
A43: GENERAL SERVICE GREATER THAN 1,000 KW | I43: Rate Rider for Disposition of Deferral/Variance Accounts (2012) - effective until December 31, 2013 Applicable in the service area excluding the former service areas of Clinton Power and West Perth Power | AA43: Optional Interval/TOU Meter charge $/month | AL43: Lakeland Power Distribution Ltd. | AM43: Innisfil Hydro Distribution Systems Limited | AO43: GENERAL SERVICE GREATER THAN 1,000 KW | AP43: kW
A44: GENERAL SERVICE INTERMEDIATE 1,000 TO 4,999 KW | I44: Rate Rider for Disposition of Deferral/Variance Accounts (2012) - effective until December 31, 2013 Applicable only in the former service area of West Perth Power | AA44: Overtime Locate | AL44: London Hydro Inc. | AM44: Kashechewan Power Corporation | AO44: GENERAL SERVICE INTERMEDIATE 1,000 TO 4,999 KW | AP44: kW
A45: GENERAL SERVICE INTERMEDIATE RATE CLASS 1,000 TO 4,999 KW (FORMERLY GENERAL SERVICE > 50 KW CUSTOMERS) | I45: Rate Rider for Disposition of Deferral/Variance Accounts (2012) - effective until December 31, 2015 | AA45: Owner Requested Disconnection/Reconnection – after regular hours | AL45: Midland Power Utility Corporation | AM45: Kenora Hydro Electric Corporation Ltd. | AO45: GENERAL SERVICE INTERMEDIATE RATE CLASS 1,000 TO 4,999 KW (FORMERLY GENERAL SERVICE > 50 KW CUSTOMERS) | AP45: kW
A46: GENERAL SERVICE INTERMEDIATE RATE CLASS 1,000 TO 4,999 KW (FORMERLY LARGE USE CUSTOMERS) | I46: Rate Rider for Disposition of Deferral/Variance Accounts (2012) - effective until December 31, 2016 Applicable only in the former service area of Clinton Power | AA46: Owner Requested Disconnection/Reconnection – during regular hours | AL46: Milton Hydro Distribution inc. | AM46: Kingston Hydro Corporation | AO46: GENERAL SERVICE INTERMEDIATE RATE CLASS 1,000 TO 4,999 KW (FORMERLY LARGE USE CUSTOMERS) | AP46: kW
A47: GENERAL SERVICE LESS THAN 50 KW - SINGLE PHASE ENERGY-BILLED [G1] | I47: Rate Rider for Disposition of Deferral/Variance Accounts (2012) - effective until February 28, 2013 | AA47: Returned cheque (plus bank charges) | AL47: Newmarket - Tay Power Distribution Ltd. | AM47: Kitchener-Wilmot Hydro Inc. | AO47: GENERAL SERVICE LESS THAN 50 KW - SINGLE PHASE ENERGY-BILLED [G1] | AP47: kWh
A48: GENERAL SERVICE LESS THAN 50 KW - THREE PHASE ENERGY-BILLED [G3] | I48: Rate Rider for Disposition of Deferral/Variance Accounts (2012) - effective until June 30, 2014 | AA48: Rural system expansion / line connection fee | AL48: Niagara Peninsula Energy Inc. | AM48: Lakefront Utilities Inc. | AO48: GENERAL SERVICE LESS THAN 50 KW - THREE PHASE ENERGY-BILLED [G3] | AP48: kWh
A49: GENERAL SERVICE LESS THAN 50 KW - TRANSMISSION CLASS ENERGY-BILLED [T] | I49: Rate Rider for Disposition of Deferral/Variance Accounts (2012) - effective until March 31, 2013 | AA49: Same Day Open Trench | AL49: Niagara-on-the-Lake Hydro Inc. | AM49: Lakeland Power Distribution Ltd. | AO49: GENERAL SERVICE LESS THAN 50 KW - TRANSMISSION CLASS ENERGY-BILLED [T] | AP49: kWh
A50: GENERAL SERVICE LESS THAN 50 KW - URBAN ENERGY-BILLED [UG] | I50: Rate Rider for Disposition of Deferral/Variance Accounts (2012) - effective until October 31, 2013 | AA50: Scheduled Day Open Trench | AL50: Norfolk Power Distribution Inc. | AM50: London Hydro Inc. | AO50: GENERAL SERVICE LESS THAN 50 KW - URBAN ENERGY-BILLED [UG] | AP50: kWh
A51: GENERAL SERVICE LESS THAN 50 KW | I51: Rate Rider for Disposition of Deferral/Variance Accounts (2013) - effective until April 30, 2014 | AA51: Service call – after regular hours | AL51: North Bay Hydro Distribution Limited | AM51: Midland Power Utility Corporation | AO51: GENERAL SERVICE LESS THAN 50 KW | AP51: kWh
A52: GENERAL SERVICE SINGLE PHASE - G1 | I52: Rate Rider for Disposition of Deferral/Variance Accounts (2013) - effective until April 30, 2015 | AA52: Service call – customer owned equipment | AL52: Northern Ontario Wires Inc. | AM52: Milton Hydro Distribution inc. | AO52: GENERAL SERVICE SINGLE PHASE - G1 | AP52: kW
A53: GENERAL SERVICE THREE PHASE - G3 | I53: Rate Rider for Disposition of Deferral/Variance Accounts (2013) - effective until April 30, 2017 | AA53: Service Call – Customer-owned Equipment – After Regular Hours | AL53: Oakville Hydro Electricity Distribution Inc. | AM53: Newmarket - Tay Power Distribution Ltd. - Newmarket | AO53: GENERAL SERVICE THREE PHASE - G3 | AP53: kW
A54: INTERMEDIATE USERS | I54: Rate Rider for Disposition of Deferral/Variance Accounts (2013) - effective until December 31, 2013 | AA54: Service Call – Customer-owned Equipment – During Regular Hours | AL54: Orangeville Hydro Limited | AM54: Newmarket - Tay Power Distribution Ltd. - Tay | AO54: INTERMEDIATE USERS | AP54: kW
A55: INTERMEDIATE WITH SELF GENERATION | I55: Rate Rider for Disposition of Deferred PILs Variance Account 1562 - effective until April 30, 2014 | AA55: Service Charge for onsite interrogation of interval meter due to customer phone line failure - required weekly until line repaired $ 6 | AL55: Orillia Power Distribution Corporation | AM55: Niagara Peninsula Energy Inc. - Niagara Falls | AO55: INTERMEDIATE WITH SELF GENERATION | AP55: kW
A56: LARGE USE - 3TS | I56: Rate Rider for Disposition of Deferred PILs Variance Account 1562 - effective until December 31, 2013 | AA56: Service Layout - Commercial | AL56: Oshawa PUC Networks Inc. | AM56: Niagara Peninsula Energy Inc. - Peninsula West | AO56: LARGE USE - 3TS | AP56: kW
A57: LARGE USE - FORD ANNEX | I57: Rate Rider for Disposition of Deferred PILs Variance Account 1562 - effective until March 31, 2016 | AA57: Service Layout - ResidentiaI | AL57: Ottawa River Power Corporation | AM57: Niagara-on-the-Lake Hydro Inc. | AO57: LARGE USE - FORD ANNEX | AP57: kW
A58: LARGE USE - REGULAR | I58: Rate Rider for Disposition of Deferred PILs Variance Account 1562 - effective until November 30, 2013 | AA58: Special Billing Service (sub-metering charge per meter) | AL58: Parry Sound Power Corporation | AM58: Norfolk Power Distribution Inc. | AO58: LARGE USE - REGULAR | AP58: kW
A59: LARGE USE > 5000 KW | I59: Rate Rider for Disposition of Deferred PILs Variance Account 1562 - effective until October 31, 2013 | AA59: Special meter reads | AL59: Peterborough Distribution Incorporated | AM59: North Bay Hydro Distribution Limited | AO59: LARGE USE > 5000 KW | AP59: kW
A60: LARGE USE | I60: Rate Rider for Disposition of Deferred PILs Variance Account 1562 (2012) - effective until April 30, 2015 | AA60: Specific Charge for Access to the Power Poles - $/pole/year | AL60: PowerStream Inc. | AM60: Northern Ontario Wires Inc. | AO60: LARGE USE | AP60: kW
A61: microFIT | I61: Rate Rider for Disposition of Deferred PILs Variance Account 1562 (per connection) (2012) - effective until April 30, 2015 | AA61: Specific Charge for Bell Canada Access to the Power Poles – per pole/year | AL61: PUC Distribution Inc. | AM61: Oakville Hydro Electricity Distribution Inc. | AO61: microFIT | AP61: $
A62: RESIDENTIAL - HENSALL | I62: Rate Rider for Disposition of Global Adjustment Sub-Account - effective until November 30, 2013 Applicable only for Non-RPP Customers | AA62: Switching for company maintenance – Charge based on Time and Materials | AL62: Renfrew Hydro Inc. | AM62: Orangeville Hydro Limited | AO62: RESIDENTIAL - HENSALL | AP62: kWh
A63: RESIDENTIAL - HIGH DENSITY [R1] | I63: Rate Rider for Disposition of Global Adjustment Sub-Account - effective until November 30, 2013 Applicable only for Non-RPP Customers | AA63: Temporary Service – Install & remove – overhead – no transformer | AL63: Rideau St. Lawrence Distribution Inc. | AM63: Orillia Power Distribution Corporation | AO63: RESIDENTIAL - HIGH DENSITY [R1] | AP63: kWh
A64: RESIDENTIAL - LOW DENSITY [R2] | I64: Rate Rider for Disposition of Global Adjustment Sub-Account (2010) - effective until April 30, 2014 Applicable only for Non-RPP Customers | AA64: Temporary Service – Install & remove – overhead – with transformer | AL64: Sioux Lookout Hydro Inc. | AM64: Oshawa PUC Networks Inc. | AO64: RESIDENTIAL - LOW DENSITY [R2] | AP64: kWh
A65: RESIDENTIAL - MEDIUM DENSITY [R1] | I65: Rate Rider for Disposition of Global Adjustment Sub-Account (2011) - effective until April 30, 2014 Applicable only for Non-RPP Customers | AA65: Temporary Service – Install & remove – underground – no transformer | AL65: St. Thomas Energy Inc. | AM65: Ottawa River Power Corporation | AO65: RESIDENTIAL - MEDIUM DENSITY [R1] | AP65: kWh
A66: RESIDENTIAL - NORMAL DENSITY [R2] | I66: Rate Rider for Disposition of Global Adjustment Sub-Account (2011) - effective until April 30, 2015 Applicable only for Non-RPP Customers | AA66: Temporary service install & remove – overhead – no transformer | AL66: Thunder Bay Hydro Electricity Distribution Inc. | AM66: Parry Sound Power Corporation | AO66: RESIDENTIAL - NORMAL DENSITY [R2] | AP66: kWh
A67: RESIDENTIAL - TIME OF USE | I67: Rate Rider for Disposition of Global Adjustment Sub-Account (2011) - effective until April 30, 2016 Applicable only for Non-RPP Customers | AA67: Temporary Service Install & Remove – Overhead – With Transformer | AL67: Tillsonburg Hydro Inc. | AM67: Peterborough Distribution Incorporated | AO67: RESIDENTIAL - TIME OF USE | AP67: kWh
A68: RESIDENTIAL - URBAN [UR] | I68: Rate Rider for Disposition of Global Adjustment Sub-Account (2012) - effective until April 30, 2014 Applicable only for Non-RPP Customers | AA68: Temporary Service Install & Remove – Underground – No Transformer | AL68: Toronto Hydro-Electric System Limited | AM68: PowerStream Inc. - Barrie | AO68: RESIDENTIAL - URBAN [UR] | AP68: kWh
A69: RESIDENTIAL REGULAR | I69: Rate Rider for Disposition of Global Adjustment Sub-Account (2012) - effective until April 30, 2015 Applicable only for Non-RPP Customers | AA69: Temporary service installation and removal – overhead – no transformer | AL69: Veridian Connections Inc. | AM69: PowerStream Inc. - South | AO69: RESIDENTIAL REGULAR | AP69: kWh
A70: RESIDENTIAL | I70: Rate Rider for Disposition of Global Adjustment Sub-Account (2012) - effective until April 30, 2015 Applicatble only for Non-RPP Customers | AA70: Temporary service installation and removal – overhead – with transformer | AL70: Wasaga Distribution Inc. | AM70: PUC Distribution Inc. | AO70: RESIDENTIAL | AP70: kWh
A71: RESIDENTIAL SUBURBAN SEASONAL | I71: Rate Rider for Disposition of Global Adjustment Sub-Account (2012) - effective until April 30, 2016 Applicable only for Non-RPP Customers | AA71: Temporary service installation and removal – underground – no transformer | AL71: Waterloo North Hydro Inc. | AM71: Renfrew Hydro Inc. | AO71: RESIDENTIAL SUBURBAN SEASONAL | AP71: kWh
A72: RESIDENTIAL SUBURBAN | I72: Rate Rider for Disposition of Global Adjustment Sub-Account (2012) - effective until December 31, 2013 Applicable only for Non-RPP Customers | AL72: Welland Hydro-Electric System Corp. | AM72: Rideau St. Lawrence Distribution Inc. | AO72: RESIDENTIAL SUBURBAN | AP72: kWh
A73: RESIDENTIAL SUBURBAN YEAR ROUND | I73: Rate Rider for Disposition of Global Adjustment Sub-Account (2012) - effective until December 31, 2013 Applicable only for Non-RPP Customers in the former service area of Clinton Power | AL73: Wellington North Power Inc. | AM73: Sioux Lookout Hydro Inc. | AO73: RESIDENTIAL SUBURBAN YEAR ROUND | AP73: kWh
A74: RESIDENTIAL URBAN | I74: Rate Rider for Disposition of Global Adjustment Sub-Account (2012) - effective until December 31, 2013 Applicable only for Non-RPP Customers in the former service area of West Perth Power | AL74: West Coast Huron Energy Inc. | AM74: St. Thomas Energy Inc. | AO74: RESIDENTIAL URBAN | AP74: kWh
A75: RESIDENTIAL URBAN YEAR-ROUND | I75: Rate Rider for Disposition of Global Adjustment Sub-Account (2012) - effective until December 31, 2013 Applicable only for Non-RPP Customers in the service area excluding the former service areas of Clinton Power and West Perth Power | AL75: West Perth Power Inc. | AM75: Thunder Bay Hydro Electricity Distribution Inc. | AO75: RESIDENTIAL URBAN YEAR-ROUND | AP75: kWh
A76: SEASONAL RESIDENTIAL - HIGH DENSITY [R3] | I76: Rate Rider for Disposition of Global Adjustment Sub-Account (2012) - effective until February 28, 2013 Applicable only for Non-RPP Customers | AL76: Westario Power Inc. | AM76: Tillsonburg Hydro Inc. | AO76: SEASONAL RESIDENTIAL - HIGH DENSITY [R3] | AP76: kWh
A77: SEASONAL RESIDENTIAL - NORMAL DENSITY [R4] | I77: Rate Rider for Disposition of Global Adjustment Sub-Account (2012) - effective until June 30, 2014 Applicable only for Non-RPP Customers | AL77: Whitby Hydro Electric Corporation | AM77: Toronto Hydro-Electric System Limited | AO77: SEASONAL RESIDENTIAL - NORMAL DENSITY [R4] | AP77: kWh
A78: SEASONAL RESIDENTIAL | I78: Rate Rider for Disposition of Global Adjustment Sub-Account (2012) - effective until March 31, 2013 Applicable only for Non-RPP Customers | AL78: Woodstock Hydro Services Inc. | AM78: Veridian Connections Inc. | AO78: SEASONAL RESIDENTIAL | AP78: kWh
A79: SENTINEL LIGHTING | I79: Rate Rider for Disposition of Global Adjustment Sub-Account (2012) - effective until October 31, 2013 Applicable only for Non-RPP Customers | AM79: Veridian Connections Inc. - Gravenhurst | AO79: SENTINEL LIGHTING | AP79: kW
A80: SMALL COMMERCIAL AND USL - PER CONNECTION | I80: Rate Rider for Disposition of Global Adjustment Sub-Account (2013) - effective until April 30, 2014 Applicable only for Non-RPP Customers | AM80: Wasaga Distribution Inc. | AO80: SMALL COMMERCIAL AND USL - PER CONNECTION | AP80: kW
A81: SMALL COMMERCIAL AND USL - PER METER | I81: Rate Rider for Disposition of Global Adjustment Sub-Account (2013) - effective until April 30, 2015 Applicable only for Non-RPP Customers | AM81: Waterloo North Hydro Inc. | AO81: SMALL COMMERCIAL AND USL - PER METER | AP81: kW
A82: STANDARD A GENERAL SERVICE AIR ACCESS | I82: Rate Rider for Disposition of Global Adjustment Sub-Account (2013) - effective until April 30, 2017 Applicable only for Non-RPP Customers | AM82: Welland Hydro-Electric System Corp. | AO82: STANDARD A GENERAL SERVICE AIR ACCESS | AP82: kW
A83: STANDARD A GENERAL SERVICE ROAD/RAIL | I83: Rate Rider for Disposition of Global Adjustment Sub-Account (2013) - effective until December 31, 2013 Applicable only for Non-RPP Customers | AM83: Wellington North Power Inc. | AO83: STANDARD A GENERAL SERVICE ROAD/RAIL | AP83: kW
A84: STANDARD A RESIDENTIAL AIR ACCESS | I84: Rate Rider for Disposition of Post Retirement Actuarial Gain - effective until March 31, 2025 | AM84: West Coast Huron Energy Inc. | AO84: STANDARD A RESIDENTIAL AIR ACCESS | AP84: kW
A85: STANDARD A RESIDENTIAL ROAD/RAIL | I85: Rate Rider for Disposition of Residual Hisotrical Smart Meter Costs - effective until April 30, 2015 | AM85: West Perth Power Inc. | AO85: STANDARD A RESIDENTIAL ROAD/RAIL | AP85: kW
A86: STANDBY - GENERAL SERVICE 1,000 - 5,000 KW | I86: Rate Rider for Disposition of Residual Historical Smart Meter Costs - effective until April 30, 2013 | AM86: Westario Power Inc. | AO86: STANDBY - GENERAL SERVICE 1,000 - 5,000 KW | AP86: kW
A87: STANDBY - GENERAL SERVICE 50 - 1,000 KW | I87: Rate Rider for Disposition of Residual Historical Smart Meter Costs - effective until April 30, 2014 | AM87: Whitby Hydro Electric Corporation | AO87: STANDBY - GENERAL SERVICE 50 - 1,000 KW | AP87: kW
A88: STANDBY - LARGE USE | I88: Rate Rider for Disposition of Residual Historical Smart Meter Costs - effective until April 30, 2016 | AM88: Woodstock Hydro Services Inc. | AO88: STANDBY - LARGE USE | AP88: kW
A89: STANDBY DISTRIBUTION SERVICE | I89: Rate Rider for Disposition of Residual Historical Smart Meter Costs - effective until August 31, 2013 | AO89: STANDBY DISTRIBUTION SERVICE | AP89: kW
A90: STANDBY POWER - APPROVED ON AN INTERIM BASIS | I90: Rate Rider for Disposition of Residual Historical Smart Meter Costs - effective until August 31, 2015 | AO90: STANDBY POWER - APPROVED ON AN INTERIM BASIS | AP90: kW
A91: STANDBY POWER GENERAL SERVICE 1,500 TO 4,999 KW | I91: Rate Rider for Disposition of Residual Historical Smart Meter Costs - effective until December 31, 2013 | AO91: STANDBY POWER GENERAL SERVICE 1,500 TO 4,999 KW | AP91: kW
A92: STANDBY POWER GENERAL SERVICE 50 TO 1,499 KW | I92: Rate Rider for Disposition of Residual Historical Smart Meter Costs - effective until December 31, 2014 | AO92: STANDBY POWER GENERAL SERVICE 50 TO 1,499 KW | AP92: kW
A93: STANDBY POWER GENERAL SERVICE LARGE USE | I93: Rate Rider for Disposition of Residual Historical Smart Meter Costs - effective until December 31, 2015 | AO93: STANDBY POWER GENERAL SERVICE LARGE USE | AP93: kW
A94: STANDBY POWER | I94: Rate Rider for Disposition of Residual Historical Smart Meter Costs - effective until March 31, 2013 | AO94: STANDBY POWER | AP94: kW
A95: STREET LIGHTING | I95: Rate Rider for Disposition of Residual Historical Smart Meter Costs - effective until November 30, 2013 | AO95: STREET LIGHTING | AP95: kWh
A96: SUB TRANSMISSION [ST] | I96: Rate Rider for Disposition of Residual Historical Smart Meter Costs - effective until October 31, 2013 | AO96: SUB TRANSMISSION [ST] | AP96: kW
A97: UNMETERED SCATTERED LOAD | I97: Rate Rider for Disposition of Residual Historical Smart Meter Costs - effective until September 30, 2014 | AO97: UNMETERED SCATTERED LOAD | AP97: kWh
A98: URBAN GENERAL SERVICE DEMAND BILLED (50 KW AND ABOVE) [UGD] | I98: Rate Rider for Disposition of Residual Historical Smart Meter Costs - Non-Interval Metered - effective until April 30, 2014 | AO98: URBAN GENERAL SERVICE DEMAND BILLED (50 KW AND ABOVE) [UGD] | AP98: kW
A99: URBAN GENERAL SERVICE ENERGY BILLED (LESS THAN 50 KW) [UGE] | I99: Rate Rider for Disposition of Residual Historical Smart Meter Costs 2 - in effect until the effective date of the next cost of service-based rate order | AO99: URBAN GENERAL SERVICE ENERGY BILLED (LESS THAN 50 KW) [UGE] | AP99: kWh
A100: WESTPORT SEWAGE TREATMENT PLANT | I100: Rate Rider for Disposition of Residual Historical Smart Meter Costs 3 - in effect until the effective date of the next cost of service-based rate order | AO100: WESTPORT SEWAGE TREATMENT PLANT | AP100: kW
A101: YEAR-ROUND RESIDENTIAL - R2 | I101: Rate Rider for Disposition of Residual Incremental Historical Smart Meter Costs - effective until August 31, 2015 | AO101: YEAR-ROUND RESIDENTIAL - R2 | AP101: kWh
I102: Rate Rider for Disposition of Stranded Meter Costs - effective until April 30, 2016
I103: Rate Rider for Global Adjustment Sub Account Disposition - effective until April 30, 2016 Applicable only for Non RPP Customers
I104: Rate Rider for Incremental Capital (2012) - effective until April 30, 2015
I105: Rate Rider for Lost Revenue Adjustment (LRAM) Recovery/Shared Savings Mechanism Recovery (2011) - effective until April 30, 2014
I106: Rate Rider for Lost Revenue Adjustment Mechanism Variance Account (LRAMVA) (2011) – effective until April 30, 2014
I107: Rate Rider for Lost Revenue Adjustment Mechanism Variance Account (LRAMVA) Recovery (2011 CDM Activities) - effective until April 30, 2014
I108: Rate Rider for Recover of Residual Historical Smart Meter Costs - effective until June 30, 2014
I109: Rate Rider for Recovery of Deferred Revenue - effective until December 31, 2013
I110: Rate Rider for Recovery of Forgone Revenue - effective until April 30, 2014
I111: Rate Rider for Recovery of Green Energy Act related costs - effective until December 31, 2013
I112: Rate Rider for Recovery of Incremental Capital (2013) - in effect until the effective date of the next cost of service-based rate order
I113: Rate Rider for Recovery of Incremental Capital (2013) (per connection) - in effect until the effective date of the next cost of service-based rate order
I114: Rate Rider for Recovery of Incremental Capital Costs
I115: Rate Rider for Recovery of Incremental Capital Costs - effective until April 30, 2014
I116: Rate Rider for Recovery of Incremental Capital Costs - effective until April 30, 2015
I117: Rate Rider for Recovery of Lost Revenue Adjustment Mechanism (LRAM) - effective until April 30, 2014
I118: Rate Rider for Recovery of Lost Revenue Adjustment Mechanism (LRAM) - effective until April 30, 2016
I119: Rate Rider for Recovery of Lost Revenue Adjustment Mechanism (LRAM) - effective until August 31, 2013
I120: Rate Rider for Recovery of Lost Revenue Adjustment Mechanism (LRAM) - effective until December 31, 2013
I121: Rate Rider for Recovery of Lost Revenue Adjustment Mechanism (LRAM) - effective until June 30, 2013
I122: Rate Rider for Recovery of Lost Revenue Adjustment Mechanism (LRAM) - effective until November 30, 2013
I123: Rate Rider for Recovery of Lost Revenue Adjustment Mechanism (LRAM) (2012) - effective until April 30, 2014
I124: Rate Rider for Recovery of Lost Revenue Adjustment Mechanism (LRAM) (2012) - effective until February 28, 2013
I125: Rate Rider for Recovery of Lost Revenue Adjustment Mechanism (LRAM) (2013) - effective until December 31, 2013
I126: Rate Rider for Recovery of Lost Revenue Adjustment Mechanism (LRAM) (pre-2011 CDM Activities) - effective until April 30, 2014
I127: Rate Rider for Recovery of Lost Revenue Adjustment Mechanism (LRAM)/Shared Savings
I128: Rate Rider for Recovery of Lost Revenue Adjustment Mechanism (LRAM)/Shared Savings Mechanism (SSM) - effective until April 30, 2014
I129: Rate Rider for Recovery of Lost Revenue Adjustment Mechanism (LRAM)/Shared Savings Mechanism (SSM) - effective until December 31, 2014 and applicable in the service area excluding the former service area of Clinton Power
I130: Rate Rider for Recovery of Lost Revenue Adjustment Mechanism (LRAM)/Shared Savings Mechanism (SSM) - effective until December 31, 2014 and applicable in the service area excluding the former service areas of Clinton Power and West Perth Power
I131: Rate Rider for Recovery of Lost Revenue Adjustment Mechanism (LRAM)/Shared Savings Mechanism (SSM) - effective until December 31, 2014 and applicable only in the former service area of Clinton Power
I132: Rate Rider for Recovery of Lost Revenue Adjustment Mechanism (LRAM)/Shared Savings Mechanism (SSM) - effective until December 31, 2014 and applicable only in the former service area of West Perth Power
I133: Rate Rider for Recovery of Lost Revenue Adjustment Mechanism (LRAM)/Shared Savings Mechanism (SSM) - effective until March 31, 2016
I134: Rate Rider for Recovery of Lost Revenue Adjustment Mechanism (LRAM)/Shared Savings Mechanism (SSM) Recovery - effective until April 30, 2014
I135: Rate Rider for Recovery of Lost Revenue Adjustment Mechanism (LRAM)/Shared Savings Mechanism (SSM) Recovery - effective until April 30, 2015
I136: Rate Rider for Recovery of Lost Revenue Adjustment Mechanism (LRAM)/Shared Savings Mechanism (SSM) Recovery (2010) - effective until April 30, 2014
I137: Rate Rider for Recovery of Lost Revenue Adjustment Mechanism (LRAM)/Shared Savings Mechanism (SSM) Recovery (2012) - effective until April 30, 2014
I138: Rate Rider for Recovery of Lost Revenue Adjustment Mechanism (LRAM)/Shared Savings Mechanism (SSM) Recovery (2012) - effective until October 31, 2013
I139: Rate Rider for Recovery of Residual Historical Smart Meter Costs - effective July 1, 2012 - April 30, 2016
I140: Rate Rider for Recovery of Smart Meter Incremental Revenue Requirement - effective until the date of the next cost of service-based rate order
I141: Rate Rider for Recovery of Smart Meter Incremental Revenue Requirement - in effect until the effective date of the next cost of service-based rate order
I142: Rate Rider for Recovery of Smart Meter Incremental Revenue Requirement - Non-Interval Metered - in effect until the effective date of the next cost of service-based rate order
I143: Rate Rider for Recovery of Smart Meter Incremental Revenue Requirements - in effect until the effective date of the next cost of service application
I144: Rate Rider for Recovery of Smart Meter Stranded Assets - effective until April 30, 2016
I145: Rate Rider for Recovery of Stranded Assets - effective until April 30, 2016
I146: Rate Rider for Recovery of Stranded Meter Assets - effective July 1, 2012 - April 30, 2016
I147: Rate Rider for Recovery of Stranded Meter Assets - effective until April 30, 2014
I148: Rate Rider for Recovery of Stranded Meter Assets – effective until April 30, 2015
I149: Rate Rider for Recovery of Stranded Meter Assets - effective until April 30, 2016
I150: Rate Rider for Recovery of Stranded Meter Assets - effective until August 31, 2013
I151: Rate Rider for Recovery of Stranded Meter Assets - effective until August 31, 2015
I152: Rate Rider for Recovery of Stranded Meter Assets - effective until December 31, 2014
I153: Rate Rider for Recovery of Stranded Meter Assets - effective until December 31, 2015
I154: Rate Rider for Recovery of Stranded Meter Assets - effective until June 30, 2016
I155: Rate Rider for Recovery of Stranded Meter Assets - effective until March 31, 2016
I156: Rate Rider for Recovery of Stranded Meter Assets - effective until November 30, 2013
I157: Rate Rider for Reversal of Deferral/Variance Account Disposition (2011) - effective until April 30, 2015
I158: Rate Rider for Smart Meter Disposition - effective until October 31, 2013
I159: Rate Rider for Smart Meter Incremental Revenue Requirement - in effect until the effective date of the next cost of service-based rate order
I160: Rate Rider for Smart Metering Entity Charge - effective until October 31, 2018
I161: Rate Rider for the disposition of Deferral/Variance Accounts Disposition (2013) - effective on an interim basis until April 30, 2014
I162: Rate Rider for the disposition of Global Adjustment Sub-Account Disposition (2013) - effective on an interim basis until April 30, 2014 Applicable only for Non-RPP Customers
I163: Retail Transmission Rate - Line and Transformation Connection Service Rate
I164: Retail Transmission Rate - Line and Transformation Connection Service Rate - (less than 1,000 kW)
I165: Retail Transmission Rate - Line and Transformation Connection Service Rate - Interval Metered
I166: Retail Transmission Rate - Line and Transformation Connection Service Rate - Interval Metered (1,000 to 4,999 kW)
I167: Retail Transmission Rate - Line and Transformation Connection Service Rate - Interval Metered (less than 1,000 kW)
I168: Retail Transmission Rate - Line and Transformation Connection Service Rate - Interval Metered < 1,000 kW
I169: Retail Transmission Rate - Line and Transformation Connection Service Rate - Interval Metered > 1,000 kW
I170: Retail Transmission Rate - Line and Transformation Connection Service Rate FOR ALL SERVICE AREAS EXCEPT HENSALL
I171: Retail Transmission Rate - Line Connection Service Rate
I172: Retail Transmission Rate - Network Service Rate
I173: Retail Transmission Rate - Network Service Rate - (less than 1,000 kW)
I174: Retail Transmission Rate - Network Service Rate - Interval Metered
I175: Retail Transmission Rate - Network Service Rate - Interval Metered (1,000 to 4,999 kW)
I176: Retail Transmission Rate - Network Service Rate - Interval Metered (less than 1,000 kW)
I177: Retail Transmission Rate - Network Service Rate - Interval Metered > 1,000 kW
I178: Retail Transmission Rate - Transformation Connection Service Rate
I179: Rider for Global Adjustment Sub-Account Disposition (2012) - effective until April 30, 2016 Applicable only for Non-RPP Customers
I180: Rural Rate Protection Charge
I181: Sentinel lights (dusk-to-dawn) connected to unmetered wires will have a flat rate monthly energy charge added to the regular customer bill. Further servicing details are available in the distributor’s Conditions of Service.
I182: Service Charge
I183: Service Charge (per connection)
I184: Service Charge (per customer)
I185: Service Charge (per light)
I186: Standard Supply Service - Administrative Charge (if applicable)
I187: Standby Charge - for a month where standby power is not provided. The charge is applied to the amount of reserved load transfer capacity contracted or the amount of monthly peak load displaced by a generating facility
I188: Standby Charge - for a month where standby power is not provided. The charge is applied to the contracted amount (e.g. nameplate rating of the generation facility).
I189: Wholesale Market Service Rate
